{"text_format":"1","workbook":"xlsx","n_sheets":5,"sheets":["Hoofdmenu","Toelichting","NAW_gegevens","Verzekerden","Parameters"],"not_rendered":{"charts":0,"images":0,"macros":1,"external_links":0,"defined_names":80,"comments":0,"pivot_tables":0},"unopened":[],"bounds":{"document_bytes":16777216,"sheet_cells":100000,"rows_first":2000,"rows_last":500,"rows_between":2000,"halvings":0,"cell_chars":16384,"cell_head_chars":4096},"cells_cut":0,"cells_raw":0,"read":"whole","date_system":"1900"}

{"sheet":"Hoofdmenu","index":0,"n_rows":3,"n_cols":2,"rows_kept":3,"cut":false,"hidden":false,"merged":[[0,0,0,1],[1,0,1,1]]}
["HOOFDMENU"]
["OPGAVE VERZEKERDEN ZONDER BSN EN VERZEKERDEN ZONDER GEVERIFIEERD BSN 2023"]
["Navigatie","Afdrukken"]

{"sheet":"Toelichting","index":1,"n_rows":0,"n_cols":0,"rows_kept":0,"cut":false,"hidden":false,"merged":[[2,1,55,11]]}

{"sheet":"NAW_gegevens","index":2,"n_rows":13,"n_cols":2,"rows_kept":13,"cut":false,"hidden":false,"merged":[[2,0,2,1],[3,0,3,1]]}
[]
[]
["NAW-MENU"]
["OPGAVE VERZEKERDEN ZONDER BSN EN VERZEKERDEN ZONDER GEVERIFIEERD BSN 2023"]
[" Selecteer uw nummer:>","0000 KIES UW UZOVI-NUMMER"]
[" Uzovi-nummer:",{"$f":"MID(keuze_uzovi_nummer,1,4)","v":"0000"}]
[" Zorgverzekeraar:",{"$f":"LOOKUP(naw_uzovi_zorgverzekeraar,Parameters!A3:A23,Parameters!B3:B23)","v":"KIES UW UZOVI-NUMMER"}]
[" Plaats:",{"$f":"LOOKUP(naw_uzovi_zorgverzekeraar,Parameters!A3:A23,Parameters!D3:D23)","v":"PLAATS"}]
[" Contactpersoon:"]
[" Telefoonnummer:"]
[" E-mail:"]
[]
["N.B. Plaats is de statutaire vestigingsplaats zoals vastgelegd in het register van De Nederlandsche Bank"]

{"sheet":"Verzekerden","index":3,"n_rows":1401,"n_cols":14,"rows_kept":1401,"cut":false,"hidden":false,"merged":[[5,3,5,8],[6,3,6,8],[7,3,7,8],[8,3,8,8]]}
[]
[]
[null,null,"ZORGINSTITUUT NEDERLAND"]
[null,null,"Opgave verzekerden zonder BSN en verzekerden zonder geverifieerd BSN 2023",null,null,null,null,null,null,null,null,{"$f":"CONCATENATE(\"UZOVI: \",naw_uzovi_zorgverzekeraar)","v":"UZOVI: 0000"}]
[]
[null,null,null,"(aantal) detailrecords met verzekerden zonder BSN met totaal"]
[null,null,null,"(som) fracties verzekeringsperiode"]
[null,null,null,"(aantal) detailrecords met verzekerden zonder geverifieerd BSN met totaal"]
[null,null,null,"(som) fracties verzekeringsperiode"]
[]
[null,null,"Verzekerde","1= geen BSN          2= niet geverifieerd BSN","Postcode (4 cijfers)","Geboortejaar en -maand (JJJJMM)","Geslacht (1=man, 2=vrouw, 3=onbepaald)","Begindatum verzekering (JJJJMMDD)","Einddatum verzekering (JJJJMMDD)","Fractie verzekerde periode in 2023","Reden uitstroom Zvw","Motivatie","nummer DWH","Naam modelovereenkomst"]
[null,null,"Verzekerde 1",null,null,null,null,null,null,null,null,null,null,{"$f":"IFERROR(VLOOKUP(M12,Parameters!$G$4:$I$63,2,FALSE),\"\")","v":""}]
[null,null,"Verzekerde 2",null,null,null,null,null,null,null,null,null,null,{"$f":"IFERROR(VLOOKUP(M13,Parameters!$G$4:$I$63,2,FALSE),\"\")","v":""}]
[null,null,"Verzekerde 3",null,null,null,null,null,null,null,null,null,null,{"$f":"IFERROR(VLOOKUP(M14,Parameters!$G$4:$I$63,2,FALSE),\"\")","v":""}]
[null,null,"Verzekerde 4",null,null,null,null,null,null,null,null,null,null,{"$f":"IFERROR(VLOOKUP(M15,Parameters!$G$4:$I$63,2,FALSE),\"\")","v":""}]
[null,null,"Verzekerde 5",null,null,null,null,null,null,null,null,null,null,{"$f":"IFERROR(VLOOKUP(M16,Parameters!$G$4:$I$63,2,FALSE),\"\")","v":""}]
[null,null,"Verzekerde 6",null,null,null,null,null,null,null,null,null,null,{"$f":"IFERROR(VLOOKUP(M17,Parameters!$G$4:$I$63,2,FALSE),\"\")","v":""}]
[null,null,"Verzekerde 7",null,null,null,null,null,null,null,null,null,null,{"$f":"IFERROR(VLOOKUP(M18,Parameters!$G$4:$I$63,2,FALSE),\"\")","v":""}]
[null,null,"Verzekerde 8",null,null,null,null,null,null,null,null,null,null,{"$f":"IFERROR(VLOOKUP(M19,Parameters!$G$4:$I$63,2,FALSE),\"\")","v":""}]
[null,null,"Verzekerde 9",null,null,null,null,null,null,null,null,null,null,{"$f":"IFERROR(VLOOKUP(M20,Parameters!$G$4:$I$63,2,FALSE),\"\")","v":""}]
[null,null,"Verzekerde 10",null,null,null,null,null,null,null,null,null,null,{"$f":"IFERROR(VLOOKUP(M21,Parameters!$G$4:$I$63,2,FALSE),\"\")","v":""}]
[null,null,"Verzekerde 11",null,null,null,null,null,null,null,null,null,null,{"$f":"IFERROR(VLOOKUP(M22,Parameters!$G$4:$I$63,2,FALSE),\"\")","v":""}]
[null,null,"Verzekerde 12",null,null,null,null,null,null,null,null,null,null,{"$f":"IFERROR(VLOOKUP(M23,Parameters!$G$4:$I$63,2,FALSE),\"\")","v":""}]
[null,null,"Verzekerde 13",null,null,null,null,null,null,null,null,null,null,{"$f":"IFERROR(VLOOKUP(M24,Parameters!$G$4:$I$63,2,FALSE),\"\")","v":""}]
[null,null,"Verzekerde 14",null,null,null,null,null,null,null,null,null,null,{"$f":"IFERROR(VLOOKUP(M25,Parameters!$G$4:$I$63,2,FALSE),\"\")","v":""}]
[null,null,"Verzekerde 15",null,null,null,null,null,null,null,null,null,null,{"$f":"IFERROR(VLOOKUP(M26,Parameters!$G$4:$I$63,2,FALSE),\"\")","v":""}]
[null,null,"Verzekerde 16",null,null,null,null,null,null,null,null,null,null,{"$f":"IFERROR(VLOOKUP(M27,Parameters!$G$4:$I$63,2,FALSE),\"\")","v":""}]
[null,null,"Verzekerde 17",null,null,null,null,null,null,null,null,null,null,{"$f":"IFERROR(VLOOKUP(M28,Parameters!$G$4:$I$63,2,FALSE),\"\")","v":""}]
[null,null,"Verzekerde 18",null,null,null,null,null,null,null,null,null,null,{"$f":"IFERROR(VLOOKUP(M29,Parameters!$G$4:$I$63,2,FALSE),\"\")","v":""}]
[null,null,"Verzekerde 19",null,null,null,null,null,null,null,null,null,null,{"$f":"IFERROR(VLOOKUP(M30,Parameters!$G$4:$I$63,2,FALSE),\"\")","v":""}]
[null,null,"Verzekerde 20",null,null,null,null,null,null,null,null,null,null,{"$f":"IFERROR(VLOOKUP(M31,Parameters!$G$4:$I$63,2,FALSE),\"\")","v":""}]
[null,null,"Verzekerde 21",null,null,null,null,null,null,null,null,null,null,{"$f":"IFERROR(VLOOKUP(M32,Parameters!$G$4:$I$63,2,FALSE),\"\")","v":""}]
[null,null,"Verzekerde 22",null,null,null,null,null,null,null,null,null,null,{"$f":"IFERROR(VLOOKUP(M33,Parameters!$G$4:$I$63,2,FALSE),\"\")","v":""}]
[null,null,"Verzekerde 23",null,null,null,null,null,null,null,null,null,null,{"$f":"IFERROR(VLOOKUP(M34,Parameters!$G$4:$I$63,2,FALSE),\"\")","v":""}]
[null,null,"Verzekerde 24",null,null,null,null,null,null,null,null,null,null,{"$f":"IFERROR(VLOOKUP(M35,Parameters!$G$4:$I$63,2,FALSE),\"\")","v":""}]
[null,null,"Verzekerde 25",null,null,null,null,null,null,null,null,null,null,{"$f":"IFERROR(VLOOKUP(M36,Parameters!$G$4:$I$63,2,FALSE),\"\")","v":""}]
[null,null,"Verzekerde 26",null,null,null,null,null,null,null,null,null,null,{"$f":"IFERROR(VLOOKUP(M37,Parameters!$G$4:$I$63,2,FALSE),\"\")","v":""}]
[null,null,"Verzekerde 27",null,null,null,null,null,null,null,null,null,null,{"$f":"IFERROR(VLOOKUP(M38,Parameters!$G$4:$I$63,2,FALSE),\"\")","v":""}]
[null,null,"Verzekerde 28",null,null,null,null,null,null,null,null,null,null,{"$f":"IFERROR(VLOOKUP(M39,Parameters!$G$4:$I$63,2,FALSE),\"\")","v":""}]
[null,null,"Verzekerde 29",null,null,null,null,null,null,null,null,null,null,{"$f":"IFERROR(VLOOKUP(M40,Parameters!$G$4:$I$63,2,FALSE),\"\")","v":""}]
[null,null,"Verzekerde 30",null,null,null,null,null,null,null,null,null,null,{"$f":"IFERROR(VLOOKUP(M41,Parameters!$G$4:$I$63,2,FALSE),\"\")","v":""}]
[null,null,"Verzekerde 31",null,null,null,null,null,null,null,null,null,null,{"$f":"IFERROR(VLOOKUP(M42,Parameters!$G$4:$I$63,2,FALSE),\"\")","v":""}]
[null,null,"Verzekerde 32",null,null,null,null,null,null,null,null,null,null,{"$f":"IFERROR(VLOOKUP(M43,Parameters!$G$4:$I$63,2,FALSE),\"\")","v":""}]
[null,null,"Verzekerde 33",null,null,null,null,null,null,null,null,null,null,{"$f":"IFERROR(VLOOKUP(M44,Parameters!$G$4:$I$63,2,FALSE),\"\")","v":""}]
[null,null,"Verzekerde 34",null,null,null,null,null,null,null,null,null,null,{"$f":"IFERROR(VLOOKUP(M45,Parameters!$G$4:$I$63,2,FALSE),\"\")","v":""}]
[null,null,"Verzekerde 35",null,null,null,null,null,null,null,null,null,null,{"$f":"IFERROR(VLOOKUP(M46,Parameters!$G$4:$I$63,2,FALSE),\"\")","v":""}]
[null,null,"Verzekerde 36",null,null,null,null,null,null,null,null,null,null,{"$f":"IFERROR(VLOOKUP(M47,Parameters!$G$4:$I$63,2,FALSE),\"\")","v":""}]
[null,null,"Verzekerde 37",null,null,null,null,null,null,null,null,null,null,{"$f":"IFERROR(VLOOKUP(M48,Parameters!$G$4:$I$63,2,FALSE),\"\")","v":""}]
[null,null,"Verzekerde 38",null,null,null,null,null,null,null,null,null,null,{"$f":"IFERROR(VLOOKUP(M49,Parameters!$G$4:$I$63,2,FALSE),\"\")","v":""}]
[null,null,"Verzekerde 39",null,null,null,null,null,null,null,null,null,null,{"$f":"IFERROR(VLOOKUP(M50,Parameters!$G$4:$I$63,2,FALSE),\"\")","v":""}]
[null,null,"Verzekerde 40",null,null,null,null,null,null,null,null,null,null,{"$f":"IFERROR(VLOOKUP(M51,Parameters!$G$4:$I$63,2,FALSE),\"\")","v":""}]
[null,null,"Verzekerde 41",null,null,null,null,null,null,null,null,null,null,{"$f":"IFERROR(VLOOKUP(M52,Parameters!$G$4:$I$63,2,FALSE),\"\")","v":""}]
[null,null,"Verzekerde 42",null,null,null,null,null,null,null,null,null,null,{"$f":"IFERROR(VLOOKUP(M53,Parameters!$G$4:$I$63,2,FALSE),\"\")","v":""}]
[null,null,"Verzekerde 43",null,null,null,null,null,null,null,null,null,null,{"$f":"IFERROR(VLOOKUP(M54,Parameters!$G$4:$I$63,2,FALSE),\"\")","v":""}]
[null,null,"Verzekerde 44",null,null,null,null,null,null,null,null,null,null,{"$f":"IFERROR(VLOOKUP(M55,Parameters!$G$4:$I$63,2,FALSE),\"\")","v":""}]
[null,null,"Verzekerde 45",null,null,null,null,null,null,null,null,null,null,{"$f":"IFERROR(VLOOKUP(M56,Parameters!$G$4:$I$63,2,FALSE),\"\")","v":""}]
[null,null,"Verzekerde 46",null,null,null,null,null,null,null,null,null,null,{"$f":"IFERROR(VLOOKUP(M57,Parameters!$G$4:$I$63,2,FALSE),\"\")","v":""}]
[null,null,"Verzekerde 47",null,null,null,null,null,null,null,null,null,null,{"$f":"IFERROR(VLOOKUP(M58,Parameters!$G$4:$I$63,2,FALSE),\"\")","v":""}]
[null,null,"Verzekerde 48",null,null,null,null,null,null,null,null,null,null,{"$f":"IFERROR(VLOOKUP(M59,Parameters!$G$4:$I$63,2,FALSE),\"\")","v":""}]
[null,null,"Verzekerde 49",null,null,null,null,null,null,null,null,null,null,{"$f":"IFERROR(VLOOKUP(M60,Parameters!$G$4:$I$63,2,FALSE),\"\")","v":""}]
[null,null,"Verzekerde 50",null,null,null,null,null,null,null,null,null,null,{"$f":"IFERROR(VLOOKUP(M61,Parameters!$G$4:$I$63,2,FALSE),\"\")","v":""}]
[null,null,"Verzekerde 51",null,null,null,null,null,null,null,null,null,null,{"$f":"IFERROR(VLOOKUP(M62,Parameters!$G$4:$I$63,2,FALSE),\"\")","v":""}]
[null,null,"Verzekerde 52",null,null,null,null,null,null,null,null,null,null,{"$f":"IFERROR(VLOOKUP(M63,Parameters!$G$4:$I$63,2,FALSE),\"\")","v":""}]
[null,null,"Verzekerde 53",null,null,null,null,null,null,null,null,null,null,{"$f":"IFERROR(VLOOKUP(M64,Parameters!$G$4:$I$63,2,FALSE),\"\")","v":""}]
[null,null,"Verzekerde 54",null,null,null,null,null,null,null,null,null,null,{"$f":"IFERROR(VLOOKUP(M65,Parameters!$G$4:$I$63,2,FALSE),\"\")","v":""}]
[null,null,"Verzekerde 55",null,null,null,null,null,null,null,null,null,null,{"$f":"IFERROR(VLOOKUP(M66,Parameters!$G$4:$I$63,2,FALSE),\"\")","v":""}]
[null,null,"Verzekerde 56",null,null,null,null,null,null,null,null,null,null,{"$f":"IFERROR(VLOOKUP(M67,Parameters!$G$4:$I$63,2,FALSE),\"\")","v":""}]
[null,null,"Verzekerde 57",null,null,null,null,null,null,null,null,null,null,{"$f":"IFERROR(VLOOKUP(M68,Parameters!$G$4:$I$63,2,FALSE),\"\")","v":""}]
[null,null,"Verzekerde 58",null,null,null,null,null,null,null,null,null,null,{"$f":"IFERROR(VLOOKUP(M69,Parameters!$G$4:$I$63,2,FALSE),\"\")","v":""}]
[null,null,"Verzekerde 59",null,null,null,null,null,null,null,null,null,null,{"$f":"IFERROR(VLOOKUP(M70,Parameters!$G$4:$I$63,2,FALSE),\"\")","v":""}]
[null,null,"Verzekerde 60",null,null,null,null,null,null,null,null,null,null,{"$f":"IFERROR(VLOOKUP(M71,Parameters!$G$4:$I$63,2,FALSE),\"\")","v":""}]
[null,null,"Verzekerde 61",null,null,null,null,null,null,null,null,null,null,{"$f":"IFERROR(VLOOKUP(M72,Parameters!$G$4:$I$63,2,FALSE),\"\")","v":""}]
[null,null,"Verzekerde 62",null,null,null,null,null,null,null,null,null,null,{"$f":"IFERROR(VLOOKUP(M73,Parameters!$G$4:$I$63,2,FALSE),\"\")","v":""}]
[null,null,"Verzekerde 63",null,null,null,null,null,null,null,null,null,null,{"$f":"IFERROR(VLOOKUP(M74,Parameters!$G$4:$I$63,2,FALSE),\"\")","v":""}]
[null,null,"Verzekerde 64",null,null,null,null,null,null,null,null,null,null,{"$f":"IFERROR(VLOOKUP(M75,Parameters!$G$4:$I$63,2,FALSE),\"\")","v":""}]
[null,null,"Verzekerde 65",null,null,null,null,null,null,null,null,null,null,{"$f":"IFERROR(VLOOKUP(M76,Parameters!$G$4:$I$63,2,FALSE),\"\")","v":""}]
[null,null,"Verzekerde 66",null,null,null,null,null,null,null,null,null,null,{"$f":"IFERROR(VLOOKUP(M77,Parameters!$G$4:$I$63,2,FALSE),\"\")","v":""}]
[null,null,"Verzekerde 67",null,null,null,null,null,null,null,null,null,null,{"$f":"IFERROR(VLOOKUP(M78,Parameters!$G$4:$I$63,2,FALSE),\"\")","v":""}]
[null,null,"Verzekerde 68",null,null,null,null,null,null,null,null,null,null,{"$f":"IFERROR(VLOOKUP(M79,Parameters!$G$4:$I$63,2,FALSE),\"\")","v":""}]
[null,null,"Verzekerde 69",null,null,null,null,null,null,null,null,null,null,{"$f":"IFERROR(VLOOKUP(M80,Parameters!$G$4:$I$63,2,FALSE),\"\")","v":""}]
[null,null,"Verzekerde 70",null,null,null,null,null,null,null,null,null,null,{"$f":"IFERROR(VLOOKUP(M81,Parameters!$G$4:$I$63,2,FALSE),\"\")","v":""}]
[null,null,"Verzekerde 71",null,null,null,null,null,null,null,null,null,null,{"$f":"IFERROR(VLOOKUP(M82,Parameters!$G$4:$I$63,2,FALSE),\"\")","v":""}]
[null,null,"Verzekerde 72",null,null,null,null,null,null,null,null,null,null,{"$f":"IFERROR(VLOOKUP(M83,Parameters!$G$4:$I$63,2,FALSE),\"\")","v":""}]
[null,null,"Verzekerde 73",null,null,null,null,null,null,null,null,null,null,{"$f":"IFERROR(VLOOKUP(M84,Parameters!$G$4:$I$63,2,FALSE),\"\")","v":""}]
[null,null,"Verzekerde 74",null,null,null,null,null,null,null,null,null,null,{"$f":"IFERROR(VLOOKUP(M85,Parameters!$G$4:$I$63,2,FALSE),\"\")","v":""}]
[null,null,"Verzekerde 75",null,null,null,null,null,null,null,null,null,null,{"$f":"IFERROR(VLOOKUP(M86,Parameters!$G$4:$I$63,2,FALSE),\"\")","v":""}]
[null,null,"Verzekerde 76",null,null,null,null,null,null,null,null,null,null,{"$f":"IFERROR(VLOOKUP(M87,Parameters!$G$4:$I$63,2,FALSE),\"\")","v":""}]
[null,null,"Verzekerde 77",null,null,null,null,null,null,null,null,null,null,{"$f":"IFERROR(VLOOKUP(M88,Parameters!$G$4:$I$63,2,FALSE),\"\")","v":""}]
[null,null,"Verzekerde 78",null,null,null,null,null,null,null,null,null,null,{"$f":"IFERROR(VLOOKUP(M89,Parameters!$G$4:$I$63,2,FALSE),\"\")","v":""}]
[null,null,"Verzekerde 79",null,null,null,null,null,null,null,null,null,null,{"$f":"IFERROR(VLOOKUP(M90,Parameters!$G$4:$I$63,2,FALSE),\"\")","v":""}]
[null,null,"Verzekerde 80",null,null,null,null,null,null,null,null,null,null,{"$f":"IFERROR(VLOOKUP(M91,Parameters!$G$4:$I$63,2,FALSE),\"\")","v":""}]
[null,null,"Verzekerde 81",null,null,null,null,null,null,null,null,null,null,{"$f":"IFERROR(VLOOKUP(M92,Parameters!$G$4:$I$63,2,FALSE),\"\")","v":""}]
[null,null,"Verzekerde 82",null,null,null,null,null,null,null,null,null,null,{"$f":"IFERROR(VLOOKUP(M93,Parameters!$G$4:$I$63,2,FALSE),\"\")","v":""}]
[null,null,"Verzekerde 83",null,null,null,null,null,null,null,null,null,null,{"$f":"IFERROR(VLOOKUP(M94,Parameters!$G$4:$I$63,2,FALSE),\"\")","v":""}]
[null,null,"Verzekerde 84",null,null,null,null,null,null,null,null,null,null,{"$f":"IFERROR(VLOOKUP(M95,Parameters!$G$4:$I$63,2,FALSE),\"\")","v":""}]
[null,null,"Verzekerde 85",null,null,null,null,null,null,null,null,null,null,{"$f":"IFERROR(VLOOKUP(M96,Parameters!$G$4:$I$63,2,FALSE),\"\")","v":""}]
[null,null,"Verzekerde 86",null,null,null,null,null,null,null,null,null,null,{"$f":"IFERROR(VLOOKUP(M97,Parameters!$G$4:$I$63,2,FALSE),\"\")","v":""}]
[null,null,"Verzekerde 87",null,null,null,null,null,null,null,null,null,null,{"$f":"IFERROR(VLOOKUP(M98,Parameters!$G$4:$I$63,2,FALSE),\"\")","v":""}]
[null,null,"Verzekerde 88",null,null,null,null,null,null,null,null,null,null,{"$f":"IFERROR(VLOOKUP(M99,Parameters!$G$4:$I$63,2,FALSE),\"\")","v":""}]
[null,null,"Verzekerde 89",null,null,null,null,null,null,null,null,null,null,{"$f":"IFERROR(VLOOKUP(M100,Parameters!$G$4:$I$63,2,FALSE),\"\")","v":""}]
[null,null,"Verzekerde 90",null,null,null,null,null,null,null,null,null,null,{"$f":"IFERROR(VLOOKUP(M101,Parameters!$G$4:$I$63,2,FALSE),\"\")","v":""}]
[null,null,"Verzekerde 91",null,null,null,null,null,null,null,null,null,null,{"$f":"IFERROR(VLOOKUP(M102,Parameters!$G$4:$I$63,2,FALSE),\"\")","v":""}]
[null,null,"Verzekerde 92",null,null,null,null,null,null,null,null,null,null,{"$f":"IFERROR(VLOOKUP(M103,Parameters!$G$4:$I$63,2,FALSE),\"\")","v":""}]
[null,null,"Verzekerde 93",null,null,null,null,null,null,null,null,null,null,{"$f":"IFERROR(VLOOKUP(M104,Parameters!$G$4:$I$63,2,FALSE),\"\")","v":""}]
[null,null,"Verzekerde 94",null,null,null,null,null,null,null,null,null,null,{"$f":"IFERROR(VLOOKUP(M105,Parameters!$G$4:$I$63,2,FALSE),\"\")","v":""}]
[null,null,"Verzekerde 95",null,null,null,null,null,null,null,null,null,null,{"$f":"IFERROR(VLOOKUP(M106,Parameters!$G$4:$I$63,2,FALSE),\"\")","v":""}]
[null,null,"Verzekerde 96",null,null,null,null,null,null,null,null,null,null,{"$f":"IFERROR(VLOOKUP(M107,Parameters!$G$4:$I$63,2,FALSE),\"\")","v":""}]
[null,null,"Verzekerde 97",null,null,null,null,null,null,null,null,null,null,{"$f":"IFERROR(VLOOKUP(M108,Parameters!$G$4:$I$63,2,FALSE),\"\")","v":""}]
[null,null,"Verzekerde 98",null,null,null,null,null,null,null,null,null,null,{"$f":"IFERROR(VLOOKUP(M109,Parameters!$G$4:$I$63,2,FALSE),\"\")","v":""}]
[null,null,"Verzekerde 99",null,null,null,null,null,null,null,null,null,null,{"$f":"IFERROR(VLOOKUP(M110,Parameters!$G$4:$I$63,2,FALSE),\"\")","v":""}]
[null,null,"Verzekerde 100",null,null,null,null,null,null,null,null,null,null,{"$f":"IFERROR(VLOOKUP(M111,Parameters!$G$4:$I$63,2,FALSE),\"\")","v":""}]
[null,null,"Verzekerde 101",null,null,null,null,null,null,null,null,null,null,{"$f":"IFERROR(VLOOKUP(M112,Parameters!$G$4:$I$63,2,FALSE),\"\")","v":""}]
[null,null,"Verzekerde 102",null,null,null,null,null,null,null,null,null,null,{"$f":"IFERROR(VLOOKUP(M113,Parameters!$G$4:$I$63,2,FALSE),\"\")","v":""}]
[null,null,"Verzekerde 103",null,null,null,null,null,null,null,null,null,null,{"$f":"IFERROR(VLOOKUP(M114,Parameters!$G$4:$I$63,2,FALSE),\"\")","v":""}]
[null,null,"Verzekerde 104",null,null,null,null,null,null,null,null,null,null,{"$f":"IFERROR(VLOOKUP(M115,Parameters!$G$4:$I$63,2,FALSE),\"\")","v":""}]
[null,null,"Verzekerde 105",null,null,null,null,null,null,null,null,null,null,{"$f":"IFERROR(VLOOKUP(M116,Parameters!$G$4:$I$63,2,FALSE),\"\")","v":""}]
[null,null,"Verzekerde 106",null,null,null,null,null,null,null,null,null,null,{"$f":"IFERROR(VLOOKUP(M117,Parameters!$G$4:$I$63,2,FALSE),\"\")","v":""}]
[null,null,"Verzekerde 107",null,null,null,null,null,null,null,null,null,null,{"$f":"IFERROR(VLOOKUP(M118,Parameters!$G$4:$I$63,2,FALSE),\"\")","v":""}]
[null,null,"Verzekerde 108",null,null,null,null,null,null,null,null,null,null,{"$f":"IFERROR(VLOOKUP(M119,Parameters!$G$4:$I$63,2,FALSE),\"\")","v":""}]
[null,null,"Verzekerde 109",null,null,null,null,null,null,null,null,null,null,{"$f":"IFERROR(VLOOKUP(M120,Parameters!$G$4:$I$63,2,FALSE),\"\")","v":""}]
[null,null,"Verzekerde 110",null,null,null,null,null,null,null,null,null,null,{"$f":"IFERROR(VLOOKUP(M121,Parameters!$G$4:$I$63,2,FALSE),\"\")","v":""}]
[null,null,"Verzekerde 111",null,null,null,null,null,null,null,null,null,null,{"$f":"IFERROR(VLOOKUP(M122,Parameters!$G$4:$I$63,2,FALSE),\"\")","v":""}]
[null,null,"Verzekerde 112",null,null,null,null,null,null,null,null,null,null,{"$f":"IFERROR(VLOOKUP(M123,Parameters!$G$4:$I$63,2,FALSE),\"\")","v":""}]
[null,null,"Verzekerde 113",null,null,null,null,null,null,null,null,null,null,{"$f":"IFERROR(VLOOKUP(M124,Parameters!$G$4:$I$63,2,FALSE),\"\")","v":""}]
[null,null,"Verzekerde 114",null,null,null,null,null,null,null,null,null,null,{"$f":"IFERROR(VLOOKUP(M125,Parameters!$G$4:$I$63,2,FALSE),\"\")","v":""}]
[null,null,"Verzekerde 115",null,null,null,null,null,null,null,null,null,null,{"$f":"IFERROR(VLOOKUP(M126,Parameters!$G$4:$I$63,2,FALSE),\"\")","v":""}]
[null,null,"Verzekerde 116",null,null,null,null,null,null,null,null,null,null,{"$f":"IFERROR(VLOOKUP(M127,Parameters!$G$4:$I$63,2,FALSE),\"\")","v":""}]
[null,null,"Verzekerde 117",null,null,null,null,null,null,null,null,null,null,{"$f":"IFERROR(VLOOKUP(M128,Parameters!$G$4:$I$63,2,FALSE),\"\")","v":""}]
[null,null,"Verzekerde 118",null,null,null,null,null,null,null,null,null,null,{"$f":"IFERROR(VLOOKUP(M129,Parameters!$G$4:$I$63,2,FALSE),\"\")","v":""}]
[null,null,"Verzekerde 119",null,null,null,null,null,null,null,null,null,null,{"$f":"IFERROR(VLOOKUP(M130,Parameters!$G$4:$I$63,2,FALSE),\"\")","v":""}]
[null,null,"Verzekerde 120",null,null,null,null,null,null,null,null,null,null,{"$f":"IFERROR(VLOOKUP(M131,Parameters!$G$4:$I$63,2,FALSE),\"\")","v":""}]
[null,null,"Verzekerde 121",null,null,null,null,null,null,null,null,null,null,{"$f":"IFERROR(VLOOKUP(M132,Parameters!$G$4:$I$63,2,FALSE),\"\")","v":""}]
[null,null,"Verzekerde 122",null,null,null,null,null,null,null,null,null,null,{"$f":"IFERROR(VLOOKUP(M133,Parameters!$G$4:$I$63,2,FALSE),\"\")","v":""}]
[null,null,"Verzekerde 123",null,null,null,null,null,null,null,null,null,null,{"$f":"IFERROR(VLOOKUP(M134,Parameters!$G$4:$I$63,2,FALSE),\"\")","v":""}]
[null,null,"Verzekerde 124",null,null,null,null,null,null,null,null,null,null,{"$f":"IFERROR(VLOOKUP(M135,Parameters!$G$4:$I$63,2,FALSE),\"\")","v":""}]
[null,null,"Verzekerde 125",null,null,null,null,null,null,null,null,null,null,{"$f":"IFERROR(VLOOKUP(M136,Parameters!$G$4:$I$63,2,FALSE),\"\")","v":""}]
[null,null,"Verzekerde 126",null,null,null,null,null,null,null,null,null,null,{"$f":"IFERROR(VLOOKUP(M137,Parameters!$G$4:$I$63,2,FALSE),\"\")","v":""}]
[null,null,"Verzekerde 127",null,null,null,null,null,null,null,null,null,null,{"$f":"IFERROR(VLOOKUP(M138,Parameters!$G$4:$I$63,2,FALSE),\"\")","v":""}]
[null,null,"Verzekerde 128",null,null,null,null,null,null,null,null,null,null,{"$f":"IFERROR(VLOOKUP(M139,Parameters!$G$4:$I$63,2,FALSE),\"\")","v":""}]
[null,null,"Verzekerde 129",null,null,null,null,null,null,null,null,null,null,{"$f":"IFERROR(VLOOKUP(M140,Parameters!$G$4:$I$63,2,FALSE),\"\")","v":""}]
[null,null,"Verzekerde 130",null,null,null,null,null,null,null,null,null,null,{"$f":"IFERROR(VLOOKUP(M141,Parameters!$G$4:$I$63,2,FALSE),\"\")","v":""}]
[null,null,"Verzekerde 131",null,null,null,null,null,null,null,null,null,null,{"$f":"IFERROR(VLOOKUP(M142,Parameters!$G$4:$I$63,2,FALSE),\"\")","v":""}]
[null,null,"Verzekerde 132",null,null,null,null,null,null,null,null,null,null,{"$f":"IFERROR(VLOOKUP(M143,Parameters!$G$4:$I$63,2,FALSE),\"\")","v":""}]
[null,null,"Verzekerde 133",null,null,null,null,null,null,null,null,null,null,{"$f":"IFERROR(VLOOKUP(M144,Parameters!$G$4:$I$63,2,FALSE),\"\")","v":""}]
[null,null,"Verzekerde 134",null,null,null,null,null,null,null,null,null,null,{"$f":"IFERROR(VLOOKUP(M145,Parameters!$G$4:$I$63,2,FALSE),\"\")","v":""}]
[null,null,"Verzekerde 135",null,null,null,null,null,null,null,null,null,null,{"$f":"IFERROR(VLOOKUP(M146,Parameters!$G$4:$I$63,2,FALSE),\"\")","v":""}]
[null,null,"Verzekerde 136",null,null,null,null,null,null,null,null,null,null,{"$f":"IFERROR(VLOOKUP(M147,Parameters!$G$4:$I$63,2,FALSE),\"\")","v":""}]
[null,null,"Verzekerde 137",null,null,null,null,null,null,null,null,null,null,{"$f":"IFERROR(VLOOKUP(M148,Parameters!$G$4:$I$63,2,FALSE),\"\")","v":""}]
[null,null,"Verzekerde 138",null,null,null,null,null,null,null,null,null,null,{"$f":"IFERROR(VLOOKUP(M149,Parameters!$G$4:$I$63,2,FALSE),\"\")","v":""}]
[null,null,"Verzekerde 139",null,null,null,null,null,null,null,null,null,null,{"$f":"IFERROR(VLOOKUP(M150,Parameters!$G$4:$I$63,2,FALSE),\"\")","v":""}]
[null,null,"Verzekerde 140",null,null,null,null,null,null,null,null,null,null,{"$f":"IFERROR(VLOOKUP(M151,Parameters!$G$4:$I$63,2,FALSE),\"\")","v":""}]
[null,null,"Verzekerde 141",null,null,null,null,null,null,null,null,null,null,{"$f":"IFERROR(VLOOKUP(M152,Parameters!$G$4:$I$63,2,FALSE),\"\")","v":""}]
[null,null,"Verzekerde 142",null,null,null,null,null,null,null,null,null,null,{"$f":"IFERROR(VLOOKUP(M153,Parameters!$G$4:$I$63,2,FALSE),\"\")","v":""}]
[null,null,"Verzekerde 143",null,null,null,null,null,null,null,null,null,null,{"$f":"IFERROR(VLOOKUP(M154,Parameters!$G$4:$I$63,2,FALSE),\"\")","v":""}]
[null,null,"Verzekerde 144",null,null,null,null,null,null,null,null,null,null,{"$f":"IFERROR(VLOOKUP(M155,Parameters!$G$4:$I$63,2,FALSE),\"\")","v":""}]
[null,null,"Verzekerde 145",null,null,null,null,null,null,null,null,null,null,{"$f":"IFERROR(VLOOKUP(M156,Parameters!$G$4:$I$63,2,FALSE),\"\")","v":""}]
[null,null,"Verzekerde 146",null,null,null,null,null,null,null,null,null,null,{"$f":"IFERROR(VLOOKUP(M157,Parameters!$G$4:$I$63,2,FALSE),\"\")","v":""}]
[null,null,"Verzekerde 147",null,null,null,null,null,null,null,null,null,null,{"$f":"IFERROR(VLOOKUP(M158,Parameters!$G$4:$I$63,2,FALSE),\"\")","v":""}]
[null,null,"Verzekerde 148",null,null,null,null,null,null,null,null,null,null,{"$f":"IFERROR(VLOOKUP(M159,Parameters!$G$4:$I$63,2,FALSE),\"\")","v":""}]
[null,null,"Verzekerde 149",null,null,null,null,null,null,null,null,null,null,{"$f":"IFERROR(VLOOKUP(M160,Parameters!$G$4:$I$63,2,FALSE),\"\")","v":""}]
[null,null,"Verzekerde 150",null,null,null,null,null,null,null,null,null,null,{"$f":"IFERROR(VLOOKUP(M161,Parameters!$G$4:$I$63,2,FALSE),\"\")","v":""}]
[null,null,"Verzekerde 151",null,null,null,null,null,null,null,null,null,null,{"$f":"IFERROR(VLOOKUP(M162,Parameters!$G$4:$I$63,2,FALSE),\"\")","v":""}]
[null,null,"Verzekerde 152",null,null,null,null,null,null,null,null,null,null,{"$f":"IFERROR(VLOOKUP(M163,Parameters!$G$4:$I$63,2,FALSE),\"\")","v":""}]
[null,null,"Verzekerde 153",null,null,null,null,null,null,null,null,null,null,{"$f":"IFERROR(VLOOKUP(M164,Parameters!$G$4:$I$63,2,FALSE),\"\")","v":""}]
[null,null,"Verzekerde 154",null,null,null,null,null,null,null,null,null,null,{"$f":"IFERROR(VLOOKUP(M165,Parameters!$G$4:$I$63,2,FALSE),\"\")","v":""}]
[null,null,"Verzekerde 155",null,null,null,null,null,null,null,null,null,null,{"$f":"IFERROR(VLOOKUP(M166,Parameters!$G$4:$I$63,2,FALSE),\"\")","v":""}]
[null,null,"Verzekerde 156",null,null,null,null,null,null,null,null,null,null,{"$f":"IFERROR(VLOOKUP(M167,Parameters!$G$4:$I$63,2,FALSE),\"\")","v":""}]
[null,null,"Verzekerde 157",null,null,null,null,null,null,null,null,null,null,{"$f":"IFERROR(VLOOKUP(M168,Parameters!$G$4:$I$63,2,FALSE),\"\")","v":""}]
[null,null,"Verzekerde 158",null,null,null,null,null,null,null,null,null,null,{"$f":"IFERROR(VLOOKUP(M169,Parameters!$G$4:$I$63,2,FALSE),\"\")","v":""}]
[null,null,"Verzekerde 159",null,null,null,null,null,null,null,null,null,null,{"$f":"IFERROR(VLOOKUP(M170,Parameters!$G$4:$I$63,2,FALSE),\"\")","v":""}]
[null,null,"Verzekerde 160",null,null,null,null,null,null,null,null,null,null,{"$f":"IFERROR(VLOOKUP(M171,Parameters!$G$4:$I$63,2,FALSE),\"\")","v":""}]
[null,null,"Verzekerde 161",null,null,null,null,null,null,null,null,null,null,{"$f":"IFERROR(VLOOKUP(M172,Parameters!$G$4:$I$63,2,FALSE),\"\")","v":""}]
[null,null,"Verzekerde 162",null,null,null,null,null,null,null,null,null,null,{"$f":"IFERROR(VLOOKUP(M173,Parameters!$G$4:$I$63,2,FALSE),\"\")","v":""}]
[null,null,"Verzekerde 163",null,null,null,null,null,null,null,null,null,null,{"$f":"IFERROR(VLOOKUP(M174,Parameters!$G$4:$I$63,2,FALSE),\"\")","v":""}]
[null,null,"Verzekerde 164",null,null,null,null,null,null,null,null,null,null,{"$f":"IFERROR(VLOOKUP(M175,Parameters!$G$4:$I$63,2,FALSE),\"\")","v":""}]
[null,null,"Verzekerde 165",null,null,null,null,null,null,null,null,null,null,{"$f":"IFERROR(VLOOKUP(M176,Parameters!$G$4:$I$63,2,FALSE),\"\")","v":""}]
[null,null,"Verzekerde 166",null,null,null,null,null,null,null,null,null,null,{"$f":"IFERROR(VLOOKUP(M177,Parameters!$G$4:$I$63,2,FALSE),\"\")","v":""}]
[null,null,"Verzekerde 167",null,null,null,null,null,null,null,null,null,null,{"$f":"IFERROR(VLOOKUP(M178,Parameters!$G$4:$I$63,2,FALSE),\"\")","v":""}]
[null,null,"Verzekerde 168",null,null,null,null,null,null,null,null,null,null,{"$f":"IFERROR(VLOOKUP(M179,Parameters!$G$4:$I$63,2,FALSE),\"\")","v":""}]
[null,null,"Verzekerde 169",null,null,null,null,null,null,null,null,null,null,{"$f":"IFERROR(VLOOKUP(M180,Parameters!$G$4:$I$63,2,FALSE),\"\")","v":""}]
[null,null,"Verzekerde 170",null,null,null,null,null,null,null,null,null,null,{"$f":"IFERROR(VLOOKUP(M181,Parameters!$G$4:$I$63,2,FALSE),\"\")","v":""}]
[null,null,"Verzekerde 171",null,null,null,null,null,null,null,null,null,null,{"$f":"IFERROR(VLOOKUP(M182,Parameters!$G$4:$I$63,2,FALSE),\"\")","v":""}]
[null,null,"Verzekerde 172",null,null,null,null,null,null,null,null,null,null,{"$f":"IFERROR(VLOOKUP(M183,Parameters!$G$4:$I$63,2,FALSE),\"\")","v":""}]
[null,null,"Verzekerde 173",null,null,null,null,null,null,null,null,null,null,{"$f":"IFERROR(VLOOKUP(M184,Parameters!$G$4:$I$63,2,FALSE),\"\")","v":""}]
[null,null,"Verzekerde 174",null,null,null,null,null,null,null,null,null,null,{"$f":"IFERROR(VLOOKUP(M185,Parameters!$G$4:$I$63,2,FALSE),\"\")","v":""}]
[null,null,"Verzekerde 175",null,null,null,null,null,null,null,null,null,null,{"$f":"IFERROR(VLOOKUP(M186,Parameters!$G$4:$I$63,2,FALSE),\"\")","v":""}]
[null,null,"Verzekerde 176",null,null,null,null,null,null,null,null,null,null,{"$f":"IFERROR(VLOOKUP(M187,Parameters!$G$4:$I$63,2,FALSE),\"\")","v":""}]
[null,null,"Verzekerde 177",null,null,null,null,null,null,null,null,null,null,{"$f":"IFERROR(VLOOKUP(M188,Parameters!$G$4:$I$63,2,FALSE),\"\")","v":""}]
[null,null,"Verzekerde 178",null,null,null,null,null,null,null,null,null,null,{"$f":"IFERROR(VLOOKUP(M189,Parameters!$G$4:$I$63,2,FALSE),\"\")","v":""}]
[null,null,"Verzekerde 179",null,null,null,null,null,null,null,null,null,null,{"$f":"IFERROR(VLOOKUP(M190,Parameters!$G$4:$I$63,2,FALSE),\"\")","v":""}]
[null,null,"Verzekerde 180",null,null,null,null,null,null,null,null,null,null,{"$f":"IFERROR(VLOOKUP(M191,Parameters!$G$4:$I$63,2,FALSE),\"\")","v":""}]
[null,null,"Verzekerde 181",null,null,null,null,null,null,null,null,null,null,{"$f":"IFERROR(VLOOKUP(M192,Parameters!$G$4:$I$63,2,FALSE),\"\")","v":""}]
[null,null,"Verzekerde 182",null,null,null,null,null,null,null,null,null,null,{"$f":"IFERROR(VLOOKUP(M193,Parameters!$G$4:$I$63,2,FALSE),\"\")","v":""}]
[null,null,"Verzekerde 183",null,null,null,null,null,null,null,null,null,null,{"$f":"IFERROR(VLOOKUP(M194,Parameters!$G$4:$I$63,2,FALSE),\"\")","v":""}]
[null,null,"Verzekerde 184",null,null,null,null,null,null,null,null,null,null,{"$f":"IFERROR(VLOOKUP(M195,Parameters!$G$4:$I$63,2,FALSE),\"\")","v":""}]
[null,null,"Verzekerde 185",null,null,null,null,null,null,null,null,null,null,{"$f":"IFERROR(VLOOKUP(M196,Parameters!$G$4:$I$63,2,FALSE),\"\")","v":""}]
[null,null,"Verzekerde 186",null,null,null,null,null,null,null,null,null,null,{"$f":"IFERROR(VLOOKUP(M197,Parameters!$G$4:$I$63,2,FALSE),\"\")","v":""}]
[null,null,"Verzekerde 187",null,null,null,null,null,null,null,null,null,null,{"$f":"IFERROR(VLOOKUP(M198,Parameters!$G$4:$I$63,2,FALSE),\"\")","v":""}]
[null,null,"Verzekerde 188",null,null,null,null,null,null,null,null,null,null,{"$f":"IFERROR(VLOOKUP(M199,Parameters!$G$4:$I$63,2,FALSE),\"\")","v":""}]
[null,null,"Verzekerde 189",null,null,null,null,null,null,null,null,null,null,{"$f":"IFERROR(VLOOKUP(M200,Parameters!$G$4:$I$63,2,FALSE),\"\")","v":""}]
[null,null,"Verzekerde 190",null,null,null,null,null,null,null,null,null,null,{"$f":"IFERROR(VLOOKUP(M201,Parameters!$G$4:$I$63,2,FALSE),\"\")","v":""}]
[null,null,"Verzekerde 191",null,null,null,null,null,null,null,null,null,null,{"$f":"IFERROR(VLOOKUP(M202,Parameters!$G$4:$I$63,2,FALSE),\"\")","v":""}]
[null,null,"Verzekerde 192",null,null,null,null,null,null,null,null,null,null,{"$f":"IFERROR(VLOOKUP(M203,Parameters!$G$4:$I$63,2,FALSE),\"\")","v":""}]
[null,null,"Verzekerde 193",null,null,null,null,null,null,null,null,null,null,{"$f":"IFERROR(VLOOKUP(M204,Parameters!$G$4:$I$63,2,FALSE),\"\")","v":""}]
[null,null,"Verzekerde 194",null,null,null,null,null,null,null,null,null,null,{"$f":"IFERROR(VLOOKUP(M205,Parameters!$G$4:$I$63,2,FALSE),\"\")","v":""}]
[null,null,"Verzekerde 195",null,null,null,null,null,null,null,null,null,null,{"$f":"IFERROR(VLOOKUP(M206,Parameters!$G$4:$I$63,2,FALSE),\"\")","v":""}]
[null,null,"Verzekerde 196",null,null,null,null,null,null,null,null,null,null,{"$f":"IFERROR(VLOOKUP(M207,Parameters!$G$4:$I$63,2,FALSE),\"\")","v":""}]
[null,null,"Verzekerde 197",null,null,null,null,null,null,null,null,null,null,{"$f":"IFERROR(VLOOKUP(M208,Parameters!$G$4:$I$63,2,FALSE),\"\")","v":""}]
[null,null,"Verzekerde 198",null,null,null,null,null,null,null,null,null,null,{"$f":"IFERROR(VLOOKUP(M209,Parameters!$G$4:$I$63,2,FALSE),\"\")","v":""}]
[null,null,"Verzekerde 199",null,null,null,null,null,null,null,null,null,null,{"$f":"IFERROR(VLOOKUP(M210,Parameters!$G$4:$I$63,2,FALSE),\"\")","v":""}]
[null,null,"Verzekerde 200",null,null,null,null,null,null,null,null,null,null,{"$f":"IFERROR(VLOOKUP(M211,Parameters!$G$4:$I$63,2,FALSE),\"\")","v":""}]
[null,null,"Verzekerde 201",null,null,null,null,null,null,null,null,null,null,{"$f":"IFERROR(VLOOKUP(M212,Parameters!$G$4:$I$63,2,FALSE),\"\")","v":""}]
[null,null,"Verzekerde 202",null,null,null,null,null,null,null,null,null,null,{"$f":"IFERROR(VLOOKUP(M213,Parameters!$G$4:$I$63,2,FALSE),\"\")","v":""}]
[null,null,"Verzekerde 203",null,null,null,null,null,null,null,null,null,null,{"$f":"IFERROR(VLOOKUP(M214,Parameters!$G$4:$I$63,2,FALSE),\"\")","v":""}]
[null,null,"Verzekerde 204",null,null,null,null,null,null,null,null,null,null,{"$f":"IFERROR(VLOOKUP(M215,Parameters!$G$4:$I$63,2,FALSE),\"\")","v":""}]
[null,null,"Verzekerde 205",null,null,null,null,null,null,null,null,null,null,{"$f":"IFERROR(VLOOKUP(M216,Parameters!$G$4:$I$63,2,FALSE),\"\")","v":""}]
[null,null,"Verzekerde 206",null,null,null,null,null,null,null,null,null,null,{"$f":"IFERROR(VLOOKUP(M217,Parameters!$G$4:$I$63,2,FALSE),\"\")","v":""}]
[null,null,"Verzekerde 207",null,null,null,null,null,null,null,null,null,null,{"$f":"IFERROR(VLOOKUP(M218,Parameters!$G$4:$I$63,2,FALSE),\"\")","v":""}]
[null,null,"Verzekerde 208",null,null,null,null,null,null,null,null,null,null,{"$f":"IFERROR(VLOOKUP(M219,Parameters!$G$4:$I$63,2,FALSE),\"\")","v":""}]
[null,null,"Verzekerde 209",null,null,null,null,null,null,null,null,null,null,{"$f":"IFERROR(VLOOKUP(M220,Parameters!$G$4:$I$63,2,FALSE),\"\")","v":""}]
[null,null,"Verzekerde 210",null,null,null,null,null,null,null,null,null,null,{"$f":"IFERROR(VLOOKUP(M221,Parameters!$G$4:$I$63,2,FALSE),\"\")","v":""}]
[null,null,"Verzekerde 211",null,null,null,null,null,null,null,null,null,null,{"$f":"IFERROR(VLOOKUP(M222,Parameters!$G$4:$I$63,2,FALSE),\"\")","v":""}]
[null,null,"Verzekerde 212",null,null,null,null,null,null,null,null,null,null,{"$f":"IFERROR(VLOOKUP(M223,Parameters!$G$4:$I$63,2,FALSE),\"\")","v":""}]
[null,null,"Verzekerde 213",null,null,null,null,null,null,null,null,null,null,{"$f":"IFERROR(VLOOKUP(M224,Parameters!$G$4:$I$63,2,FALSE),\"\")","v":""}]
[null,null,"Verzekerde 214",null,null,null,null,null,null,null,null,null,null,{"$f":"IFERROR(VLOOKUP(M225,Parameters!$G$4:$I$63,2,FALSE),\"\")","v":""}]
[null,null,"Verzekerde 215",null,null,null,null,null,null,null,null,null,null,{"$f":"IFERROR(VLOOKUP(M226,Parameters!$G$4:$I$63,2,FALSE),\"\")","v":""}]
[null,null,"Verzekerde 216",null,null,null,null,null,null,null,null,null,null,{"$f":"IFERROR(VLOOKUP(M227,Parameters!$G$4:$I$63,2,FALSE),\"\")","v":""}]
[null,null,"Verzekerde 217",null,null,null,null,null,null,null,null,null,null,{"$f":"IFERROR(VLOOKUP(M228,Parameters!$G$4:$I$63,2,FALSE),\"\")","v":""}]
[null,null,"Verzekerde 218",null,null,null,null,null,null,null,null,null,null,{"$f":"IFERROR(VLOOKUP(M229,Parameters!$G$4:$I$63,2,FALSE),\"\")","v":""}]
[null,null,"Verzekerde 219",null,null,null,null,null,null,null,null,null,null,{"$f":"IFERROR(VLOOKUP(M230,Parameters!$G$4:$I$63,2,FALSE),\"\")","v":""}]
[null,null,"Verzekerde 220",null,null,null,null,null,null,null,null,null,null,{"$f":"IFERROR(VLOOKUP(M231,Parameters!$G$4:$I$63,2,FALSE),\"\")","v":""}]
[null,null,"Verzekerde 221",null,null,null,null,null,null,null,null,null,null,{"$f":"IFERROR(VLOOKUP(M232,Parameters!$G$4:$I$63,2,FALSE),\"\")","v":""}]
[null,null,"Verzekerde 222",null,null,null,null,null,null,null,null,null,null,{"$f":"IFERROR(VLOOKUP(M233,Parameters!$G$4:$I$63,2,FALSE),\"\")","v":""}]
[null,null,"Verzekerde 223",null,null,null,null,null,null,null,null,null,null,{"$f":"IFERROR(VLOOKUP(M234,Parameters!$G$4:$I$63,2,FALSE),\"\")","v":""}]
[null,null,"Verzekerde 224",null,null,null,null,null,null,null,null,null,null,{"$f":"IFERROR(VLOOKUP(M235,Parameters!$G$4:$I$63,2,FALSE),\"\")","v":""}]
[null,null,"Verzekerde 225",null,null,null,null,null,null,null,null,null,null,{"$f":"IFERROR(VLOOKUP(M236,Parameters!$G$4:$I$63,2,FALSE),\"\")","v":""}]
[null,null,"Verzekerde 226",null,null,null,null,null,null,null,null,null,null,{"$f":"IFERROR(VLOOKUP(M237,Parameters!$G$4:$I$63,2,FALSE),\"\")","v":""}]
[null,null,"Verzekerde 227",null,null,null,null,null,null,null,null,null,null,{"$f":"IFERROR(VLOOKUP(M238,Parameters!$G$4:$I$63,2,FALSE),\"\")","v":""}]
[null,null,"Verzekerde 228",null,null,null,null,null,null,null,null,null,null,{"$f":"IFERROR(VLOOKUP(M239,Parameters!$G$4:$I$63,2,FALSE),\"\")","v":""}]
[null,null,"Verzekerde 229",null,null,null,null,null,null,null,null,null,null,{"$f":"IFERROR(VLOOKUP(M240,Parameters!$G$4:$I$63,2,FALSE),\"\")","v":""}]
[null,null,"Verzekerde 230",null,null,null,null,null,null,null,null,null,null,{"$f":"IFERROR(VLOOKUP(M241,Parameters!$G$4:$I$63,2,FALSE),\"\")","v":""}]
[null,null,"Verzekerde 231",null,null,null,null,null,null,null,null,null,null,{"$f":"IFERROR(VLOOKUP(M242,Parameters!$G$4:$I$63,2,FALSE),\"\")","v":""}]
[null,null,"Verzekerde 232",null,null,null,null,null,null,null,null,null,null,{"$f":"IFERROR(VLOOKUP(M243,Parameters!$G$4:$I$63,2,FALSE),\"\")","v":""}]
[null,null,"Verzekerde 233",null,null,null,null,null,null,null,null,null,null,{"$f":"IFERROR(VLOOKUP(M244,Parameters!$G$4:$I$63,2,FALSE),\"\")","v":""}]
[null,null,"Verzekerde 234",null,null,null,null,null,null,null,null,null,null,{"$f":"IFERROR(VLOOKUP(M245,Parameters!$G$4:$I$63,2,FALSE),\"\")","v":""}]
[null,null,"Verzekerde 235",null,null,null,null,null,null,null,null,null,null,{"$f":"IFERROR(VLOOKUP(M246,Parameters!$G$4:$I$63,2,FALSE),\"\")","v":""}]
[null,null,"Verzekerde 236",null,null,null,null,null,null,null,null,null,null,{"$f":"IFERROR(VLOOKUP(M247,Parameters!$G$4:$I$63,2,FALSE),\"\")","v":""}]
[null,null,"Verzekerde 237",null,null,null,null,null,null,null,null,null,null,{"$f":"IFERROR(VLOOKUP(M248,Parameters!$G$4:$I$63,2,FALSE),\"\")","v":""}]
[null,null,"Verzekerde 238",null,null,null,null,null,null,null,null,null,null,{"$f":"IFERROR(VLOOKUP(M249,Parameters!$G$4:$I$63,2,FALSE),\"\")","v":""}]
[null,null,"Verzekerde 239",null,null,null,null,null,null,null,null,null,null,{"$f":"IFERROR(VLOOKUP(M250,Parameters!$G$4:$I$63,2,FALSE),\"\")","v":""}]
[null,null,"Verzekerde 240",null,null,null,null,null,null,null,null,null,null,{"$f":"IFERROR(VLOOKUP(M251,Parameters!$G$4:$I$63,2,FALSE),\"\")","v":""}]
[null,null,"Verzekerde 241",null,null,null,null,null,null,null,null,null,null,{"$f":"IFERROR(VLOOKUP(M252,Parameters!$G$4:$I$63,2,FALSE),\"\")","v":""}]
[null,null,"Verzekerde 242",null,null,null,null,null,null,null,null,null,null,{"$f":"IFERROR(VLOOKUP(M253,Parameters!$G$4:$I$63,2,FALSE),\"\")","v":""}]
[null,null,"Verzekerde 243",null,null,null,null,null,null,null,null,null,null,{"$f":"IFERROR(VLOOKUP(M254,Parameters!$G$4:$I$63,2,FALSE),\"\")","v":""}]
[null,null,"Verzekerde 244",null,null,null,null,null,null,null,null,null,null,{"$f":"IFERROR(VLOOKUP(M255,Parameters!$G$4:$I$63,2,FALSE),\"\")","v":""}]
[null,null,"Verzekerde 245",null,null,null,null,null,null,null,null,null,null,{"$f":"IFERROR(VLOOKUP(M256,Parameters!$G$4:$I$63,2,FALSE),\"\")","v":""}]
[null,null,"Verzekerde 246",null,null,null,null,null,null,null,null,null,null,{"$f":"IFERROR(VLOOKUP(M257,Parameters!$G$4:$I$63,2,FALSE),\"\")","v":""}]
[null,null,"Verzekerde 247",null,null,null,null,null,null,null,null,null,null,{"$f":"IFERROR(VLOOKUP(M258,Parameters!$G$4:$I$63,2,FALSE),\"\")","v":""}]
[null,null,"Verzekerde 248",null,null,null,null,null,null,null,null,null,null,{"$f":"IFERROR(VLOOKUP(M259,Parameters!$G$4:$I$63,2,FALSE),\"\")","v":""}]
[null,null,"Verzekerde 249",null,null,null,null,null,null,null,null,null,null,{"$f":"IFERROR(VLOOKUP(M260,Parameters!$G$4:$I$63,2,FALSE),\"\")","v":""}]
[null,null,"Verzekerde 250",null,null,null,null,null,null,null,null,null,null,{"$f":"IFERROR(VLOOKUP(M261,Parameters!$G$4:$I$63,2,FALSE),\"\")","v":""}]
[null,null,"Verzekerde 251",null,null,null,null,null,null,null,null,null,null,{"$f":"IFERROR(VLOOKUP(M262,Parameters!$G$4:$I$63,2,FALSE),\"\")","v":""}]
[null,null,"Verzekerde 252",null,null,null,null,null,null,null,null,null,null,{"$f":"IFERROR(VLOOKUP(M263,Parameters!$G$4:$I$63,2,FALSE),\"\")","v":""}]
[null,null,"Verzekerde 253",null,null,null,null,null,null,null,null,null,null,{"$f":"IFERROR(VLOOKUP(M264,Parameters!$G$4:$I$63,2,FALSE),\"\")","v":""}]
[null,null,"Verzekerde 254",null,null,null,null,null,null,null,null,null,null,{"$f":"IFERROR(VLOOKUP(M265,Parameters!$G$4:$I$63,2,FALSE),\"\")","v":""}]
[null,null,"Verzekerde 255",null,null,null,null,null,null,null,null,null,null,{"$f":"IFERROR(VLOOKUP(M266,Parameters!$G$4:$I$63,2,FALSE),\"\")","v":""}]
[null,null,"Verzekerde 256",null,null,null,null,null,null,null,null,null,null,{"$f":"IFERROR(VLOOKUP(M267,Parameters!$G$4:$I$63,2,FALSE),\"\")","v":""}]
[null,null,"Verzekerde 257",null,null,null,null,null,null,null,null,null,null,{"$f":"IFERROR(VLOOKUP(M268,Parameters!$G$4:$I$63,2,FALSE),\"\")","v":""}]
[null,null,"Verzekerde 258",null,null,null,null,null,null,null,null,null,null,{"$f":"IFERROR(VLOOKUP(M269,Parameters!$G$4:$I$63,2,FALSE),\"\")","v":""}]
[null,null,"Verzekerde 259",null,null,null,null,null,null,null,null,null,null,{"$f":"IFERROR(VLOOKUP(M270,Parameters!$G$4:$I$63,2,FALSE),\"\")","v":""}]
[null,null,"Verzekerde 260",null,null,null,null,null,null,null,null,null,null,{"$f":"IFERROR(VLOOKUP(M271,Parameters!$G$4:$I$63,2,FALSE),\"\")","v":""}]
[null,null,"Verzekerde 261",null,null,null,null,null,null,null,null,null,null,{"$f":"IFERROR(VLOOKUP(M272,Parameters!$G$4:$I$63,2,FALSE),\"\")","v":""}]
[null,null,"Verzekerde 262",null,null,null,null,null,null,null,null,null,null,{"$f":"IFERROR(VLOOKUP(M273,Parameters!$G$4:$I$63,2,FALSE),\"\")","v":""}]
[null,null,"Verzekerde 263",null,null,null,null,null,null,null,null,null,null,{"$f":"IFERROR(VLOOKUP(M274,Parameters!$G$4:$I$63,2,FALSE),\"\")","v":""}]
[null,null,"Verzekerde 264",null,null,null,null,null,null,null,null,null,null,{"$f":"IFERROR(VLOOKUP(M275,Parameters!$G$4:$I$63,2,FALSE),\"\")","v":""}]
[null,null,"Verzekerde 265",null,null,null,null,null,null,null,null,null,null,{"$f":"IFERROR(VLOOKUP(M276,Parameters!$G$4:$I$63,2,FALSE),\"\")","v":""}]
[null,null,"Verzekerde 266",null,null,null,null,null,null,null,null,null,null,{"$f":"IFERROR(VLOOKUP(M277,Parameters!$G$4:$I$63,2,FALSE),\"\")","v":""}]
[null,null,"Verzekerde 267",null,null,null,null,null,null,null,null,null,null,{"$f":"IFERROR(VLOOKUP(M278,Parameters!$G$4:$I$63,2,FALSE),\"\")","v":""}]
[null,null,"Verzekerde 268",null,null,null,null,null,null,null,null,null,null,{"$f":"IFERROR(VLOOKUP(M279,Parameters!$G$4:$I$63,2,FALSE),\"\")","v":""}]
[null,null,"Verzekerde 269",null,null,null,null,null,null,null,null,null,null,{"$f":"IFERROR(VLOOKUP(M280,Parameters!$G$4:$I$63,2,FALSE),\"\")","v":""}]
[null,null,"Verzekerde 270",null,null,null,null,null,null,null,null,null,null,{"$f":"IFERROR(VLOOKUP(M281,Parameters!$G$4:$I$63,2,FALSE),\"\")","v":""}]
[null,null,"Verzekerde 271",null,null,null,null,null,null,null,null,null,null,{"$f":"IFERROR(VLOOKUP(M282,Parameters!$G$4:$I$63,2,FALSE),\"\")","v":""}]
[null,null,"Verzekerde 272",null,null,null,null,null,null,null,null,null,null,{"$f":"IFERROR(VLOOKUP(M283,Parameters!$G$4:$I$63,2,FALSE),\"\")","v":""}]
[null,null,"Verzekerde 273",null,null,null,null,null,null,null,null,null,null,{"$f":"IFERROR(VLOOKUP(M284,Parameters!$G$4:$I$63,2,FALSE),\"\")","v":""}]
[null,null,"Verzekerde 274",null,null,null,null,null,null,null,null,null,null,{"$f":"IFERROR(VLOOKUP(M285,Parameters!$G$4:$I$63,2,FALSE),\"\")","v":""}]
[null,null,"Verzekerde 275",null,null,null,null,null,null,null,null,null,null,{"$f":"IFERROR(VLOOKUP(M286,Parameters!$G$4:$I$63,2,FALSE),\"\")","v":""}]
[null,null,"Verzekerde 276",null,null,null,null,null,null,null,null,null,null,{"$f":"IFERROR(VLOOKUP(M287,Parameters!$G$4:$I$63,2,FALSE),\"\")","v":""}]
[null,null,"Verzekerde 277",null,null,null,null,null,null,null,null,null,null,{"$f":"IFERROR(VLOOKUP(M288,Parameters!$G$4:$I$63,2,FALSE),\"\")","v":""}]
[null,null,"Verzekerde 278",null,null,null,null,null,null,null,null,null,null,{"$f":"IFERROR(VLOOKUP(M289,Parameters!$G$4:$I$63,2,FALSE),\"\")","v":""}]
[null,null,"Verzekerde 279",null,null,null,null,null,null,null,null,null,null,{"$f":"IFERROR(VLOOKUP(M290,Parameters!$G$4:$I$63,2,FALSE),\"\")","v":""}]
[null,null,"Verzekerde 280",null,null,null,null,null,null,null,null,null,null,{"$f":"IFERROR(VLOOKUP(M291,Parameters!$G$4:$I$63,2,FALSE),\"\")","v":""}]
[null,null,"Verzekerde 281",null,null,null,null,null,null,null,null,null,null,{"$f":"IFERROR(VLOOKUP(M292,Parameters!$G$4:$I$63,2,FALSE),\"\")","v":""}]
[null,null,"Verzekerde 282",null,null,null,null,null,null,null,null,null,null,{"$f":"IFERROR(VLOOKUP(M293,Parameters!$G$4:$I$63,2,FALSE),\"\")","v":""}]
[null,null,"Verzekerde 283",null,null,null,null,null,null,null,null,null,null,{"$f":"IFERROR(VLOOKUP(M294,Parameters!$G$4:$I$63,2,FALSE),\"\")","v":""}]
[null,null,"Verzekerde 284",null,null,null,null,null,null,null,null,null,null,{"$f":"IFERROR(VLOOKUP(M295,Parameters!$G$4:$I$63,2,FALSE),\"\")","v":""}]
[null,null,"Verzekerde 285",null,null,null,null,null,null,null,null,null,null,{"$f":"IFERROR(VLOOKUP(M296,Parameters!$G$4:$I$63,2,FALSE),\"\")","v":""}]
[null,null,"Verzekerde 286",null,null,null,null,null,null,null,null,null,null,{"$f":"IFERROR(VLOOKUP(M297,Parameters!$G$4:$I$63,2,FALSE),\"\")","v":""}]
[null,null,"Verzekerde 287",null,null,null,null,null,null,null,null,null,null,{"$f":"IFERROR(VLOOKUP(M298,Parameters!$G$4:$I$63,2,FALSE),\"\")","v":""}]
[null,null,"Verzekerde 288",null,null,null,null,null,null,null,null,null,null,{"$f":"IFERROR(VLOOKUP(M299,Parameters!$G$4:$I$63,2,FALSE),\"\")","v":""}]
[null,null,"Verzekerde 289",null,null,null,null,null,null,null,null,null,null,{"$f":"IFERROR(VLOOKUP(M300,Parameters!$G$4:$I$63,2,FALSE),\"\")","v":""}]
[null,null,"Verzekerde 290",null,null,null,null,null,null,null,null,null,null,{"$f":"IFERROR(VLOOKUP(M301,Parameters!$G$4:$I$63,2,FALSE),\"\")","v":""}]
[null,null,"Verzekerde 291",null,null,null,null,null,null,null,null,null,null,{"$f":"IFERROR(VLOOKUP(M302,Parameters!$G$4:$I$63,2,FALSE),\"\")","v":""}]
[null,null,"Verzekerde 292",null,null,null,null,null,null,null,null,null,null,{"$f":"IFERROR(VLOOKUP(M303,Parameters!$G$4:$I$63,2,FALSE),\"\")","v":""}]
[null,null,"Verzekerde 293",null,null,null,null,null,null,null,null,null,null,{"$f":"IFERROR(VLOOKUP(M304,Parameters!$G$4:$I$63,2,FALSE),\"\")","v":""}]
[null,null,"Verzekerde 294",null,null,null,null,null,null,null,null,null,null,{"$f":"IFERROR(VLOOKUP(M305,Parameters!$G$4:$I$63,2,FALSE),\"\")","v":""}]
[null,null,"Verzekerde 295",null,null,null,null,null,null,null,null,null,null,{"$f":"IFERROR(VLOOKUP(M306,Parameters!$G$4:$I$63,2,FALSE),\"\")","v":""}]
[null,null,"Verzekerde 296",null,null,null,null,null,null,null,null,null,null,{"$f":"IFERROR(VLOOKUP(M307,Parameters!$G$4:$I$63,2,FALSE),\"\")","v":""}]
[null,null,"Verzekerde 297",null,null,null,null,null,null,null,null,null,null,{"$f":"IFERROR(VLOOKUP(M308,Parameters!$G$4:$I$63,2,FALSE),\"\")","v":""}]
[null,null,"Verzekerde 298",null,null,null,null,null,null,null,null,null,null,{"$f":"IFERROR(VLOOKUP(M309,Parameters!$G$4:$I$63,2,FALSE),\"\")","v":""}]
[null,null,"Verzekerde 299",null,null,null,null,null,null,null,null,null,null,{"$f":"IFERROR(VLOOKUP(M310,Parameters!$G$4:$I$63,2,FALSE),\"\")","v":""}]
[null,null,"Verzekerde 300",null,null,null,null,null,null,null,null,null,null,{"$f":"IFERROR(VLOOKUP(M311,Parameters!$G$4:$I$63,2,FALSE),\"\")","v":""}]
[null,null,"Verzekerde 301",null,null,null,null,null,null,null,null,null,null,{"$f":"IFERROR(VLOOKUP(M312,Parameters!$G$4:$I$63,2,FALSE),\"\")","v":""}]
[null,null,"Verzekerde 302",null,null,null,null,null,null,null,null,null,null,{"$f":"IFERROR(VLOOKUP(M313,Parameters!$G$4:$I$63,2,FALSE),\"\")","v":""}]
[null,null,"Verzekerde 303",null,null,null,null,null,null,null,null,null,null,{"$f":"IFERROR(VLOOKUP(M314,Parameters!$G$4:$I$63,2,FALSE),\"\")","v":""}]
[null,null,"Verzekerde 304",null,null,null,null,null,null,null,null,null,null,{"$f":"IFERROR(VLOOKUP(M315,Parameters!$G$4:$I$63,2,FALSE),\"\")","v":""}]
[null,null,"Verzekerde 305",null,null,null,null,null,null,null,null,null,null,{"$f":"IFERROR(VLOOKUP(M316,Parameters!$G$4:$I$63,2,FALSE),\"\")","v":""}]
[null,null,"Verzekerde 306",null,null,null,null,null,null,null,null,null,null,{"$f":"IFERROR(VLOOKUP(M317,Parameters!$G$4:$I$63,2,FALSE),\"\")","v":""}]
[null,null,"Verzekerde 307",null,null,null,null,null,null,null,null,null,null,{"$f":"IFERROR(VLOOKUP(M318,Parameters!$G$4:$I$63,2,FALSE),\"\")","v":""}]
[null,null,"Verzekerde 308",null,null,null,null,null,null,null,null,null,null,{"$f":"IFERROR(VLOOKUP(M319,Parameters!$G$4:$I$63,2,FALSE),\"\")","v":""}]
[null,null,"Verzekerde 309",null,null,null,null,null,null,null,null,null,null,{"$f":"IFERROR(VLOOKUP(M320,Parameters!$G$4:$I$63,2,FALSE),\"\")","v":""}]
[null,null,"Verzekerde 310",null,null,null,null,null,null,null,null,null,null,{"$f":"IFERROR(VLOOKUP(M321,Parameters!$G$4:$I$63,2,FALSE),\"\")","v":""}]
[null,null,"Verzekerde 311",null,null,null,null,null,null,null,null,null,null,{"$f":"IFERROR(VLOOKUP(M322,Parameters!$G$4:$I$63,2,FALSE),\"\")","v":""}]
[null,null,"Verzekerde 312",null,null,null,null,null,null,null,null,null,null,{"$f":"IFERROR(VLOOKUP(M323,Parameters!$G$4:$I$63,2,FALSE),\"\")","v":""}]
[null,null,"Verzekerde 313",null,null,null,null,null,null,null,null,null,null,{"$f":"IFERROR(VLOOKUP(M324,Parameters!$G$4:$I$63,2,FALSE),\"\")","v":""}]
[null,null,"Verzekerde 314",null,null,null,null,null,null,null,null,null,null,{"$f":"IFERROR(VLOOKUP(M325,Parameters!$G$4:$I$63,2,FALSE),\"\")","v":""}]
[null,null,"Verzekerde 315",null,null,null,null,null,null,null,null,null,null,{"$f":"IFERROR(VLOOKUP(M326,Parameters!$G$4:$I$63,2,FALSE),\"\")","v":""}]
[null,null,"Verzekerde 316",null,null,null,null,null,null,null,null,null,null,{"$f":"IFERROR(VLOOKUP(M327,Parameters!$G$4:$I$63,2,FALSE),\"\")","v":""}]
[null,null,"Verzekerde 317",null,null,null,null,null,null,null,null,null,null,{"$f":"IFERROR(VLOOKUP(M328,Parameters!$G$4:$I$63,2,FALSE),\"\")","v":""}]
[null,null,"Verzekerde 318",null,null,null,null,null,null,null,null,null,null,{"$f":"IFERROR(VLOOKUP(M329,Parameters!$G$4:$I$63,2,FALSE),\"\")","v":""}]
[null,null,"Verzekerde 319",null,null,null,null,null,null,null,null,null,null,{"$f":"IFERROR(VLOOKUP(M330,Parameters!$G$4:$I$63,2,FALSE),\"\")","v":""}]
[null,null,"Verzekerde 320",null,null,null,null,null,null,null,null,null,null,{"$f":"IFERROR(VLOOKUP(M331,Parameters!$G$4:$I$63,2,FALSE),\"\")","v":""}]
[null,null,"Verzekerde 321",null,null,null,null,null,null,null,null,null,null,{"$f":"IFERROR(VLOOKUP(M332,Parameters!$G$4:$I$63,2,FALSE),\"\")","v":""}]
[null,null,"Verzekerde 322",null,null,null,null,null,null,null,null,null,null,{"$f":"IFERROR(VLOOKUP(M333,Parameters!$G$4:$I$63,2,FALSE),\"\")","v":""}]
[null,null,"Verzekerde 323",null,null,null,null,null,null,null,null,null,null,{"$f":"IFERROR(VLOOKUP(M334,Parameters!$G$4:$I$63,2,FALSE),\"\")","v":""}]
[null,null,"Verzekerde 324",null,null,null,null,null,null,null,null,null,null,{"$f":"IFERROR(VLOOKUP(M335,Parameters!$G$4:$I$63,2,FALSE),\"\")","v":""}]
[null,null,"Verzekerde 325",null,null,null,null,null,null,null,null,null,null,{"$f":"IFERROR(VLOOKUP(M336,Parameters!$G$4:$I$63,2,FALSE),\"\")","v":""}]
[null,null,"Verzekerde 326",null,null,null,null,null,null,null,null,null,null,{"$f":"IFERROR(VLOOKUP(M337,Parameters!$G$4:$I$63,2,FALSE),\"\")","v":""}]
[null,null,"Verzekerde 327",null,null,null,null,null,null,null,null,null,null,{"$f":"IFERROR(VLOOKUP(M338,Parameters!$G$4:$I$63,2,FALSE),\"\")","v":""}]
[null,null,"Verzekerde 328",null,null,null,null,null,null,null,null,null,null,{"$f":"IFERROR(VLOOKUP(M339,Parameters!$G$4:$I$63,2,FALSE),\"\")","v":""}]
[null,null,"Verzekerde 329",null,null,null,null,null,null,null,null,null,null,{"$f":"IFERROR(VLOOKUP(M340,Parameters!$G$4:$I$63,2,FALSE),\"\")","v":""}]
[null,null,"Verzekerde 330",null,null,null,null,null,null,null,null,null,null,{"$f":"IFERROR(VLOOKUP(M341,Parameters!$G$4:$I$63,2,FALSE),\"\")","v":""}]
[null,null,"Verzekerde 331",null,null,null,null,null,null,null,null,null,null,{"$f":"IFERROR(VLOOKUP(M342,Parameters!$G$4:$I$63,2,FALSE),\"\")","v":""}]
[null,null,"Verzekerde 332",null,null,null,null,null,null,null,null,null,null,{"$f":"IFERROR(VLOOKUP(M343,Parameters!$G$4:$I$63,2,FALSE),\"\")","v":""}]
[null,null,"Verzekerde 333",null,null,null,null,null,null,null,null,null,null,{"$f":"IFERROR(VLOOKUP(M344,Parameters!$G$4:$I$63,2,FALSE),\"\")","v":""}]
[null,null,"Verzekerde 334",null,null,null,null,null,null,null,null,null,null,{"$f":"IFERROR(VLOOKUP(M345,Parameters!$G$4:$I$63,2,FALSE),\"\")","v":""}]
[null,null,"Verzekerde 335",null,null,null,null,null,null,null,null,null,null,{"$f":"IFERROR(VLOOKUP(M346,Parameters!$G$4:$I$63,2,FALSE),\"\")","v":""}]
[null,null,"Verzekerde 336",null,null,null,null,null,null,null,null,null,null,{"$f":"IFERROR(VLOOKUP(M347,Parameters!$G$4:$I$63,2,FALSE),\"\")","v":""}]
[null,null,"Verzekerde 337",null,null,null,null,null,null,null,null,null,null,{"$f":"IFERROR(VLOOKUP(M348,Parameters!$G$4:$I$63,2,FALSE),\"\")","v":""}]
[null,null,"Verzekerde 338",null,null,null,null,null,null,null,null,null,null,{"$f":"IFERROR(VLOOKUP(M349,Parameters!$G$4:$I$63,2,FALSE),\"\")","v":""}]
[null,null,"Verzekerde 339",null,null,null,null,null,null,null,null,null,null,{"$f":"IFERROR(VLOOKUP(M350,Parameters!$G$4:$I$63,2,FALSE),\"\")","v":""}]
[null,null,"Verzekerde 340",null,null,null,null,null,null,null,null,null,null,{"$f":"IFERROR(VLOOKUP(M351,Parameters!$G$4:$I$63,2,FALSE),\"\")","v":""}]
[null,null,"Verzekerde 341",null,null,null,null,null,null,null,null,null,null,{"$f":"IFERROR(VLOOKUP(M352,Parameters!$G$4:$I$63,2,FALSE),\"\")","v":""}]
[null,null,"Verzekerde 342",null,null,null,null,null,null,null,null,null,null,{"$f":"IFERROR(VLOOKUP(M353,Parameters!$G$4:$I$63,2,FALSE),\"\")","v":""}]
[null,null,"Verzekerde 343",null,null,null,null,null,null,null,null,null,null,{"$f":"IFERROR(VLOOKUP(M354,Parameters!$G$4:$I$63,2,FALSE),\"\")","v":""}]
[null,null,"Verzekerde 344",null,null,null,null,null,null,null,null,null,null,{"$f":"IFERROR(VLOOKUP(M355,Parameters!$G$4:$I$63,2,FALSE),\"\")","v":""}]
[null,null,"Verzekerde 345",null,null,null,null,null,null,null,null,null,null,{"$f":"IFERROR(VLOOKUP(M356,Parameters!$G$4:$I$63,2,FALSE),\"\")","v":""}]
[null,null,"Verzekerde 346",null,null,null,null,null,null,null,null,null,null,{"$f":"IFERROR(VLOOKUP(M357,Parameters!$G$4:$I$63,2,FALSE),\"\")","v":""}]
[null,null,"Verzekerde 347",null,null,null,null,null,null,null,null,null,null,{"$f":"IFERROR(VLOOKUP(M358,Parameters!$G$4:$I$63,2,FALSE),\"\")","v":""}]
[null,null,"Verzekerde 348",null,null,null,null,null,null,null,null,null,null,{"$f":"IFERROR(VLOOKUP(M359,Parameters!$G$4:$I$63,2,FALSE),\"\")","v":""}]
[null,null,"Verzekerde 349",null,null,null,null,null,null,null,null,null,null,{"$f":"IFERROR(VLOOKUP(M360,Parameters!$G$4:$I$63,2,FALSE),\"\")","v":""}]
[null,null,"Verzekerde 350",null,null,null,null,null,null,null,null,null,null,{"$f":"IFERROR(VLOOKUP(M361,Parameters!$G$4:$I$63,2,FALSE),\"\")","v":""}]
[null,null,"Verzekerde 351",null,null,null,null,null,null,null,null,null,null,{"$f":"IFERROR(VLOOKUP(M362,Parameters!$G$4:$I$63,2,FALSE),\"\")","v":""}]
[null,null,"Verzekerde 352",null,null,null,null,null,null,null,null,null,null,{"$f":"IFERROR(VLOOKUP(M363,Parameters!$G$4:$I$63,2,FALSE),\"\")","v":""}]
[null,null,"Verzekerde 353",null,null,null,null,null,null,null,null,null,null,{"$f":"IFERROR(VLOOKUP(M364,Parameters!$G$4:$I$63,2,FALSE),\"\")","v":""}]
[null,null,"Verzekerde 354",null,null,null,null,null,null,null,null,null,null,{"$f":"IFERROR(VLOOKUP(M365,Parameters!$G$4:$I$63,2,FALSE),\"\")","v":""}]
[null,null,"Verzekerde 355",null,null,null,null,null,null,null,null,null,null,{"$f":"IFERROR(VLOOKUP(M366,Parameters!$G$4:$I$63,2,FALSE),\"\")","v":""}]
[null,null,"Verzekerde 356",null,null,null,null,null,null,null,null,null,null,{"$f":"IFERROR(VLOOKUP(M367,Parameters!$G$4:$I$63,2,FALSE),\"\")","v":""}]
[null,null,"Verzekerde 357",null,null,null,null,null,null,null,null,null,null,{"$f":"IFERROR(VLOOKUP(M368,Parameters!$G$4:$I$63,2,FALSE),\"\")","v":""}]
[null,null,"Verzekerde 358",null,null,null,null,null,null,null,null,null,null,{"$f":"IFERROR(VLOOKUP(M369,Parameters!$G$4:$I$63,2,FALSE),\"\")","v":""}]
[null,null,"Verzekerde 359",null,null,null,null,null,null,null,null,null,null,{"$f":"IFERROR(VLOOKUP(M370,Parameters!$G$4:$I$63,2,FALSE),\"\")","v":""}]
[null,null,"Verzekerde 360",null,null,null,null,null,null,null,null,null,null,{"$f":"IFERROR(VLOOKUP(M371,Parameters!$G$4:$I$63,2,FALSE),\"\")","v":""}]
[null,null,"Verzekerde 361",null,null,null,null,null,null,null,null,null,null,{"$f":"IFERROR(VLOOKUP(M372,Parameters!$G$4:$I$63,2,FALSE),\"\")","v":""}]
[null,null,"Verzekerde 362",null,null,null,null,null,null,null,null,null,null,{"$f":"IFERROR(VLOOKUP(M373,Parameters!$G$4:$I$63,2,FALSE),\"\")","v":""}]
[null,null,"Verzekerde 363",null,null,null,null,null,null,null,null,null,null,{"$f":"IFERROR(VLOOKUP(M374,Parameters!$G$4:$I$63,2,FALSE),\"\")","v":""}]
[null,null,"Verzekerde 364",null,null,null,null,null,null,null,null,null,null,{"$f":"IFERROR(VLOOKUP(M375,Parameters!$G$4:$I$63,2,FALSE),\"\")","v":""}]
[null,null,"Verzekerde 365",null,null,null,null,null,null,null,null,null,null,{"$f":"IFERROR(VLOOKUP(M376,Parameters!$G$4:$I$63,2,FALSE),\"\")","v":""}]
[null,null,"Verzekerde 366",null,null,null,null,null,null,null,null,null,null,{"$f":"IFERROR(VLOOKUP(M377,Parameters!$G$4:$I$63,2,FALSE),\"\")","v":""}]
[null,null,"Verzekerde 367",null,null,null,null,null,null,null,null,null,null,{"$f":"IFERROR(VLOOKUP(M378,Parameters!$G$4:$I$63,2,FALSE),\"\")","v":""}]
[null,null,"Verzekerde 368",null,null,null,null,null,null,null,null,null,null,{"$f":"IFERROR(VLOOKUP(M379,Parameters!$G$4:$I$63,2,FALSE),\"\")","v":""}]
[null,null,"Verzekerde 369",null,null,null,null,null,null,null,null,null,null,{"$f":"IFERROR(VLOOKUP(M380,Parameters!$G$4:$I$63,2,FALSE),\"\")","v":""}]
[null,null,"Verzekerde 370",null,null,null,null,null,null,null,null,null,null,{"$f":"IFERROR(VLOOKUP(M381,Parameters!$G$4:$I$63,2,FALSE),\"\")","v":""}]
[null,null,"Verzekerde 371",null,null,null,null,null,null,null,null,null,null,{"$f":"IFERROR(VLOOKUP(M382,Parameters!$G$4:$I$63,2,FALSE),\"\")","v":""}]
[null,null,"Verzekerde 372",null,null,null,null,null,null,null,null,null,null,{"$f":"IFERROR(VLOOKUP(M383,Parameters!$G$4:$I$63,2,FALSE),\"\")","v":""}]
[null,null,"Verzekerde 373",null,null,null,null,null,null,null,null,null,null,{"$f":"IFERROR(VLOOKUP(M384,Parameters!$G$4:$I$63,2,FALSE),\"\")","v":""}]
[null,null,"Verzekerde 374",null,null,null,null,null,null,null,null,null,null,{"$f":"IFERROR(VLOOKUP(M385,Parameters!$G$4:$I$63,2,FALSE),\"\")","v":""}]
[null,null,"Verzekerde 375",null,null,null,null,null,null,null,null,null,null,{"$f":"IFERROR(VLOOKUP(M386,Parameters!$G$4:$I$63,2,FALSE),\"\")","v":""}]
[null,null,"Verzekerde 376",null,null,null,null,null,null,null,null,null,null,{"$f":"IFERROR(VLOOKUP(M387,Parameters!$G$4:$I$63,2,FALSE),\"\")","v":""}]
[null,null,"Verzekerde 377",null,null,null,null,null,null,null,null,null,null,{"$f":"IFERROR(VLOOKUP(M388,Parameters!$G$4:$I$63,2,FALSE),\"\")","v":""}]
[null,null,"Verzekerde 378",null,null,null,null,null,null,null,null,null,null,{"$f":"IFERROR(VLOOKUP(M389,Parameters!$G$4:$I$63,2,FALSE),\"\")","v":""}]
[null,null,"Verzekerde 379",null,null,null,null,null,null,null,null,null,null,{"$f":"IFERROR(VLOOKUP(M390,Parameters!$G$4:$I$63,2,FALSE),\"\")","v":""}]
[null,null,"Verzekerde 380",null,null,null,null,null,null,null,null,null,null,{"$f":"IFERROR(VLOOKUP(M391,Parameters!$G$4:$I$63,2,FALSE),\"\")","v":""}]
[null,null,"Verzekerde 381",null,null,null,null,null,null,null,null,null,null,{"$f":"IFERROR(VLOOKUP(M392,Parameters!$G$4:$I$63,2,FALSE),\"\")","v":""}]
[null,null,"Verzekerde 382",null,null,null,null,null,null,null,null,null,null,{"$f":"IFERROR(VLOOKUP(M393,Parameters!$G$4:$I$63,2,FALSE),\"\")","v":""}]
[null,null,"Verzekerde 383",null,null,null,null,null,null,null,null,null,null,{"$f":"IFERROR(VLOOKUP(M394,Parameters!$G$4:$I$63,2,FALSE),\"\")","v":""}]
[null,null,"Verzekerde 384",null,null,null,null,null,null,null,null,null,null,{"$f":"IFERROR(VLOOKUP(M395,Parameters!$G$4:$I$63,2,FALSE),\"\")","v":""}]
[null,null,"Verzekerde 385",null,null,null,null,null,null,null,null,null,null,{"$f":"IFERROR(VLOOKUP(M396,Parameters!$G$4:$I$63,2,FALSE),\"\")","v":""}]
[null,null,"Verzekerde 386",null,null,null,null,null,null,null,null,null,null,{"$f":"IFERROR(VLOOKUP(M397,Parameters!$G$4:$I$63,2,FALSE),\"\")","v":""}]
[null,null,"Verzekerde 387",null,null,null,null,null,null,null,null,null,null,{"$f":"IFERROR(VLOOKUP(M398,Parameters!$G$4:$I$63,2,FALSE),\"\")","v":""}]
[null,null,"Verzekerde 388",null,null,null,null,null,null,null,null,null,null,{"$f":"IFERROR(VLOOKUP(M399,Parameters!$G$4:$I$63,2,FALSE),\"\")","v":""}]
[null,null,"Verzekerde 389",null,null,null,null,null,null,null,null,null,null,{"$f":"IFERROR(VLOOKUP(M400,Parameters!$G$4:$I$63,2,FALSE),\"\")","v":""}]
[null,null,"Verzekerde 390",null,null,null,null,null,null,null,null,null,null,{"$f":"IFERROR(VLOOKUP(M401,Parameters!$G$4:$I$63,2,FALSE),\"\")","v":""}]
[null,null,"Verzekerde 391",null,null,null,null,null,null,null,null,null,null,{"$f":"IFERROR(VLOOKUP(M402,Parameters!$G$4:$I$63,2,FALSE),\"\")","v":""}]
[null,null,"Verzekerde 392",null,null,null,null,null,null,null,null,null,null,{"$f":"IFERROR(VLOOKUP(M403,Parameters!$G$4:$I$63,2,FALSE),\"\")","v":""}]
[null,null,"Verzekerde 393",null,null,null,null,null,null,null,null,null,null,{"$f":"IFERROR(VLOOKUP(M404,Parameters!$G$4:$I$63,2,FALSE),\"\")","v":""}]
[null,null,"Verzekerde 394",null,null,null,null,null,null,null,null,null,null,{"$f":"IFERROR(VLOOKUP(M405,Parameters!$G$4:$I$63,2,FALSE),\"\")","v":""}]
[null,null,"Verzekerde 395",null,null,null,null,null,null,null,null,null,null,{"$f":"IFERROR(VLOOKUP(M406,Parameters!$G$4:$I$63,2,FALSE),\"\")","v":""}]
[null,null,"Verzekerde 396",null,null,null,null,null,null,null,null,null,null,{"$f":"IFERROR(VLOOKUP(M407,Parameters!$G$4:$I$63,2,FALSE),\"\")","v":""}]
[null,null,"Verzekerde 397",null,null,null,null,null,null,null,null,null,null,{"$f":"IFERROR(VLOOKUP(M408,Parameters!$G$4:$I$63,2,FALSE),\"\")","v":""}]
[null,null,"Verzekerde 398",null,null,null,null,null,null,null,null,null,null,{"$f":"IFERROR(VLOOKUP(M409,Parameters!$G$4:$I$63,2,FALSE),\"\")","v":""}]
[null,null,"Verzekerde 399",null,null,null,null,null,null,null,null,null,null,{"$f":"IFERROR(VLOOKUP(M410,Parameters!$G$4:$I$63,2,FALSE),\"\")","v":""}]
[null,null,"Verzekerde 400",null,null,null,null,null,null,null,null,null,null,{"$f":"IFERROR(VLOOKUP(M411,Parameters!$G$4:$I$63,2,FALSE),\"\")","v":""}]
[null,null,"Verzekerde 401",null,null,null,null,null,null,null,null,null,null,{"$f":"IFERROR(VLOOKUP(M412,Parameters!$G$4:$I$63,2,FALSE),\"\")","v":""}]
[null,null,"Verzekerde 402",null,null,null,null,null,null,null,null,null,null,{"$f":"IFERROR(VLOOKUP(M413,Parameters!$G$4:$I$63,2,FALSE),\"\")","v":""}]
[null,null,"Verzekerde 403",null,null,null,null,null,null,null,null,null,null,{"$f":"IFERROR(VLOOKUP(M414,Parameters!$G$4:$I$63,2,FALSE),\"\")","v":""}]
[null,null,"Verzekerde 404",null,null,null,null,null,null,null,null,null,null,{"$f":"IFERROR(VLOOKUP(M415,Parameters!$G$4:$I$63,2,FALSE),\"\")","v":""}]
[null,null,"Verzekerde 405",null,null,null,null,null,null,null,null,null,null,{"$f":"IFERROR(VLOOKUP(M416,Parameters!$G$4:$I$63,2,FALSE),\"\")","v":""}]
[null,null,"Verzekerde 406",null,null,null,null,null,null,null,null,null,null,{"$f":"IFERROR(VLOOKUP(M417,Parameters!$G$4:$I$63,2,FALSE),\"\")","v":""}]
[null,null,"Verzekerde 407",null,null,null,null,null,null,null,null,null,null,{"$f":"IFERROR(VLOOKUP(M418,Parameters!$G$4:$I$63,2,FALSE),\"\")","v":""}]
[null,null,"Verzekerde 408",null,null,null,null,null,null,null,null,null,null,{"$f":"IFERROR(VLOOKUP(M419,Parameters!$G$4:$I$63,2,FALSE),\"\")","v":""}]
[null,null,"Verzekerde 409",null,null,null,null,null,null,null,null,null,null,{"$f":"IFERROR(VLOOKUP(M420,Parameters!$G$4:$I$63,2,FALSE),\"\")","v":""}]
[null,null,"Verzekerde 410",null,null,null,null,null,null,null,null,null,null,{"$f":"IFERROR(VLOOKUP(M421,Parameters!$G$4:$I$63,2,FALSE),\"\")","v":""}]
[null,null,"Verzekerde 411",null,null,null,null,null,null,null,null,null,null,{"$f":"IFERROR(VLOOKUP(M422,Parameters!$G$4:$I$63,2,FALSE),\"\")","v":""}]
[null,null,"Verzekerde 412",null,null,null,null,null,null,null,null,null,null,{"$f":"IFERROR(VLOOKUP(M423,Parameters!$G$4:$I$63,2,FALSE),\"\")","v":""}]
[null,null,"Verzekerde 413",null,null,null,null,null,null,null,null,null,null,{"$f":"IFERROR(VLOOKUP(M424,Parameters!$G$4:$I$63,2,FALSE),\"\")","v":""}]
[null,null,"Verzekerde 414",null,null,null,null,null,null,null,null,null,null,{"$f":"IFERROR(VLOOKUP(M425,Parameters!$G$4:$I$63,2,FALSE),\"\")","v":""}]
[null,null,"Verzekerde 415",null,null,null,null,null,null,null,null,null,null,{"$f":"IFERROR(VLOOKUP(M426,Parameters!$G$4:$I$63,2,FALSE),\"\")","v":""}]
[null,null,"Verzekerde 416",null,null,null,null,null,null,null,null,null,null,{"$f":"IFERROR(VLOOKUP(M427,Parameters!$G$4:$I$63,2,FALSE),\"\")","v":""}]
[null,null,"Verzekerde 417",null,null,null,null,null,null,null,null,null,null,{"$f":"IFERROR(VLOOKUP(M428,Parameters!$G$4:$I$63,2,FALSE),\"\")","v":""}]
[null,null,"Verzekerde 418",null,null,null,null,null,null,null,null,null,null,{"$f":"IFERROR(VLOOKUP(M429,Parameters!$G$4:$I$63,2,FALSE),\"\")","v":""}]
[null,null,"Verzekerde 419",null,null,null,null,null,null,null,null,null,null,{"$f":"IFERROR(VLOOKUP(M430,Parameters!$G$4:$I$63,2,FALSE),\"\")","v":""}]
[null,null,"Verzekerde 420",null,null,null,null,null,null,null,null,null,null,{"$f":"IFERROR(VLOOKUP(M431,Parameters!$G$4:$I$63,2,FALSE),\"\")","v":""}]
[null,null,"Verzekerde 421",null,null,null,null,null,null,null,null,null,null,{"$f":"IFERROR(VLOOKUP(M432,Parameters!$G$4:$I$63,2,FALSE),\"\")","v":""}]
[null,null,"Verzekerde 422",null,null,null,null,null,null,null,null,null,null,{"$f":"IFERROR(VLOOKUP(M433,Parameters!$G$4:$I$63,2,FALSE),\"\")","v":""}]
[null,null,"Verzekerde 423",null,null,null,null,null,null,null,null,null,null,{"$f":"IFERROR(VLOOKUP(M434,Parameters!$G$4:$I$63,2,FALSE),\"\")","v":""}]
[null,null,"Verzekerde 424",null,null,null,null,null,null,null,null,null,null,{"$f":"IFERROR(VLOOKUP(M435,Parameters!$G$4:$I$63,2,FALSE),\"\")","v":""}]
[null,null,"Verzekerde 425",null,null,null,null,null,null,null,null,null,null,{"$f":"IFERROR(VLOOKUP(M436,Parameters!$G$4:$I$63,2,FALSE),\"\")","v":""}]
[null,null,"Verzekerde 426",null,null,null,null,null,null,null,null,null,null,{"$f":"IFERROR(VLOOKUP(M437,Parameters!$G$4:$I$63,2,FALSE),\"\")","v":""}]
[null,null,"Verzekerde 427",null,null,null,null,null,null,null,null,null,null,{"$f":"IFERROR(VLOOKUP(M438,Parameters!$G$4:$I$63,2,FALSE),\"\")","v":""}]
[null,null,"Verzekerde 428",null,null,null,null,null,null,null,null,null,null,{"$f":"IFERROR(VLOOKUP(M439,Parameters!$G$4:$I$63,2,FALSE),\"\")","v":""}]
[null,null,"Verzekerde 429",null,null,null,null,null,null,null,null,null,null,{"$f":"IFERROR(VLOOKUP(M440,Parameters!$G$4:$I$63,2,FALSE),\"\")","v":""}]
[null,null,"Verzekerde 430",null,null,null,null,null,null,null,null,null,null,{"$f":"IFERROR(VLOOKUP(M441,Parameters!$G$4:$I$63,2,FALSE),\"\")","v":""}]
[null,null,"Verzekerde 431",null,null,null,null,null,null,null,null,null,null,{"$f":"IFERROR(VLOOKUP(M442,Parameters!$G$4:$I$63,2,FALSE),\"\")","v":""}]
[null,null,"Verzekerde 432",null,null,null,null,null,null,null,null,null,null,{"$f":"IFERROR(VLOOKUP(M443,Parameters!$G$4:$I$63,2,FALSE),\"\")","v":""}]
[null,null,"Verzekerde 433",null,null,null,null,null,null,null,null,null,null,{"$f":"IFERROR(VLOOKUP(M444,Parameters!$G$4:$I$63,2,FALSE),\"\")","v":""}]
[null,null,"Verzekerde 434",null,null,null,null,null,null,null,null,null,null,{"$f":"IFERROR(VLOOKUP(M445,Parameters!$G$4:$I$63,2,FALSE),\"\")","v":""}]
[null,null,"Verzekerde 435",null,null,null,null,null,null,null,null,null,null,{"$f":"IFERROR(VLOOKUP(M446,Parameters!$G$4:$I$63,2,FALSE),\"\")","v":""}]
[null,null,"Verzekerde 436",null,null,null,null,null,null,null,null,null,null,{"$f":"IFERROR(VLOOKUP(M447,Parameters!$G$4:$I$63,2,FALSE),\"\")","v":""}]
[null,null,"Verzekerde 437",null,null,null,null,null,null,null,null,null,null,{"$f":"IFERROR(VLOOKUP(M448,Parameters!$G$4:$I$63,2,FALSE),\"\")","v":""}]
[null,null,"Verzekerde 438",null,null,null,null,null,null,null,null,null,null,{"$f":"IFERROR(VLOOKUP(M449,Parameters!$G$4:$I$63,2,FALSE),\"\")","v":""}]
[null,null,"Verzekerde 439",null,null,null,null,null,null,null,null,null,null,{"$f":"IFERROR(VLOOKUP(M450,Parameters!$G$4:$I$63,2,FALSE),\"\")","v":""}]
[null,null,"Verzekerde 440",null,null,null,null,null,null,null,null,null,null,{"$f":"IFERROR(VLOOKUP(M451,Parameters!$G$4:$I$63,2,FALSE),\"\")","v":""}]
[null,null,"Verzekerde 441",null,null,null,null,null,null,null,null,null,null,{"$f":"IFERROR(VLOOKUP(M452,Parameters!$G$4:$I$63,2,FALSE),\"\")","v":""}]
[null,null,"Verzekerde 442",null,null,null,null,null,null,null,null,null,null,{"$f":"IFERROR(VLOOKUP(M453,Parameters!$G$4:$I$63,2,FALSE),\"\")","v":""}]
[null,null,"Verzekerde 443",null,null,null,null,null,null,null,null,null,null,{"$f":"IFERROR(VLOOKUP(M454,Parameters!$G$4:$I$63,2,FALSE),\"\")","v":""}]
[null,null,"Verzekerde 444",null,null,null,null,null,null,null,null,null,null,{"$f":"IFERROR(VLOOKUP(M455,Parameters!$G$4:$I$63,2,FALSE),\"\")","v":""}]
[null,null,"Verzekerde 445",null,null,null,null,null,null,null,null,null,null,{"$f":"IFERROR(VLOOKUP(M456,Parameters!$G$4:$I$63,2,FALSE),\"\")","v":""}]
[null,null,"Verzekerde 446",null,null,null,null,null,null,null,null,null,null,{"$f":"IFERROR(VLOOKUP(M457,Parameters!$G$4:$I$63,2,FALSE),\"\")","v":""}]
[null,null,"Verzekerde 447",null,null,null,null,null,null,null,null,null,null,{"$f":"IFERROR(VLOOKUP(M458,Parameters!$G$4:$I$63,2,FALSE),\"\")","v":""}]
[null,null,"Verzekerde 448",null,null,null,null,null,null,null,null,null,null,{"$f":"IFERROR(VLOOKUP(M459,Parameters!$G$4:$I$63,2,FALSE),\"\")","v":""}]
[null,null,"Verzekerde 449",null,null,null,null,null,null,null,null,null,null,{"$f":"IFERROR(VLOOKUP(M460,Parameters!$G$4:$I$63,2,FALSE),\"\")","v":""}]
[null,null,"Verzekerde 450",null,null,null,null,null,null,null,null,null,null,{"$f":"IFERROR(VLOOKUP(M461,Parameters!$G$4:$I$63,2,FALSE),\"\")","v":""}]
[null,null,"Verzekerde 451",null,null,null,null,null,null,null,null,null,null,{"$f":"IFERROR(VLOOKUP(M462,Parameters!$G$4:$I$63,2,FALSE),\"\")","v":""}]
[null,null,"Verzekerde 452",null,null,null,null,null,null,null,null,null,null,{"$f":"IFERROR(VLOOKUP(M463,Parameters!$G$4:$I$63,2,FALSE),\"\")","v":""}]
[null,null,"Verzekerde 453",null,null,null,null,null,null,null,null,null,null,{"$f":"IFERROR(VLOOKUP(M464,Parameters!$G$4:$I$63,2,FALSE),\"\")","v":""}]
[null,null,"Verzekerde 454",null,null,null,null,null,null,null,null,null,null,{"$f":"IFERROR(VLOOKUP(M465,Parameters!$G$4:$I$63,2,FALSE),\"\")","v":""}]
[null,null,"Verzekerde 455",null,null,null,null,null,null,null,null,null,null,{"$f":"IFERROR(VLOOKUP(M466,Parameters!$G$4:$I$63,2,FALSE),\"\")","v":""}]
[null,null,"Verzekerde 456",null,null,null,null,null,null,null,null,null,null,{"$f":"IFERROR(VLOOKUP(M467,Parameters!$G$4:$I$63,2,FALSE),\"\")","v":""}]
[null,null,"Verzekerde 457",null,null,null,null,null,null,null,null,null,null,{"$f":"IFERROR(VLOOKUP(M468,Parameters!$G$4:$I$63,2,FALSE),\"\")","v":""}]
[null,null,"Verzekerde 458",null,null,null,null,null,null,null,null,null,null,{"$f":"IFERROR(VLOOKUP(M469,Parameters!$G$4:$I$63,2,FALSE),\"\")","v":""}]
[null,null,"Verzekerde 459",null,null,null,null,null,null,null,null,null,null,{"$f":"IFERROR(VLOOKUP(M470,Parameters!$G$4:$I$63,2,FALSE),\"\")","v":""}]
[null,null,"Verzekerde 460",null,null,null,null,null,null,null,null,null,null,{"$f":"IFERROR(VLOOKUP(M471,Parameters!$G$4:$I$63,2,FALSE),\"\")","v":""}]
[null,null,"Verzekerde 461",null,null,null,null,null,null,null,null,null,null,{"$f":"IFERROR(VLOOKUP(M472,Parameters!$G$4:$I$63,2,FALSE),\"\")","v":""}]
[null,null,"Verzekerde 462",null,null,null,null,null,null,null,null,null,null,{"$f":"IFERROR(VLOOKUP(M473,Parameters!$G$4:$I$63,2,FALSE),\"\")","v":""}]
[null,null,"Verzekerde 463",null,null,null,null,null,null,null,null,null,null,{"$f":"IFERROR(VLOOKUP(M474,Parameters!$G$4:$I$63,2,FALSE),\"\")","v":""}]
[null,null,"Verzekerde 464",null,null,null,null,null,null,null,null,null,null,{"$f":"IFERROR(VLOOKUP(M475,Parameters!$G$4:$I$63,2,FALSE),\"\")","v":""}]
[null,null,"Verzekerde 465",null,null,null,null,null,null,null,null,null,null,{"$f":"IFERROR(VLOOKUP(M476,Parameters!$G$4:$I$63,2,FALSE),\"\")","v":""}]
[null,null,"Verzekerde 466",null,null,null,null,null,null,null,null,null,null,{"$f":"IFERROR(VLOOKUP(M477,Parameters!$G$4:$I$63,2,FALSE),\"\")","v":""}]
[null,null,"Verzekerde 467",null,null,null,null,null,null,null,null,null,null,{"$f":"IFERROR(VLOOKUP(M478,Parameters!$G$4:$I$63,2,FALSE),\"\")","v":""}]
[null,null,"Verzekerde 468",null,null,null,null,null,null,null,null,null,null,{"$f":"IFERROR(VLOOKUP(M479,Parameters!$G$4:$I$63,2,FALSE),\"\")","v":""}]
[null,null,"Verzekerde 469",null,null,null,null,null,null,null,null,null,null,{"$f":"IFERROR(VLOOKUP(M480,Parameters!$G$4:$I$63,2,FALSE),\"\")","v":""}]
[null,null,"Verzekerde 470",null,null,null,null,null,null,null,null,null,null,{"$f":"IFERROR(VLOOKUP(M481,Parameters!$G$4:$I$63,2,FALSE),\"\")","v":""}]
[null,null,"Verzekerde 471",null,null,null,null,null,null,null,null,null,null,{"$f":"IFERROR(VLOOKUP(M482,Parameters!$G$4:$I$63,2,FALSE),\"\")","v":""}]
[null,null,"Verzekerde 472",null,null,null,null,null,null,null,null,null,null,{"$f":"IFERROR(VLOOKUP(M483,Parameters!$G$4:$I$63,2,FALSE),\"\")","v":""}]
[null,null,"Verzekerde 473",null,null,null,null,null,null,null,null,null,null,{"$f":"IFERROR(VLOOKUP(M484,Parameters!$G$4:$I$63,2,FALSE),\"\")","v":""}]
[null,null,"Verzekerde 474",null,null,null,null,null,null,null,null,null,null,{"$f":"IFERROR(VLOOKUP(M485,Parameters!$G$4:$I$63,2,FALSE),\"\")","v":""}]
[null,null,"Verzekerde 475",null,null,null,null,null,null,null,null,null,null,{"$f":"IFERROR(VLOOKUP(M486,Parameters!$G$4:$I$63,2,FALSE),\"\")","v":""}]
[null,null,"Verzekerde 476",null,null,null,null,null,null,null,null,null,null,{"$f":"IFERROR(VLOOKUP(M487,Parameters!$G$4:$I$63,2,FALSE),\"\")","v":""}]
[null,null,"Verzekerde 477",null,null,null,null,null,null,null,null,null,null,{"$f":"IFERROR(VLOOKUP(M488,Parameters!$G$4:$I$63,2,FALSE),\"\")","v":""}]
[null,null,"Verzekerde 478",null,null,null,null,null,null,null,null,null,null,{"$f":"IFERROR(VLOOKUP(M489,Parameters!$G$4:$I$63,2,FALSE),\"\")","v":""}]
[null,null,"Verzekerde 479",null,null,null,null,null,null,null,null,null,null,{"$f":"IFERROR(VLOOKUP(M490,Parameters!$G$4:$I$63,2,FALSE),\"\")","v":""}]
[null,null,"Verzekerde 480",null,null,null,null,null,null,null,null,null,null,{"$f":"IFERROR(VLOOKUP(M491,Parameters!$G$4:$I$63,2,FALSE),\"\")","v":""}]
[null,null,"Verzekerde 481",null,null,null,null,null,null,null,null,null,null,{"$f":"IFERROR(VLOOKUP(M492,Parameters!$G$4:$I$63,2,FALSE),\"\")","v":""}]
[null,null,"Verzekerde 482",null,null,null,null,null,null,null,null,null,null,{"$f":"IFERROR(VLOOKUP(M493,Parameters!$G$4:$I$63,2,FALSE),\"\")","v":""}]
[null,null,"Verzekerde 483",null,null,null,null,null,null,null,null,null,null,{"$f":"IFERROR(VLOOKUP(M494,Parameters!$G$4:$I$63,2,FALSE),\"\")","v":""}]
[null,null,"Verzekerde 484",null,null,null,null,null,null,null,null,null,null,{"$f":"IFERROR(VLOOKUP(M495,Parameters!$G$4:$I$63,2,FALSE),\"\")","v":""}]
[null,null,"Verzekerde 485",null,null,null,null,null,null,null,null,null,null,{"$f":"IFERROR(VLOOKUP(M496,Parameters!$G$4:$I$63,2,FALSE),\"\")","v":""}]
[null,null,"Verzekerde 486",null,null,null,null,null,null,null,null,null,null,{"$f":"IFERROR(VLOOKUP(M497,Parameters!$G$4:$I$63,2,FALSE),\"\")","v":""}]
[null,null,"Verzekerde 487",null,null,null,null,null,null,null,null,null,null,{"$f":"IFERROR(VLOOKUP(M498,Parameters!$G$4:$I$63,2,FALSE),\"\")","v":""}]
[null,null,"Verzekerde 488",null,null,null,null,null,null,null,null,null,null,{"$f":"IFERROR(VLOOKUP(M499,Parameters!$G$4:$I$63,2,FALSE),\"\")","v":""}]
[null,null,"Verzekerde 489",null,null,null,null,null,null,null,null,null,null,{"$f":"IFERROR(VLOOKUP(M500,Parameters!$G$4:$I$63,2,FALSE),\"\")","v":""}]
[null,null,"Verzekerde 490",null,null,null,null,null,null,null,null,null,null,{"$f":"IFERROR(VLOOKUP(M501,Parameters!$G$4:$I$63,2,FALSE),\"\")","v":""}]
[null,null,"Verzekerde 491",null,null,null,null,null,null,null,null,null,null,{"$f":"IFERROR(VLOOKUP(M502,Parameters!$G$4:$I$63,2,FALSE),\"\")","v":""}]
[null,null,"Verzekerde 492",null,null,null,null,null,null,null,null,null,null,{"$f":"IFERROR(VLOOKUP(M503,Parameters!$G$4:$I$63,2,FALSE),\"\")","v":""}]
[null,null,"Verzekerde 493",null,null,null,null,null,null,null,null,null,null,{"$f":"IFERROR(VLOOKUP(M504,Parameters!$G$4:$I$63,2,FALSE),\"\")","v":""}]
[null,null,"Verzekerde 494",null,null,null,null,null,null,null,null,null,null,{"$f":"IFERROR(VLOOKUP(M505,Parameters!$G$4:$I$63,2,FALSE),\"\")","v":""}]
[null,null,"Verzekerde 495",null,null,null,null,null,null,null,null,null,null,{"$f":"IFERROR(VLOOKUP(M506,Parameters!$G$4:$I$63,2,FALSE),\"\")","v":""}]
[null,null,"Verzekerde 496",null,null,null,null,null,null,null,null,null,null,{"$f":"IFERROR(VLOOKUP(M507,Parameters!$G$4:$I$63,2,FALSE),\"\")","v":""}]
[null,null,"Verzekerde 497",null,null,null,null,null,null,null,null,null,null,{"$f":"IFERROR(VLOOKUP(M508,Parameters!$G$4:$I$63,2,FALSE),\"\")","v":""}]
[null,null,"Verzekerde 498",null,null,null,null,null,null,null,null,null,null,{"$f":"IFERROR(VLOOKUP(M509,Parameters!$G$4:$I$63,2,FALSE),\"\")","v":""}]
[null,null,"Verzekerde 499",null,null,null,null,null,null,null,null,null,null,{"$f":"IFERROR(VLOOKUP(M510,Parameters!$G$4:$I$63,2,FALSE),\"\")","v":""}]
[null,null,"Verzekerde 500",null,null,null,null,null,null,null,null,null,null,{"$f":"IFERROR(VLOOKUP(M511,Parameters!$G$4:$I$63,2,FALSE),\"\")","v":""}]
[null,null,"Verzekerde 501",null,null,null,null,null,null,null,null,null,null,{"$f":"IFERROR(VLOOKUP(M512,Parameters!$G$4:$I$63,2,FALSE),\"\")","v":""}]
[null,null,"Verzekerde 502",null,null,null,null,null,null,null,null,null,null,{"$f":"IFERROR(VLOOKUP(M513,Parameters!$G$4:$I$63,2,FALSE),\"\")","v":""}]
[null,null,"Verzekerde 503",null,null,null,null,null,null,null,null,null,null,{"$f":"IFERROR(VLOOKUP(M514,Parameters!$G$4:$I$63,2,FALSE),\"\")","v":""}]
[null,null,"Verzekerde 504",null,null,null,null,null,null,null,null,null,null,{"$f":"IFERROR(VLOOKUP(M515,Parameters!$G$4:$I$63,2,FALSE),\"\")","v":""}]
[null,null,"Verzekerde 505",null,null,null,null,null,null,null,null,null,null,{"$f":"IFERROR(VLOOKUP(M516,Parameters!$G$4:$I$63,2,FALSE),\"\")","v":""}]
[null,null,"Verzekerde 506",null,null,null,null,null,null,null,null,null,null,{"$f":"IFERROR(VLOOKUP(M517,Parameters!$G$4:$I$63,2,FALSE),\"\")","v":""}]
[null,null,"Verzekerde 507",null,null,null,null,null,null,null,null,null,null,{"$f":"IFERROR(VLOOKUP(M518,Parameters!$G$4:$I$63,2,FALSE),\"\")","v":""}]
[null,null,"Verzekerde 508",null,null,null,null,null,null,null,null,null,null,{"$f":"IFERROR(VLOOKUP(M519,Parameters!$G$4:$I$63,2,FALSE),\"\")","v":""}]
[null,null,"Verzekerde 509",null,null,null,null,null,null,null,null,null,null,{"$f":"IFERROR(VLOOKUP(M520,Parameters!$G$4:$I$63,2,FALSE),\"\")","v":""}]
[null,null,"Verzekerde 510",null,null,null,null,null,null,null,null,null,null,{"$f":"IFERROR(VLOOKUP(M521,Parameters!$G$4:$I$63,2,FALSE),\"\")","v":""}]
[null,null,"Verzekerde 511",null,null,null,null,null,null,null,null,null,null,{"$f":"IFERROR(VLOOKUP(M522,Parameters!$G$4:$I$63,2,FALSE),\"\")","v":""}]
[null,null,"Verzekerde 512",null,null,null,null,null,null,null,null,null,null,{"$f":"IFERROR(VLOOKUP(M523,Parameters!$G$4:$I$63,2,FALSE),\"\")","v":""}]
[null,null,"Verzekerde 513",null,null,null,null,null,null,null,null,null,null,{"$f":"IFERROR(VLOOKUP(M524,Parameters!$G$4:$I$63,2,FALSE),\"\")","v":""}]
[null,null,"Verzekerde 514",null,null,null,null,null,null,null,null,null,null,{"$f":"IFERROR(VLOOKUP(M525,Parameters!$G$4:$I$63,2,FALSE),\"\")","v":""}]
[null,null,"Verzekerde 515",null,null,null,null,null,null,null,null,null,null,{"$f":"IFERROR(VLOOKUP(M526,Parameters!$G$4:$I$63,2,FALSE),\"\")","v":""}]
[null,null,"Verzekerde 516",null,null,null,null,null,null,null,null,null,null,{"$f":"IFERROR(VLOOKUP(M527,Parameters!$G$4:$I$63,2,FALSE),\"\")","v":""}]
[null,null,"Verzekerde 517",null,null,null,null,null,null,null,null,null,null,{"$f":"IFERROR(VLOOKUP(M528,Parameters!$G$4:$I$63,2,FALSE),\"\")","v":""}]
[null,null,"Verzekerde 518",null,null,null,null,null,null,null,null,null,null,{"$f":"IFERROR(VLOOKUP(M529,Parameters!$G$4:$I$63,2,FALSE),\"\")","v":""}]
[null,null,"Verzekerde 519",null,null,null,null,null,null,null,null,null,null,{"$f":"IFERROR(VLOOKUP(M530,Parameters!$G$4:$I$63,2,FALSE),\"\")","v":""}]
[null,null,"Verzekerde 520",null,null,null,null,null,null,null,null,null,null,{"$f":"IFERROR(VLOOKUP(M531,Parameters!$G$4:$I$63,2,FALSE),\"\")","v":""}]
[null,null,"Verzekerde 521",null,null,null,null,null,null,null,null,null,null,{"$f":"IFERROR(VLOOKUP(M532,Parameters!$G$4:$I$63,2,FALSE),\"\")","v":""}]
[null,null,"Verzekerde 522",null,null,null,null,null,null,null,null,null,null,{"$f":"IFERROR(VLOOKUP(M533,Parameters!$G$4:$I$63,2,FALSE),\"\")","v":""}]
[null,null,"Verzekerde 523",null,null,null,null,null,null,null,null,null,null,{"$f":"IFERROR(VLOOKUP(M534,Parameters!$G$4:$I$63,2,FALSE),\"\")","v":""}]
[null,null,"Verzekerde 524",null,null,null,null,null,null,null,null,null,null,{"$f":"IFERROR(VLOOKUP(M535,Parameters!$G$4:$I$63,2,FALSE),\"\")","v":""}]
[null,null,"Verzekerde 525",null,null,null,null,null,null,null,null,null,null,{"$f":"IFERROR(VLOOKUP(M536,Parameters!$G$4:$I$63,2,FALSE),\"\")","v":""}]
[null,null,"Verzekerde 526",null,null,null,null,null,null,null,null,null,null,{"$f":"IFERROR(VLOOKUP(M537,Parameters!$G$4:$I$63,2,FALSE),\"\")","v":""}]
[null,null,"Verzekerde 527",null,null,null,null,null,null,null,null,null,null,{"$f":"IFERROR(VLOOKUP(M538,Parameters!$G$4:$I$63,2,FALSE),\"\")","v":""}]
[null,null,"Verzekerde 528",null,null,null,null,null,null,null,null,null,null,{"$f":"IFERROR(VLOOKUP(M539,Parameters!$G$4:$I$63,2,FALSE),\"\")","v":""}]
[null,null,"Verzekerde 529",null,null,null,null,null,null,null,null,null,null,{"$f":"IFERROR(VLOOKUP(M540,Parameters!$G$4:$I$63,2,FALSE),\"\")","v":""}]
[null,null,"Verzekerde 530",null,null,null,null,null,null,null,null,null,null,{"$f":"IFERROR(VLOOKUP(M541,Parameters!$G$4:$I$63,2,FALSE),\"\")","v":""}]
[null,null,"Verzekerde 531",null,null,null,null,null,null,null,null,null,null,{"$f":"IFERROR(VLOOKUP(M542,Parameters!$G$4:$I$63,2,FALSE),\"\")","v":""}]
[null,null,"Verzekerde 532",null,null,null,null,null,null,null,null,null,null,{"$f":"IFERROR(VLOOKUP(M543,Parameters!$G$4:$I$63,2,FALSE),\"\")","v":""}]
[null,null,"Verzekerde 533",null,null,null,null,null,null,null,null,null,null,{"$f":"IFERROR(VLOOKUP(M544,Parameters!$G$4:$I$63,2,FALSE),\"\")","v":""}]
[null,null,"Verzekerde 534",null,null,null,null,null,null,null,null,null,null,{"$f":"IFERROR(VLOOKUP(M545,Parameters!$G$4:$I$63,2,FALSE),\"\")","v":""}]
[null,null,"Verzekerde 535",null,null,null,null,null,null,null,null,null,null,{"$f":"IFERROR(VLOOKUP(M546,Parameters!$G$4:$I$63,2,FALSE),\"\")","v":""}]
[null,null,"Verzekerde 536",null,null,null,null,null,null,null,null,null,null,{"$f":"IFERROR(VLOOKUP(M547,Parameters!$G$4:$I$63,2,FALSE),\"\")","v":""}]
[null,null,"Verzekerde 537",null,null,null,null,null,null,null,null,null,null,{"$f":"IFERROR(VLOOKUP(M548,Parameters!$G$4:$I$63,2,FALSE),\"\")","v":""}]
[null,null,"Verzekerde 538",null,null,null,null,null,null,null,null,null,null,{"$f":"IFERROR(VLOOKUP(M549,Parameters!$G$4:$I$63,2,FALSE),\"\")","v":""}]
[null,null,"Verzekerde 539",null,null,null,null,null,null,null,null,null,null,{"$f":"IFERROR(VLOOKUP(M550,Parameters!$G$4:$I$63,2,FALSE),\"\")","v":""}]
[null,null,"Verzekerde 540",null,null,null,null,null,null,null,null,null,null,{"$f":"IFERROR(VLOOKUP(M551,Parameters!$G$4:$I$63,2,FALSE),\"\")","v":""}]
[null,null,"Verzekerde 541",null,null,null,null,null,null,null,null,null,null,{"$f":"IFERROR(VLOOKUP(M552,Parameters!$G$4:$I$63,2,FALSE),\"\")","v":""}]
[null,null,"Verzekerde 542",null,null,null,null,null,null,null,null,null,null,{"$f":"IFERROR(VLOOKUP(M553,Parameters!$G$4:$I$63,2,FALSE),\"\")","v":""}]
[null,null,"Verzekerde 543",null,null,null,null,null,null,null,null,null,null,{"$f":"IFERROR(VLOOKUP(M554,Parameters!$G$4:$I$63,2,FALSE),\"\")","v":""}]
[null,null,"Verzekerde 544",null,null,null,null,null,null,null,null,null,null,{"$f":"IFERROR(VLOOKUP(M555,Parameters!$G$4:$I$63,2,FALSE),\"\")","v":""}]
[null,null,"Verzekerde 545",null,null,null,null,null,null,null,null,null,null,{"$f":"IFERROR(VLOOKUP(M556,Parameters!$G$4:$I$63,2,FALSE),\"\")","v":""}]
[null,null,"Verzekerde 546",null,null,null,null,null,null,null,null,null,null,{"$f":"IFERROR(VLOOKUP(M557,Parameters!$G$4:$I$63,2,FALSE),\"\")","v":""}]
[null,null,"Verzekerde 547",null,null,null,null,null,null,null,null,null,null,{"$f":"IFERROR(VLOOKUP(M558,Parameters!$G$4:$I$63,2,FALSE),\"\")","v":""}]
[null,null,"Verzekerde 548",null,null,null,null,null,null,null,null,null,null,{"$f":"IFERROR(VLOOKUP(M559,Parameters!$G$4:$I$63,2,FALSE),\"\")","v":""}]
[null,null,"Verzekerde 549",null,null,null,null,null,null,null,null,null,null,{"$f":"IFERROR(VLOOKUP(M560,Parameters!$G$4:$I$63,2,FALSE),\"\")","v":""}]
[null,null,"Verzekerde 550",null,null,null,null,null,null,null,null,null,null,{"$f":"IFERROR(VLOOKUP(M561,Parameters!$G$4:$I$63,2,FALSE),\"\")","v":""}]
[null,null,"Verzekerde 551",null,null,null,null,null,null,null,null,null,null,{"$f":"IFERROR(VLOOKUP(M562,Parameters!$G$4:$I$63,2,FALSE),\"\")","v":""}]
[null,null,"Verzekerde 552",null,null,null,null,null,null,null,null,null,null,{"$f":"IFERROR(VLOOKUP(M563,Parameters!$G$4:$I$63,2,FALSE),\"\")","v":""}]
[null,null,"Verzekerde 553",null,null,null,null,null,null,null,null,null,null,{"$f":"IFERROR(VLOOKUP(M564,Parameters!$G$4:$I$63,2,FALSE),\"\")","v":""}]
[null,null,"Verzekerde 554",null,null,null,null,null,null,null,null,null,null,{"$f":"IFERROR(VLOOKUP(M565,Parameters!$G$4:$I$63,2,FALSE),\"\")","v":""}]
[null,null,"Verzekerde 555",null,null,null,null,null,null,null,null,null,null,{"$f":"IFERROR(VLOOKUP(M566,Parameters!$G$4:$I$63,2,FALSE),\"\")","v":""}]
[null,null,"Verzekerde 556",null,null,null,null,null,null,null,null,null,null,{"$f":"IFERROR(VLOOKUP(M567,Parameters!$G$4:$I$63,2,FALSE),\"\")","v":""}]
[null,null,"Verzekerde 557",null,null,null,null,null,null,null,null,null,null,{"$f":"IFERROR(VLOOKUP(M568,Parameters!$G$4:$I$63,2,FALSE),\"\")","v":""}]
[null,null,"Verzekerde 558",null,null,null,null,null,null,null,null,null,null,{"$f":"IFERROR(VLOOKUP(M569,Parameters!$G$4:$I$63,2,FALSE),\"\")","v":""}]
[null,null,"Verzekerde 559",null,null,null,null,null,null,null,null,null,null,{"$f":"IFERROR(VLOOKUP(M570,Parameters!$G$4:$I$63,2,FALSE),\"\")","v":""}]
[null,null,"Verzekerde 560",null,null,null,null,null,null,null,null,null,null,{"$f":"IFERROR(VLOOKUP(M571,Parameters!$G$4:$I$63,2,FALSE),\"\")","v":""}]
[null,null,"Verzekerde 561",null,null,null,null,null,null,null,null,null,null,{"$f":"IFERROR(VLOOKUP(M572,Parameters!$G$4:$I$63,2,FALSE),\"\")","v":""}]
[null,null,"Verzekerde 562",null,null,null,null,null,null,null,null,null,null,{"$f":"IFERROR(VLOOKUP(M573,Parameters!$G$4:$I$63,2,FALSE),\"\")","v":""}]
[null,null,"Verzekerde 563",null,null,null,null,null,null,null,null,null,null,{"$f":"IFERROR(VLOOKUP(M574,Parameters!$G$4:$I$63,2,FALSE),\"\")","v":""}]
[null,null,"Verzekerde 564",null,null,null,null,null,null,null,null,null,null,{"$f":"IFERROR(VLOOKUP(M575,Parameters!$G$4:$I$63,2,FALSE),\"\")","v":""}]
[null,null,"Verzekerde 565",null,null,null,null,null,null,null,null,null,null,{"$f":"IFERROR(VLOOKUP(M576,Parameters!$G$4:$I$63,2,FALSE),\"\")","v":""}]
[null,null,"Verzekerde 566",null,null,null,null,null,null,null,null,null,null,{"$f":"IFERROR(VLOOKUP(M577,Parameters!$G$4:$I$63,2,FALSE),\"\")","v":""}]
[null,null,"Verzekerde 567",null,null,null,null,null,null,null,null,null,null,{"$f":"IFERROR(VLOOKUP(M578,Parameters!$G$4:$I$63,2,FALSE),\"\")","v":""}]
[null,null,"Verzekerde 568",null,null,null,null,null,null,null,null,null,null,{"$f":"IFERROR(VLOOKUP(M579,Parameters!$G$4:$I$63,2,FALSE),\"\")","v":""}]
[null,null,"Verzekerde 569",null,null,null,null,null,null,null,null,null,null,{"$f":"IFERROR(VLOOKUP(M580,Parameters!$G$4:$I$63,2,FALSE),\"\")","v":""}]
[null,null,"Verzekerde 570",null,null,null,null,null,null,null,null,null,null,{"$f":"IFERROR(VLOOKUP(M581,Parameters!$G$4:$I$63,2,FALSE),\"\")","v":""}]
[null,null,"Verzekerde 571",null,null,null,null,null,null,null,null,null,null,{"$f":"IFERROR(VLOOKUP(M582,Parameters!$G$4:$I$63,2,FALSE),\"\")","v":""}]
[null,null,"Verzekerde 572",null,null,null,null,null,null,null,null,null,null,{"$f":"IFERROR(VLOOKUP(M583,Parameters!$G$4:$I$63,2,FALSE),\"\")","v":""}]
[null,null,"Verzekerde 573",null,null,null,null,null,null,null,null,null,null,{"$f":"IFERROR(VLOOKUP(M584,Parameters!$G$4:$I$63,2,FALSE),\"\")","v":""}]
[null,null,"Verzekerde 574",null,null,null,null,null,null,null,null,null,null,{"$f":"IFERROR(VLOOKUP(M585,Parameters!$G$4:$I$63,2,FALSE),\"\")","v":""}]
[null,null,"Verzekerde 575",null,null,null,null,null,null,null,null,null,null,{"$f":"IFERROR(VLOOKUP(M586,Parameters!$G$4:$I$63,2,FALSE),\"\")","v":""}]
[null,null,"Verzekerde 576",null,null,null,null,null,null,null,null,null,null,{"$f":"IFERROR(VLOOKUP(M587,Parameters!$G$4:$I$63,2,FALSE),\"\")","v":""}]
[null,null,"Verzekerde 577",null,null,null,null,null,null,null,null,null,null,{"$f":"IFERROR(VLOOKUP(M588,Parameters!$G$4:$I$63,2,FALSE),\"\")","v":""}]
[null,null,"Verzekerde 578",null,null,null,null,null,null,null,null,null,null,{"$f":"IFERROR(VLOOKUP(M589,Parameters!$G$4:$I$63,2,FALSE),\"\")","v":""}]
[null,null,"Verzekerde 579",null,null,null,null,null,null,null,null,null,null,{"$f":"IFERROR(VLOOKUP(M590,Parameters!$G$4:$I$63,2,FALSE),\"\")","v":""}]
[null,null,"Verzekerde 580",null,null,null,null,null,null,null,null,null,null,{"$f":"IFERROR(VLOOKUP(M591,Parameters!$G$4:$I$63,2,FALSE),\"\")","v":""}]
[null,null,"Verzekerde 581",null,null,null,null,null,null,null,null,null,null,{"$f":"IFERROR(VLOOKUP(M592,Parameters!$G$4:$I$63,2,FALSE),\"\")","v":""}]
[null,null,"Verzekerde 582",null,null,null,null,null,null,null,null,null,null,{"$f":"IFERROR(VLOOKUP(M593,Parameters!$G$4:$I$63,2,FALSE),\"\")","v":""}]
[null,null,"Verzekerde 583",null,null,null,null,null,null,null,null,null,null,{"$f":"IFERROR(VLOOKUP(M594,Parameters!$G$4:$I$63,2,FALSE),\"\")","v":""}]
[null,null,"Verzekerde 584",null,null,null,null,null,null,null,null,null,null,{"$f":"IFERROR(VLOOKUP(M595,Parameters!$G$4:$I$63,2,FALSE),\"\")","v":""}]
[null,null,"Verzekerde 585",null,null,null,null,null,null,null,null,null,null,{"$f":"IFERROR(VLOOKUP(M596,Parameters!$G$4:$I$63,2,FALSE),\"\")","v":""}]
[null,null,"Verzekerde 586",null,null,null,null,null,null,null,null,null,null,{"$f":"IFERROR(VLOOKUP(M597,Parameters!$G$4:$I$63,2,FALSE),\"\")","v":""}]
[null,null,"Verzekerde 587",null,null,null,null,null,null,null,null,null,null,{"$f":"IFERROR(VLOOKUP(M598,Parameters!$G$4:$I$63,2,FALSE),\"\")","v":""}]
[null,null,"Verzekerde 588",null,null,null,null,null,null,null,null,null,null,{"$f":"IFERROR(VLOOKUP(M599,Parameters!$G$4:$I$63,2,FALSE),\"\")","v":""}]
[null,null,"Verzekerde 589",null,null,null,null,null,null,null,null,null,null,{"$f":"IFERROR(VLOOKUP(M600,Parameters!$G$4:$I$63,2,FALSE),\"\")","v":""}]
[null,null,"Verzekerde 590",null,null,null,null,null,null,null,null,null,null,{"$f":"IFERROR(VLOOKUP(M601,Parameters!$G$4:$I$63,2,FALSE),\"\")","v":""}]
[null,null,"Verzekerde 591",null,null,null,null,null,null,null,null,null,null,{"$f":"IFERROR(VLOOKUP(M602,Parameters!$G$4:$I$63,2,FALSE),\"\")","v":""}]
[null,null,"Verzekerde 592",null,null,null,null,null,null,null,null,null,null,{"$f":"IFERROR(VLOOKUP(M603,Parameters!$G$4:$I$63,2,FALSE),\"\")","v":""}]
[null,null,"Verzekerde 593",null,null,null,null,null,null,null,null,null,null,{"$f":"IFERROR(VLOOKUP(M604,Parameters!$G$4:$I$63,2,FALSE),\"\")","v":""}]
[null,null,"Verzekerde 594",null,null,null,null,null,null,null,null,null,null,{"$f":"IFERROR(VLOOKUP(M605,Parameters!$G$4:$I$63,2,FALSE),\"\")","v":""}]
[null,null,"Verzekerde 595",null,null,null,null,null,null,null,null,null,null,{"$f":"IFERROR(VLOOKUP(M606,Parameters!$G$4:$I$63,2,FALSE),\"\")","v":""}]
[null,null,"Verzekerde 596",null,null,null,null,null,null,null,null,null,null,{"$f":"IFERROR(VLOOKUP(M607,Parameters!$G$4:$I$63,2,FALSE),\"\")","v":""}]
[null,null,"Verzekerde 597",null,null,null,null,null,null,null,null,null,null,{"$f":"IFERROR(VLOOKUP(M608,Parameters!$G$4:$I$63,2,FALSE),\"\")","v":""}]
[null,null,"Verzekerde 598",null,null,null,null,null,null,null,null,null,null,{"$f":"IFERROR(VLOOKUP(M609,Parameters!$G$4:$I$63,2,FALSE),\"\")","v":""}]
[null,null,"Verzekerde 599",null,null,null,null,null,null,null,null,null,null,{"$f":"IFERROR(VLOOKUP(M610,Parameters!$G$4:$I$63,2,FALSE),\"\")","v":""}]
[null,null,"Verzekerde 600",null,null,null,null,null,null,null,null,null,null,{"$f":"IFERROR(VLOOKUP(M611,Parameters!$G$4:$I$63,2,FALSE),\"\")","v":""}]
[null,null,"Verzekerde 601",null,null,null,null,null,null,null,null,null,null,{"$f":"IFERROR(VLOOKUP(M612,Parameters!$G$4:$I$63,2,FALSE),\"\")","v":""}]
[null,null,"Verzekerde 602",null,null,null,null,null,null,null,null,null,null,{"$f":"IFERROR(VLOOKUP(M613,Parameters!$G$4:$I$63,2,FALSE),\"\")","v":""}]
[null,null,"Verzekerde 603",null,null,null,null,null,null,null,null,null,null,{"$f":"IFERROR(VLOOKUP(M614,Parameters!$G$4:$I$63,2,FALSE),\"\")","v":""}]
[null,null,"Verzekerde 604",null,null,null,null,null,null,null,null,null,null,{"$f":"IFERROR(VLOOKUP(M615,Parameters!$G$4:$I$63,2,FALSE),\"\")","v":""}]
[null,null,"Verzekerde 605",null,null,null,null,null,null,null,null,null,null,{"$f":"IFERROR(VLOOKUP(M616,Parameters!$G$4:$I$63,2,FALSE),\"\")","v":""}]
[null,null,"Verzekerde 606",null,null,null,null,null,null,null,null,null,null,{"$f":"IFERROR(VLOOKUP(M617,Parameters!$G$4:$I$63,2,FALSE),\"\")","v":""}]
[null,null,"Verzekerde 607",null,null,null,null,null,null,null,null,null,null,{"$f":"IFERROR(VLOOKUP(M618,Parameters!$G$4:$I$63,2,FALSE),\"\")","v":""}]
[null,null,"Verzekerde 608",null,null,null,null,null,null,null,null,null,null,{"$f":"IFERROR(VLOOKUP(M619,Parameters!$G$4:$I$63,2,FALSE),\"\")","v":""}]
[null,null,"Verzekerde 609",null,null,null,null,null,null,null,null,null,null,{"$f":"IFERROR(VLOOKUP(M620,Parameters!$G$4:$I$63,2,FALSE),\"\")","v":""}]
[null,null,"Verzekerde 610",null,null,null,null,null,null,null,null,null,null,{"$f":"IFERROR(VLOOKUP(M621,Parameters!$G$4:$I$63,2,FALSE),\"\")","v":""}]
[null,null,"Verzekerde 611",null,null,null,null,null,null,null,null,null,null,{"$f":"IFERROR(VLOOKUP(M622,Parameters!$G$4:$I$63,2,FALSE),\"\")","v":""}]
[null,null,"Verzekerde 612",null,null,null,null,null,null,null,null,null,null,{"$f":"IFERROR(VLOOKUP(M623,Parameters!$G$4:$I$63,2,FALSE),\"\")","v":""}]
[null,null,"Verzekerde 613",null,null,null,null,null,null,null,null,null,null,{"$f":"IFERROR(VLOOKUP(M624,Parameters!$G$4:$I$63,2,FALSE),\"\")","v":""}]
[null,null,"Verzekerde 614",null,null,null,null,null,null,null,null,null,null,{"$f":"IFERROR(VLOOKUP(M625,Parameters!$G$4:$I$63,2,FALSE),\"\")","v":""}]
[null,null,"Verzekerde 615",null,null,null,null,null,null,null,null,null,null,{"$f":"IFERROR(VLOOKUP(M626,Parameters!$G$4:$I$63,2,FALSE),\"\")","v":""}]
[null,null,"Verzekerde 616",null,null,null,null,null,null,null,null,null,null,{"$f":"IFERROR(VLOOKUP(M627,Parameters!$G$4:$I$63,2,FALSE),\"\")","v":""}]
[null,null,"Verzekerde 617",null,null,null,null,null,null,null,null,null,null,{"$f":"IFERROR(VLOOKUP(M628,Parameters!$G$4:$I$63,2,FALSE),\"\")","v":""}]
[null,null,"Verzekerde 618",null,null,null,null,null,null,null,null,null,null,{"$f":"IFERROR(VLOOKUP(M629,Parameters!$G$4:$I$63,2,FALSE),\"\")","v":""}]
[null,null,"Verzekerde 619",null,null,null,null,null,null,null,null,null,null,{"$f":"IFERROR(VLOOKUP(M630,Parameters!$G$4:$I$63,2,FALSE),\"\")","v":""}]
[null,null,"Verzekerde 620",null,null,null,null,null,null,null,null,null,null,{"$f":"IFERROR(VLOOKUP(M631,Parameters!$G$4:$I$63,2,FALSE),\"\")","v":""}]
[null,null,"Verzekerde 621",null,null,null,null,null,null,null,null,null,null,{"$f":"IFERROR(VLOOKUP(M632,Parameters!$G$4:$I$63,2,FALSE),\"\")","v":""}]
[null,null,"Verzekerde 622",null,null,null,null,null,null,null,null,null,null,{"$f":"IFERROR(VLOOKUP(M633,Parameters!$G$4:$I$63,2,FALSE),\"\")","v":""}]
[null,null,"Verzekerde 623",null,null,null,null,null,null,null,null,null,null,{"$f":"IFERROR(VLOOKUP(M634,Parameters!$G$4:$I$63,2,FALSE),\"\")","v":""}]
[null,null,"Verzekerde 624",null,null,null,null,null,null,null,null,null,null,{"$f":"IFERROR(VLOOKUP(M635,Parameters!$G$4:$I$63,2,FALSE),\"\")","v":""}]
[null,null,"Verzekerde 625",null,null,null,null,null,null,null,null,null,null,{"$f":"IFERROR(VLOOKUP(M636,Parameters!$G$4:$I$63,2,FALSE),\"\")","v":""}]
[null,null,"Verzekerde 626",null,null,null,null,null,null,null,null,null,null,{"$f":"IFERROR(VLOOKUP(M637,Parameters!$G$4:$I$63,2,FALSE),\"\")","v":""}]
[null,null,"Verzekerde 627",null,null,null,null,null,null,null,null,null,null,{"$f":"IFERROR(VLOOKUP(M638,Parameters!$G$4:$I$63,2,FALSE),\"\")","v":""}]
[null,null,"Verzekerde 628",null,null,null,null,null,null,null,null,null,null,{"$f":"IFERROR(VLOOKUP(M639,Parameters!$G$4:$I$63,2,FALSE),\"\")","v":""}]
[null,null,"Verzekerde 629",null,null,null,null,null,null,null,null,null,null,{"$f":"IFERROR(VLOOKUP(M640,Parameters!$G$4:$I$63,2,FALSE),\"\")","v":""}]
[null,null,"Verzekerde 630",null,null,null,null,null,null,null,null,null,null,{"$f":"IFERROR(VLOOKUP(M641,Parameters!$G$4:$I$63,2,FALSE),\"\")","v":""}]
[null,null,"Verzekerde 631",null,null,null,null,null,null,null,null,null,null,{"$f":"IFERROR(VLOOKUP(M642,Parameters!$G$4:$I$63,2,FALSE),\"\")","v":""}]
[null,null,"Verzekerde 632",null,null,null,null,null,null,null,null,null,null,{"$f":"IFERROR(VLOOKUP(M643,Parameters!$G$4:$I$63,2,FALSE),\"\")","v":""}]
[null,null,"Verzekerde 633",null,null,null,null,null,null,null,null,null,null,{"$f":"IFERROR(VLOOKUP(M644,Parameters!$G$4:$I$63,2,FALSE),\"\")","v":""}]
[null,null,"Verzekerde 634",null,null,null,null,null,null,null,null,null,null,{"$f":"IFERROR(VLOOKUP(M645,Parameters!$G$4:$I$63,2,FALSE),\"\")","v":""}]
[null,null,"Verzekerde 635",null,null,null,null,null,null,null,null,null,null,{"$f":"IFERROR(VLOOKUP(M646,Parameters!$G$4:$I$63,2,FALSE),\"\")","v":""}]
[null,null,"Verzekerde 636",null,null,null,null,null,null,null,null,null,null,{"$f":"IFERROR(VLOOKUP(M647,Parameters!$G$4:$I$63,2,FALSE),\"\")","v":""}]
[null,null,"Verzekerde 637",null,null,null,null,null,null,null,null,null,null,{"$f":"IFERROR(VLOOKUP(M648,Parameters!$G$4:$I$63,2,FALSE),\"\")","v":""}]
[null,null,"Verzekerde 638",null,null,null,null,null,null,null,null,null,null,{"$f":"IFERROR(VLOOKUP(M649,Parameters!$G$4:$I$63,2,FALSE),\"\")","v":""}]
[null,null,"Verzekerde 639",null,null,null,null,null,null,null,null,null,null,{"$f":"IFERROR(VLOOKUP(M650,Parameters!$G$4:$I$63,2,FALSE),\"\")","v":""}]
[null,null,"Verzekerde 640",null,null,null,null,null,null,null,null,null,null,{"$f":"IFERROR(VLOOKUP(M651,Parameters!$G$4:$I$63,2,FALSE),\"\")","v":""}]
[null,null,"Verzekerde 641",null,null,null,null,null,null,null,null,null,null,{"$f":"IFERROR(VLOOKUP(M652,Parameters!$G$4:$I$63,2,FALSE),\"\")","v":""}]
[null,null,"Verzekerde 642",null,null,null,null,null,null,null,null,null,null,{"$f":"IFERROR(VLOOKUP(M653,Parameters!$G$4:$I$63,2,FALSE),\"\")","v":""}]
[null,null,"Verzekerde 643",null,null,null,null,null,null,null,null,null,null,{"$f":"IFERROR(VLOOKUP(M654,Parameters!$G$4:$I$63,2,FALSE),\"\")","v":""}]
[null,null,"Verzekerde 644",null,null,null,null,null,null,null,null,null,null,{"$f":"IFERROR(VLOOKUP(M655,Parameters!$G$4:$I$63,2,FALSE),\"\")","v":""}]
[null,null,"Verzekerde 645",null,null,null,null,null,null,null,null,null,null,{"$f":"IFERROR(VLOOKUP(M656,Parameters!$G$4:$I$63,2,FALSE),\"\")","v":""}]
[null,null,"Verzekerde 646",null,null,null,null,null,null,null,null,null,null,{"$f":"IFERROR(VLOOKUP(M657,Parameters!$G$4:$I$63,2,FALSE),\"\")","v":""}]
[null,null,"Verzekerde 647",null,null,null,null,null,null,null,null,null,null,{"$f":"IFERROR(VLOOKUP(M658,Parameters!$G$4:$I$63,2,FALSE),\"\")","v":""}]
[null,null,"Verzekerde 648",null,null,null,null,null,null,null,null,null,null,{"$f":"IFERROR(VLOOKUP(M659,Parameters!$G$4:$I$63,2,FALSE),\"\")","v":""}]
[null,null,"Verzekerde 649",null,null,null,null,null,null,null,null,null,null,{"$f":"IFERROR(VLOOKUP(M660,Parameters!$G$4:$I$63,2,FALSE),\"\")","v":""}]
[null,null,"Verzekerde 650",null,null,null,null,null,null,null,null,null,null,{"$f":"IFERROR(VLOOKUP(M661,Parameters!$G$4:$I$63,2,FALSE),\"\")","v":""}]
[null,null,"Verzekerde 651",null,null,null,null,null,null,null,null,null,null,{"$f":"IFERROR(VLOOKUP(M662,Parameters!$G$4:$I$63,2,FALSE),\"\")","v":""}]
[null,null,"Verzekerde 652",null,null,null,null,null,null,null,null,null,null,{"$f":"IFERROR(VLOOKUP(M663,Parameters!$G$4:$I$63,2,FALSE),\"\")","v":""}]
[null,null,"Verzekerde 653",null,null,null,null,null,null,null,null,null,null,{"$f":"IFERROR(VLOOKUP(M664,Parameters!$G$4:$I$63,2,FALSE),\"\")","v":""}]
[null,null,"Verzekerde 654",null,null,null,null,null,null,null,null,null,null,{"$f":"IFERROR(VLOOKUP(M665,Parameters!$G$4:$I$63,2,FALSE),\"\")","v":""}]
[null,null,"Verzekerde 655",null,null,null,null,null,null,null,null,null,null,{"$f":"IFERROR(VLOOKUP(M666,Parameters!$G$4:$I$63,2,FALSE),\"\")","v":""}]
[null,null,"Verzekerde 656",null,null,null,null,null,null,null,null,null,null,{"$f":"IFERROR(VLOOKUP(M667,Parameters!$G$4:$I$63,2,FALSE),\"\")","v":""}]
[null,null,"Verzekerde 657",null,null,null,null,null,null,null,null,null,null,{"$f":"IFERROR(VLOOKUP(M668,Parameters!$G$4:$I$63,2,FALSE),\"\")","v":""}]
[null,null,"Verzekerde 658",null,null,null,null,null,null,null,null,null,null,{"$f":"IFERROR(VLOOKUP(M669,Parameters!$G$4:$I$63,2,FALSE),\"\")","v":""}]
[null,null,"Verzekerde 659",null,null,null,null,null,null,null,null,null,null,{"$f":"IFERROR(VLOOKUP(M670,Parameters!$G$4:$I$63,2,FALSE),\"\")","v":""}]
[null,null,"Verzekerde 660",null,null,null,null,null,null,null,null,null,null,{"$f":"IFERROR(VLOOKUP(M671,Parameters!$G$4:$I$63,2,FALSE),\"\")","v":""}]
[null,null,"Verzekerde 661",null,null,null,null,null,null,null,null,null,null,{"$f":"IFERROR(VLOOKUP(M672,Parameters!$G$4:$I$63,2,FALSE),\"\")","v":""}]
[null,null,"Verzekerde 662",null,null,null,null,null,null,null,null,null,null,{"$f":"IFERROR(VLOOKUP(M673,Parameters!$G$4:$I$63,2,FALSE),\"\")","v":""}]
[null,null,"Verzekerde 663",null,null,null,null,null,null,null,null,null,null,{"$f":"IFERROR(VLOOKUP(M674,Parameters!$G$4:$I$63,2,FALSE),\"\")","v":""}]
[null,null,"Verzekerde 664",null,null,null,null,null,null,null,null,null,null,{"$f":"IFERROR(VLOOKUP(M675,Parameters!$G$4:$I$63,2,FALSE),\"\")","v":""}]
[null,null,"Verzekerde 665",null,null,null,null,null,null,null,null,null,null,{"$f":"IFERROR(VLOOKUP(M676,Parameters!$G$4:$I$63,2,FALSE),\"\")","v":""}]
[null,null,"Verzekerde 666",null,null,null,null,null,null,null,null,null,null,{"$f":"IFERROR(VLOOKUP(M677,Parameters!$G$4:$I$63,2,FALSE),\"\")","v":""}]
[null,null,"Verzekerde 667",null,null,null,null,null,null,null,null,null,null,{"$f":"IFERROR(VLOOKUP(M678,Parameters!$G$4:$I$63,2,FALSE),\"\")","v":""}]
[null,null,"Verzekerde 668",null,null,null,null,null,null,null,null,null,null,{"$f":"IFERROR(VLOOKUP(M679,Parameters!$G$4:$I$63,2,FALSE),\"\")","v":""}]
[null,null,"Verzekerde 669",null,null,null,null,null,null,null,null,null,null,{"$f":"IFERROR(VLOOKUP(M680,Parameters!$G$4:$I$63,2,FALSE),\"\")","v":""}]
[null,null,"Verzekerde 670",null,null,null,null,null,null,null,null,null,null,{"$f":"IFERROR(VLOOKUP(M681,Parameters!$G$4:$I$63,2,FALSE),\"\")","v":""}]
[null,null,"Verzekerde 671",null,null,null,null,null,null,null,null,null,null,{"$f":"IFERROR(VLOOKUP(M682,Parameters!$G$4:$I$63,2,FALSE),\"\")","v":""}]
[null,null,"Verzekerde 672",null,null,null,null,null,null,null,null,null,null,{"$f":"IFERROR(VLOOKUP(M683,Parameters!$G$4:$I$63,2,FALSE),\"\")","v":""}]
[null,null,"Verzekerde 673",null,null,null,null,null,null,null,null,null,null,{"$f":"IFERROR(VLOOKUP(M684,Parameters!$G$4:$I$63,2,FALSE),\"\")","v":""}]
[null,null,"Verzekerde 674",null,null,null,null,null,null,null,null,null,null,{"$f":"IFERROR(VLOOKUP(M685,Parameters!$G$4:$I$63,2,FALSE),\"\")","v":""}]
[null,null,"Verzekerde 675",null,null,null,null,null,null,null,null,null,null,{"$f":"IFERROR(VLOOKUP(M686,Parameters!$G$4:$I$63,2,FALSE),\"\")","v":""}]
[null,null,"Verzekerde 676",null,null,null,null,null,null,null,null,null,null,{"$f":"IFERROR(VLOOKUP(M687,Parameters!$G$4:$I$63,2,FALSE),\"\")","v":""}]
[null,null,"Verzekerde 677",null,null,null,null,null,null,null,null,null,null,{"$f":"IFERROR(VLOOKUP(M688,Parameters!$G$4:$I$63,2,FALSE),\"\")","v":""}]
[null,null,"Verzekerde 678",null,null,null,null,null,null,null,null,null,null,{"$f":"IFERROR(VLOOKUP(M689,Parameters!$G$4:$I$63,2,FALSE),\"\")","v":""}]
[null,null,"Verzekerde 679",null,null,null,null,null,null,null,null,null,null,{"$f":"IFERROR(VLOOKUP(M690,Parameters!$G$4:$I$63,2,FALSE),\"\")","v":""}]
[null,null,"Verzekerde 680",null,null,null,null,null,null,null,null,null,null,{"$f":"IFERROR(VLOOKUP(M691,Parameters!$G$4:$I$63,2,FALSE),\"\")","v":""}]
[null,null,"Verzekerde 681",null,null,null,null,null,null,null,null,null,null,{"$f":"IFERROR(VLOOKUP(M692,Parameters!$G$4:$I$63,2,FALSE),\"\")","v":""}]
[null,null,"Verzekerde 682",null,null,null,null,null,null,null,null,null,null,{"$f":"IFERROR(VLOOKUP(M693,Parameters!$G$4:$I$63,2,FALSE),\"\")","v":""}]
[null,null,"Verzekerde 683",null,null,null,null,null,null,null,null,null,null,{"$f":"IFERROR(VLOOKUP(M694,Parameters!$G$4:$I$63,2,FALSE),\"\")","v":""}]
[null,null,"Verzekerde 684",null,null,null,null,null,null,null,null,null,null,{"$f":"IFERROR(VLOOKUP(M695,Parameters!$G$4:$I$63,2,FALSE),\"\")","v":""}]
[null,null,"Verzekerde 685",null,null,null,null,null,null,null,null,null,null,{"$f":"IFERROR(VLOOKUP(M696,Parameters!$G$4:$I$63,2,FALSE),\"\")","v":""}]
[null,null,"Verzekerde 686",null,null,null,null,null,null,null,null,null,null,{"$f":"IFERROR(VLOOKUP(M697,Parameters!$G$4:$I$63,2,FALSE),\"\")","v":""}]
[null,null,"Verzekerde 687",null,null,null,null,null,null,null,null,null,null,{"$f":"IFERROR(VLOOKUP(M698,Parameters!$G$4:$I$63,2,FALSE),\"\")","v":""}]
[null,null,"Verzekerde 688",null,null,null,null,null,null,null,null,null,null,{"$f":"IFERROR(VLOOKUP(M699,Parameters!$G$4:$I$63,2,FALSE),\"\")","v":""}]
[null,null,"Verzekerde 689",null,null,null,null,null,null,null,null,null,null,{"$f":"IFERROR(VLOOKUP(M700,Parameters!$G$4:$I$63,2,FALSE),\"\")","v":""}]
[null,null,"Verzekerde 690",null,null,null,null,null,null,null,null,null,null,{"$f":"IFERROR(VLOOKUP(M701,Parameters!$G$4:$I$63,2,FALSE),\"\")","v":""}]
[null,null,"Verzekerde 691",null,null,null,null,null,null,null,null,null,null,{"$f":"IFERROR(VLOOKUP(M702,Parameters!$G$4:$I$63,2,FALSE),\"\")","v":""}]
[null,null,"Verzekerde 692",null,null,null,null,null,null,null,null,null,null,{"$f":"IFERROR(VLOOKUP(M703,Parameters!$G$4:$I$63,2,FALSE),\"\")","v":""}]
[null,null,"Verzekerde 693",null,null,null,null,null,null,null,null,null,null,{"$f":"IFERROR(VLOOKUP(M704,Parameters!$G$4:$I$63,2,FALSE),\"\")","v":""}]
[null,null,"Verzekerde 694",null,null,null,null,null,null,null,null,null,null,{"$f":"IFERROR(VLOOKUP(M705,Parameters!$G$4:$I$63,2,FALSE),\"\")","v":""}]
[null,null,"Verzekerde 695",null,null,null,null,null,null,null,null,null,null,{"$f":"IFERROR(VLOOKUP(M706,Parameters!$G$4:$I$63,2,FALSE),\"\")","v":""}]
[null,null,"Verzekerde 696",null,null,null,null,null,null,null,null,null,null,{"$f":"IFERROR(VLOOKUP(M707,Parameters!$G$4:$I$63,2,FALSE),\"\")","v":""}]
[null,null,"Verzekerde 697",null,null,null,null,null,null,null,null,null,null,{"$f":"IFERROR(VLOOKUP(M708,Parameters!$G$4:$I$63,2,FALSE),\"\")","v":""}]
[null,null,"Verzekerde 698",null,null,null,null,null,null,null,null,null,null,{"$f":"IFERROR(VLOOKUP(M709,Parameters!$G$4:$I$63,2,FALSE),\"\")","v":""}]
[null,null,"Verzekerde 699",null,null,null,null,null,null,null,null,null,null,{"$f":"IFERROR(VLOOKUP(M710,Parameters!$G$4:$I$63,2,FALSE),\"\")","v":""}]
[null,null,"Verzekerde 700",null,null,null,null,null,null,null,null,null,null,{"$f":"IFERROR(VLOOKUP(M711,Parameters!$G$4:$I$63,2,FALSE),\"\")","v":""}]
[null,null,"Verzekerde 701",null,null,null,null,null,null,null,null,null,null,{"$f":"IFERROR(VLOOKUP(M712,Parameters!$G$4:$I$63,2,FALSE),\"\")","v":""}]
[null,null,"Verzekerde 702",null,null,null,null,null,null,null,null,null,null,{"$f":"IFERROR(VLOOKUP(M713,Parameters!$G$4:$I$63,2,FALSE),\"\")","v":""}]
[null,null,"Verzekerde 703",null,null,null,null,null,null,null,null,null,null,{"$f":"IFERROR(VLOOKUP(M714,Parameters!$G$4:$I$63,2,FALSE),\"\")","v":""}]
[null,null,"Verzekerde 704",null,null,null,null,null,null,null,null,null,null,{"$f":"IFERROR(VLOOKUP(M715,Parameters!$G$4:$I$63,2,FALSE),\"\")","v":""}]
[null,null,"Verzekerde 705",null,null,null,null,null,null,null,null,null,null,{"$f":"IFERROR(VLOOKUP(M716,Parameters!$G$4:$I$63,2,FALSE),\"\")","v":""}]
[null,null,"Verzekerde 706",null,null,null,null,null,null,null,null,null,null,{"$f":"IFERROR(VLOOKUP(M717,Parameters!$G$4:$I$63,2,FALSE),\"\")","v":""}]
[null,null,"Verzekerde 707",null,null,null,null,null,null,null,null,null,null,{"$f":"IFERROR(VLOOKUP(M718,Parameters!$G$4:$I$63,2,FALSE),\"\")","v":""}]
[null,null,"Verzekerde 708",null,null,null,null,null,null,null,null,null,null,{"$f":"IFERROR(VLOOKUP(M719,Parameters!$G$4:$I$63,2,FALSE),\"\")","v":""}]
[null,null,"Verzekerde 709",null,null,null,null,null,null,null,null,null,null,{"$f":"IFERROR(VLOOKUP(M720,Parameters!$G$4:$I$63,2,FALSE),\"\")","v":""}]
[null,null,"Verzekerde 710",null,null,null,null,null,null,null,null,null,null,{"$f":"IFERROR(VLOOKUP(M721,Parameters!$G$4:$I$63,2,FALSE),\"\")","v":""}]
[null,null,"Verzekerde 711",null,null,null,null,null,null,null,null,null,null,{"$f":"IFERROR(VLOOKUP(M722,Parameters!$G$4:$I$63,2,FALSE),\"\")","v":""}]
[null,null,"Verzekerde 712",null,null,null,null,null,null,null,null,null,null,{"$f":"IFERROR(VLOOKUP(M723,Parameters!$G$4:$I$63,2,FALSE),\"\")","v":""}]
[null,null,"Verzekerde 713",null,null,null,null,null,null,null,null,null,null,{"$f":"IFERROR(VLOOKUP(M724,Parameters!$G$4:$I$63,2,FALSE),\"\")","v":""}]
[null,null,"Verzekerde 714",null,null,null,null,null,null,null,null,null,null,{"$f":"IFERROR(VLOOKUP(M725,Parameters!$G$4:$I$63,2,FALSE),\"\")","v":""}]
[null,null,"Verzekerde 715",null,null,null,null,null,null,null,null,null,null,{"$f":"IFERROR(VLOOKUP(M726,Parameters!$G$4:$I$63,2,FALSE),\"\")","v":""}]
[null,null,"Verzekerde 716",null,null,null,null,null,null,null,null,null,null,{"$f":"IFERROR(VLOOKUP(M727,Parameters!$G$4:$I$63,2,FALSE),\"\")","v":""}]
[null,null,"Verzekerde 717",null,null,null,null,null,null,null,null,null,null,{"$f":"IFERROR(VLOOKUP(M728,Parameters!$G$4:$I$63,2,FALSE),\"\")","v":""}]
[null,null,"Verzekerde 718",null,null,null,null,null,null,null,null,null,null,{"$f":"IFERROR(VLOOKUP(M729,Parameters!$G$4:$I$63,2,FALSE),\"\")","v":""}]
[null,null,"Verzekerde 719",null,null,null,null,null,null,null,null,null,null,{"$f":"IFERROR(VLOOKUP(M730,Parameters!$G$4:$I$63,2,FALSE),\"\")","v":""}]
[null,null,"Verzekerde 720",null,null,null,null,null,null,null,null,null,null,{"$f":"IFERROR(VLOOKUP(M731,Parameters!$G$4:$I$63,2,FALSE),\"\")","v":""}]
[null,null,"Verzekerde 721",null,null,null,null,null,null,null,null,null,null,{"$f":"IFERROR(VLOOKUP(M732,Parameters!$G$4:$I$63,2,FALSE),\"\")","v":""}]
[null,null,"Verzekerde 722",null,null,null,null,null,null,null,null,null,null,{"$f":"IFERROR(VLOOKUP(M733,Parameters!$G$4:$I$63,2,FALSE),\"\")","v":""}]
[null,null,"Verzekerde 723",null,null,null,null,null,null,null,null,null,null,{"$f":"IFERROR(VLOOKUP(M734,Parameters!$G$4:$I$63,2,FALSE),\"\")","v":""}]
[null,null,"Verzekerde 724",null,null,null,null,null,null,null,null,null,null,{"$f":"IFERROR(VLOOKUP(M735,Parameters!$G$4:$I$63,2,FALSE),\"\")","v":""}]
[null,null,"Verzekerde 725",null,null,null,null,null,null,null,null,null,null,{"$f":"IFERROR(VLOOKUP(M736,Parameters!$G$4:$I$63,2,FALSE),\"\")","v":""}]
[null,null,"Verzekerde 726",null,null,null,null,null,null,null,null,null,null,{"$f":"IFERROR(VLOOKUP(M737,Parameters!$G$4:$I$63,2,FALSE),\"\")","v":""}]
[null,null,"Verzekerde 727",null,null,null,null,null,null,null,null,null,null,{"$f":"IFERROR(VLOOKUP(M738,Parameters!$G$4:$I$63,2,FALSE),\"\")","v":""}]
[null,null,"Verzekerde 728",null,null,null,null,null,null,null,null,null,null,{"$f":"IFERROR(VLOOKUP(M739,Parameters!$G$4:$I$63,2,FALSE),\"\")","v":""}]
[null,null,"Verzekerde 729",null,null,null,null,null,null,null,null,null,null,{"$f":"IFERROR(VLOOKUP(M740,Parameters!$G$4:$I$63,2,FALSE),\"\")","v":""}]
[null,null,"Verzekerde 730",null,null,null,null,null,null,null,null,null,null,{"$f":"IFERROR(VLOOKUP(M741,Parameters!$G$4:$I$63,2,FALSE),\"\")","v":""}]
[null,null,"Verzekerde 731",null,null,null,null,null,null,null,null,null,null,{"$f":"IFERROR(VLOOKUP(M742,Parameters!$G$4:$I$63,2,FALSE),\"\")","v":""}]
[null,null,"Verzekerde 732",null,null,null,null,null,null,null,null,null,null,{"$f":"IFERROR(VLOOKUP(M743,Parameters!$G$4:$I$63,2,FALSE),\"\")","v":""}]
[null,null,"Verzekerde 733",null,null,null,null,null,null,null,null,null,null,{"$f":"IFERROR(VLOOKUP(M744,Parameters!$G$4:$I$63,2,FALSE),\"\")","v":""}]
[null,null,"Verzekerde 734",null,null,null,null,null,null,null,null,null,null,{"$f":"IFERROR(VLOOKUP(M745,Parameters!$G$4:$I$63,2,FALSE),\"\")","v":""}]
[null,null,"Verzekerde 735",null,null,null,null,null,null,null,null,null,null,{"$f":"IFERROR(VLOOKUP(M746,Parameters!$G$4:$I$63,2,FALSE),\"\")","v":""}]
[null,null,"Verzekerde 736",null,null,null,null,null,null,null,null,null,null,{"$f":"IFERROR(VLOOKUP(M747,Parameters!$G$4:$I$63,2,FALSE),\"\")","v":""}]
[null,null,"Verzekerde 737",null,null,null,null,null,null,null,null,null,null,{"$f":"IFERROR(VLOOKUP(M748,Parameters!$G$4:$I$63,2,FALSE),\"\")","v":""}]
[null,null,"Verzekerde 738",null,null,null,null,null,null,null,null,null,null,{"$f":"IFERROR(VLOOKUP(M749,Parameters!$G$4:$I$63,2,FALSE),\"\")","v":""}]
[null,null,"Verzekerde 739",null,null,null,null,null,null,null,null,null,null,{"$f":"IFERROR(VLOOKUP(M750,Parameters!$G$4:$I$63,2,FALSE),\"\")","v":""}]
[null,null,"Verzekerde 740",null,null,null,null,null,null,null,null,null,null,{"$f":"IFERROR(VLOOKUP(M751,Parameters!$G$4:$I$63,2,FALSE),\"\")","v":""}]
[null,null,"Verzekerde 741",null,null,null,null,null,null,null,null,null,null,{"$f":"IFERROR(VLOOKUP(M752,Parameters!$G$4:$I$63,2,FALSE),\"\")","v":""}]
[null,null,"Verzekerde 742",null,null,null,null,null,null,null,null,null,null,{"$f":"IFERROR(VLOOKUP(M753,Parameters!$G$4:$I$63,2,FALSE),\"\")","v":""}]
[null,null,"Verzekerde 743",null,null,null,null,null,null,null,null,null,null,{"$f":"IFERROR(VLOOKUP(M754,Parameters!$G$4:$I$63,2,FALSE),\"\")","v":""}]
[null,null,"Verzekerde 744",null,null,null,null,null,null,null,null,null,null,{"$f":"IFERROR(VLOOKUP(M755,Parameters!$G$4:$I$63,2,FALSE),\"\")","v":""}]
[null,null,"Verzekerde 745",null,null,null,null,null,null,null,null,null,null,{"$f":"IFERROR(VLOOKUP(M756,Parameters!$G$4:$I$63,2,FALSE),\"\")","v":""}]
[null,null,"Verzekerde 746",null,null,null,null,null,null,null,null,null,null,{"$f":"IFERROR(VLOOKUP(M757,Parameters!$G$4:$I$63,2,FALSE),\"\")","v":""}]
[null,null,"Verzekerde 747",null,null,null,null,null,null,null,null,null,null,{"$f":"IFERROR(VLOOKUP(M758,Parameters!$G$4:$I$63,2,FALSE),\"\")","v":""}]
[null,null,"Verzekerde 748",null,null,null,null,null,null,null,null,null,null,{"$f":"IFERROR(VLOOKUP(M759,Parameters!$G$4:$I$63,2,FALSE),\"\")","v":""}]
[null,null,"Verzekerde 749",null,null,null,null,null,null,null,null,null,null,{"$f":"IFERROR(VLOOKUP(M760,Parameters!$G$4:$I$63,2,FALSE),\"\")","v":""}]
[null,null,"Verzekerde 750",null,null,null,null,null,null,null,null,null,null,{"$f":"IFERROR(VLOOKUP(M761,Parameters!$G$4:$I$63,2,FALSE),\"\")","v":""}]
[null,null,"Verzekerde 751",null,null,null,null,null,null,null,null,null,null,{"$f":"IFERROR(VLOOKUP(M762,Parameters!$G$4:$I$63,2,FALSE),\"\")","v":""}]
[null,null,"Verzekerde 752",null,null,null,null,null,null,null,null,null,null,{"$f":"IFERROR(VLOOKUP(M763,Parameters!$G$4:$I$63,2,FALSE),\"\")","v":""}]
[null,null,"Verzekerde 753",null,null,null,null,null,null,null,null,null,null,{"$f":"IFERROR(VLOOKUP(M764,Parameters!$G$4:$I$63,2,FALSE),\"\")","v":""}]
[null,null,"Verzekerde 754",null,null,null,null,null,null,null,null,null,null,{"$f":"IFERROR(VLOOKUP(M765,Parameters!$G$4:$I$63,2,FALSE),\"\")","v":""}]
[null,null,"Verzekerde 755",null,null,null,null,null,null,null,null,null,null,{"$f":"IFERROR(VLOOKUP(M766,Parameters!$G$4:$I$63,2,FALSE),\"\")","v":""}]
[null,null,"Verzekerde 756",null,null,null,null,null,null,null,null,null,null,{"$f":"IFERROR(VLOOKUP(M767,Parameters!$G$4:$I$63,2,FALSE),\"\")","v":""}]
[null,null,"Verzekerde 757",null,null,null,null,null,null,null,null,null,null,{"$f":"IFERROR(VLOOKUP(M768,Parameters!$G$4:$I$63,2,FALSE),\"\")","v":""}]
[null,null,"Verzekerde 758",null,null,null,null,null,null,null,null,null,null,{"$f":"IFERROR(VLOOKUP(M769,Parameters!$G$4:$I$63,2,FALSE),\"\")","v":""}]
[null,null,"Verzekerde 759",null,null,null,null,null,null,null,null,null,null,{"$f":"IFERROR(VLOOKUP(M770,Parameters!$G$4:$I$63,2,FALSE),\"\")","v":""}]
[null,null,"Verzekerde 760",null,null,null,null,null,null,null,null,null,null,{"$f":"IFERROR(VLOOKUP(M771,Parameters!$G$4:$I$63,2,FALSE),\"\")","v":""}]
[null,null,"Verzekerde 761",null,null,null,null,null,null,null,null,null,null,{"$f":"IFERROR(VLOOKUP(M772,Parameters!$G$4:$I$63,2,FALSE),\"\")","v":""}]
[null,null,"Verzekerde 762",null,null,null,null,null,null,null,null,null,null,{"$f":"IFERROR(VLOOKUP(M773,Parameters!$G$4:$I$63,2,FALSE),\"\")","v":""}]
[null,null,"Verzekerde 763",null,null,null,null,null,null,null,null,null,null,{"$f":"IFERROR(VLOOKUP(M774,Parameters!$G$4:$I$63,2,FALSE),\"\")","v":""}]
[null,null,"Verzekerde 764",null,null,null,null,null,null,null,null,null,null,{"$f":"IFERROR(VLOOKUP(M775,Parameters!$G$4:$I$63,2,FALSE),\"\")","v":""}]
[null,null,"Verzekerde 765",null,null,null,null,null,null,null,null,null,null,{"$f":"IFERROR(VLOOKUP(M776,Parameters!$G$4:$I$63,2,FALSE),\"\")","v":""}]
[null,null,"Verzekerde 766",null,null,null,null,null,null,null,null,null,null,{"$f":"IFERROR(VLOOKUP(M777,Parameters!$G$4:$I$63,2,FALSE),\"\")","v":""}]
[null,null,"Verzekerde 767",null,null,null,null,null,null,null,null,null,null,{"$f":"IFERROR(VLOOKUP(M778,Parameters!$G$4:$I$63,2,FALSE),\"\")","v":""}]
[null,null,"Verzekerde 768",null,null,null,null,null,null,null,null,null,null,{"$f":"IFERROR(VLOOKUP(M779,Parameters!$G$4:$I$63,2,FALSE),\"\")","v":""}]
[null,null,"Verzekerde 769",null,null,null,null,null,null,null,null,null,null,{"$f":"IFERROR(VLOOKUP(M780,Parameters!$G$4:$I$63,2,FALSE),\"\")","v":""}]
[null,null,"Verzekerde 770",null,null,null,null,null,null,null,null,null,null,{"$f":"IFERROR(VLOOKUP(M781,Parameters!$G$4:$I$63,2,FALSE),\"\")","v":""}]
[null,null,"Verzekerde 771",null,null,null,null,null,null,null,null,null,null,{"$f":"IFERROR(VLOOKUP(M782,Parameters!$G$4:$I$63,2,FALSE),\"\")","v":""}]
[null,null,"Verzekerde 772",null,null,null,null,null,null,null,null,null,null,{"$f":"IFERROR(VLOOKUP(M783,Parameters!$G$4:$I$63,2,FALSE),\"\")","v":""}]
[null,null,"Verzekerde 773",null,null,null,null,null,null,null,null,null,null,{"$f":"IFERROR(VLOOKUP(M784,Parameters!$G$4:$I$63,2,FALSE),\"\")","v":""}]
[null,null,"Verzekerde 774",null,null,null,null,null,null,null,null,null,null,{"$f":"IFERROR(VLOOKUP(M785,Parameters!$G$4:$I$63,2,FALSE),\"\")","v":""}]
[null,null,"Verzekerde 775",null,null,null,null,null,null,null,null,null,null,{"$f":"IFERROR(VLOOKUP(M786,Parameters!$G$4:$I$63,2,FALSE),\"\")","v":""}]
[null,null,"Verzekerde 776",null,null,null,null,null,null,null,null,null,null,{"$f":"IFERROR(VLOOKUP(M787,Parameters!$G$4:$I$63,2,FALSE),\"\")","v":""}]
[null,null,"Verzekerde 777",null,null,null,null,null,null,null,null,null,null,{"$f":"IFERROR(VLOOKUP(M788,Parameters!$G$4:$I$63,2,FALSE),\"\")","v":""}]
[null,null,"Verzekerde 778",null,null,null,null,null,null,null,null,null,null,{"$f":"IFERROR(VLOOKUP(M789,Parameters!$G$4:$I$63,2,FALSE),\"\")","v":""}]
[null,null,"Verzekerde 779",null,null,null,null,null,null,null,null,null,null,{"$f":"IFERROR(VLOOKUP(M790,Parameters!$G$4:$I$63,2,FALSE),\"\")","v":""}]
[null,null,"Verzekerde 780",null,null,null,null,null,null,null,null,null,null,{"$f":"IFERROR(VLOOKUP(M791,Parameters!$G$4:$I$63,2,FALSE),\"\")","v":""}]
[null,null,"Verzekerde 781",null,null,null,null,null,null,null,null,null,null,{"$f":"IFERROR(VLOOKUP(M792,Parameters!$G$4:$I$63,2,FALSE),\"\")","v":""}]
[null,null,"Verzekerde 782",null,null,null,null,null,null,null,null,null,null,{"$f":"IFERROR(VLOOKUP(M793,Parameters!$G$4:$I$63,2,FALSE),\"\")","v":""}]
[null,null,"Verzekerde 783",null,null,null,null,null,null,null,null,null,null,{"$f":"IFERROR(VLOOKUP(M794,Parameters!$G$4:$I$63,2,FALSE),\"\")","v":""}]
[null,null,"Verzekerde 784",null,null,null,null,null,null,null,null,null,null,{"$f":"IFERROR(VLOOKUP(M795,Parameters!$G$4:$I$63,2,FALSE),\"\")","v":""}]
[null,null,"Verzekerde 785",null,null,null,null,null,null,null,null,null,null,{"$f":"IFERROR(VLOOKUP(M796,Parameters!$G$4:$I$63,2,FALSE),\"\")","v":""}]
[null,null,"Verzekerde 786",null,null,null,null,null,null,null,null,null,null,{"$f":"IFERROR(VLOOKUP(M797,Parameters!$G$4:$I$63,2,FALSE),\"\")","v":""}]
[null,null,"Verzekerde 787",null,null,null,null,null,null,null,null,null,null,{"$f":"IFERROR(VLOOKUP(M798,Parameters!$G$4:$I$63,2,FALSE),\"\")","v":""}]
[null,null,"Verzekerde 788",null,null,null,null,null,null,null,null,null,null,{"$f":"IFERROR(VLOOKUP(M799,Parameters!$G$4:$I$63,2,FALSE),\"\")","v":""}]
[null,null,"Verzekerde 789",null,null,null,null,null,null,null,null,null,null,{"$f":"IFERROR(VLOOKUP(M800,Parameters!$G$4:$I$63,2,FALSE),\"\")","v":""}]
[null,null,"Verzekerde 790",null,null,null,null,null,null,null,null,null,null,{"$f":"IFERROR(VLOOKUP(M801,Parameters!$G$4:$I$63,2,FALSE),\"\")","v":""}]
[null,null,"Verzekerde 791",null,null,null,null,null,null,null,null,null,null,{"$f":"IFERROR(VLOOKUP(M802,Parameters!$G$4:$I$63,2,FALSE),\"\")","v":""}]
[null,null,"Verzekerde 792",null,null,null,null,null,null,null,null,null,null,{"$f":"IFERROR(VLOOKUP(M803,Parameters!$G$4:$I$63,2,FALSE),\"\")","v":""}]
[null,null,"Verzekerde 793",null,null,null,null,null,null,null,null,null,null,{"$f":"IFERROR(VLOOKUP(M804,Parameters!$G$4:$I$63,2,FALSE),\"\")","v":""}]
[null,null,"Verzekerde 794",null,null,null,null,null,null,null,null,null,null,{"$f":"IFERROR(VLOOKUP(M805,Parameters!$G$4:$I$63,2,FALSE),\"\")","v":""}]
[null,null,"Verzekerde 795",null,null,null,null,null,null,null,null,null,null,{"$f":"IFERROR(VLOOKUP(M806,Parameters!$G$4:$I$63,2,FALSE),\"\")","v":""}]
[null,null,"Verzekerde 796",null,null,null,null,null,null,null,null,null,null,{"$f":"IFERROR(VLOOKUP(M807,Parameters!$G$4:$I$63,2,FALSE),\"\")","v":""}]
[null,null,"Verzekerde 797",null,null,null,null,null,null,null,null,null,null,{"$f":"IFERROR(VLOOKUP(M808,Parameters!$G$4:$I$63,2,FALSE),\"\")","v":""}]
[null,null,"Verzekerde 798",null,null,null,null,null,null,null,null,null,null,{"$f":"IFERROR(VLOOKUP(M809,Parameters!$G$4:$I$63,2,FALSE),\"\")","v":""}]
[null,null,"Verzekerde 799",null,null,null,null,null,null,null,null,null,null,{"$f":"IFERROR(VLOOKUP(M810,Parameters!$G$4:$I$63,2,FALSE),\"\")","v":""}]
[null,null,"Verzekerde 800",null,null,null,null,null,null,null,null,null,null,{"$f":"IFERROR(VLOOKUP(M811,Parameters!$G$4:$I$63,2,FALSE),\"\")","v":""}]
[null,null,"Verzekerde 801",null,null,null,null,null,null,null,null,null,null,{"$f":"IFERROR(VLOOKUP(M812,Parameters!$G$4:$I$63,2,FALSE),\"\")","v":""}]
[null,null,"Verzekerde 802",null,null,null,null,null,null,null,null,null,null,{"$f":"IFERROR(VLOOKUP(M813,Parameters!$G$4:$I$63,2,FALSE),\"\")","v":""}]
[null,null,"Verzekerde 803",null,null,null,null,null,null,null,null,null,null,{"$f":"IFERROR(VLOOKUP(M814,Parameters!$G$4:$I$63,2,FALSE),\"\")","v":""}]
[null,null,"Verzekerde 804",null,null,null,null,null,null,null,null,null,null,{"$f":"IFERROR(VLOOKUP(M815,Parameters!$G$4:$I$63,2,FALSE),\"\")","v":""}]
[null,null,"Verzekerde 805",null,null,null,null,null,null,null,null,null,null,{"$f":"IFERROR(VLOOKUP(M816,Parameters!$G$4:$I$63,2,FALSE),\"\")","v":""}]
[null,null,"Verzekerde 806",null,null,null,null,null,null,null,null,null,null,{"$f":"IFERROR(VLOOKUP(M817,Parameters!$G$4:$I$63,2,FALSE),\"\")","v":""}]
[null,null,"Verzekerde 807",null,null,null,null,null,null,null,null,null,null,{"$f":"IFERROR(VLOOKUP(M818,Parameters!$G$4:$I$63,2,FALSE),\"\")","v":""}]
[null,null,"Verzekerde 808",null,null,null,null,null,null,null,null,null,null,{"$f":"IFERROR(VLOOKUP(M819,Parameters!$G$4:$I$63,2,FALSE),\"\")","v":""}]
[null,null,"Verzekerde 809",null,null,null,null,null,null,null,null,null,null,{"$f":"IFERROR(VLOOKUP(M820,Parameters!$G$4:$I$63,2,FALSE),\"\")","v":""}]
[null,null,"Verzekerde 810",null,null,null,null,null,null,null,null,null,null,{"$f":"IFERROR(VLOOKUP(M821,Parameters!$G$4:$I$63,2,FALSE),\"\")","v":""}]
[null,null,"Verzekerde 811",null,null,null,null,null,null,null,null,null,null,{"$f":"IFERROR(VLOOKUP(M822,Parameters!$G$4:$I$63,2,FALSE),\"\")","v":""}]
[null,null,"Verzekerde 812",null,null,null,null,null,null,null,null,null,null,{"$f":"IFERROR(VLOOKUP(M823,Parameters!$G$4:$I$63,2,FALSE),\"\")","v":""}]
[null,null,"Verzekerde 813",null,null,null,null,null,null,null,null,null,null,{"$f":"IFERROR(VLOOKUP(M824,Parameters!$G$4:$I$63,2,FALSE),\"\")","v":""}]
[null,null,"Verzekerde 814",null,null,null,null,null,null,null,null,null,null,{"$f":"IFERROR(VLOOKUP(M825,Parameters!$G$4:$I$63,2,FALSE),\"\")","v":""}]
[null,null,"Verzekerde 815",null,null,null,null,null,null,null,null,null,null,{"$f":"IFERROR(VLOOKUP(M826,Parameters!$G$4:$I$63,2,FALSE),\"\")","v":""}]
[null,null,"Verzekerde 816",null,null,null,null,null,null,null,null,null,null,{"$f":"IFERROR(VLOOKUP(M827,Parameters!$G$4:$I$63,2,FALSE),\"\")","v":""}]
[null,null,"Verzekerde 817",null,null,null,null,null,null,null,null,null,null,{"$f":"IFERROR(VLOOKUP(M828,Parameters!$G$4:$I$63,2,FALSE),\"\")","v":""}]
[null,null,"Verzekerde 818",null,null,null,null,null,null,null,null,null,null,{"$f":"IFERROR(VLOOKUP(M829,Parameters!$G$4:$I$63,2,FALSE),\"\")","v":""}]
[null,null,"Verzekerde 819",null,null,null,null,null,null,null,null,null,null,{"$f":"IFERROR(VLOOKUP(M830,Parameters!$G$4:$I$63,2,FALSE),\"\")","v":""}]
[null,null,"Verzekerde 820",null,null,null,null,null,null,null,null,null,null,{"$f":"IFERROR(VLOOKUP(M831,Parameters!$G$4:$I$63,2,FALSE),\"\")","v":""}]
[null,null,"Verzekerde 821",null,null,null,null,null,null,null,null,null,null,{"$f":"IFERROR(VLOOKUP(M832,Parameters!$G$4:$I$63,2,FALSE),\"\")","v":""}]
[null,null,"Verzekerde 822",null,null,null,null,null,null,null,null,null,null,{"$f":"IFERROR(VLOOKUP(M833,Parameters!$G$4:$I$63,2,FALSE),\"\")","v":""}]
[null,null,"Verzekerde 823",null,null,null,null,null,null,null,null,null,null,{"$f":"IFERROR(VLOOKUP(M834,Parameters!$G$4:$I$63,2,FALSE),\"\")","v":""}]
[null,null,"Verzekerde 824",null,null,null,null,null,null,null,null,null,null,{"$f":"IFERROR(VLOOKUP(M835,Parameters!$G$4:$I$63,2,FALSE),\"\")","v":""}]
[null,null,"Verzekerde 825",null,null,null,null,null,null,null,null,null,null,{"$f":"IFERROR(VLOOKUP(M836,Parameters!$G$4:$I$63,2,FALSE),\"\")","v":""}]
[null,null,"Verzekerde 826",null,null,null,null,null,null,null,null,null,null,{"$f":"IFERROR(VLOOKUP(M837,Parameters!$G$4:$I$63,2,FALSE),\"\")","v":""}]
[null,null,"Verzekerde 827",null,null,null,null,null,null,null,null,null,null,{"$f":"IFERROR(VLOOKUP(M838,Parameters!$G$4:$I$63,2,FALSE),\"\")","v":""}]
[null,null,"Verzekerde 828",null,null,null,null,null,null,null,null,null,null,{"$f":"IFERROR(VLOOKUP(M839,Parameters!$G$4:$I$63,2,FALSE),\"\")","v":""}]
[null,null,"Verzekerde 829",null,null,null,null,null,null,null,null,null,null,{"$f":"IFERROR(VLOOKUP(M840,Parameters!$G$4:$I$63,2,FALSE),\"\")","v":""}]
[null,null,"Verzekerde 830",null,null,null,null,null,null,null,null,null,null,{"$f":"IFERROR(VLOOKUP(M841,Parameters!$G$4:$I$63,2,FALSE),\"\")","v":""}]
[null,null,"Verzekerde 831",null,null,null,null,null,null,null,null,null,null,{"$f":"IFERROR(VLOOKUP(M842,Parameters!$G$4:$I$63,2,FALSE),\"\")","v":""}]
[null,null,"Verzekerde 832",null,null,null,null,null,null,null,null,null,null,{"$f":"IFERROR(VLOOKUP(M843,Parameters!$G$4:$I$63,2,FALSE),\"\")","v":""}]
[null,null,"Verzekerde 833",null,null,null,null,null,null,null,null,null,null,{"$f":"IFERROR(VLOOKUP(M844,Parameters!$G$4:$I$63,2,FALSE),\"\")","v":""}]
[null,null,"Verzekerde 834",null,null,null,null,null,null,null,null,null,null,{"$f":"IFERROR(VLOOKUP(M845,Parameters!$G$4:$I$63,2,FALSE),\"\")","v":""}]
[null,null,"Verzekerde 835",null,null,null,null,null,null,null,null,null,null,{"$f":"IFERROR(VLOOKUP(M846,Parameters!$G$4:$I$63,2,FALSE),\"\")","v":""}]
[null,null,"Verzekerde 836",null,null,null,null,null,null,null,null,null,null,{"$f":"IFERROR(VLOOKUP(M847,Parameters!$G$4:$I$63,2,FALSE),\"\")","v":""}]
[null,null,"Verzekerde 837",null,null,null,null,null,null,null,null,null,null,{"$f":"IFERROR(VLOOKUP(M848,Parameters!$G$4:$I$63,2,FALSE),\"\")","v":""}]
[null,null,"Verzekerde 838",null,null,null,null,null,null,null,null,null,null,{"$f":"IFERROR(VLOOKUP(M849,Parameters!$G$4:$I$63,2,FALSE),\"\")","v":""}]
[null,null,"Verzekerde 839",null,null,null,null,null,null,null,null,null,null,{"$f":"IFERROR(VLOOKUP(M850,Parameters!$G$4:$I$63,2,FALSE),\"\")","v":""}]
[null,null,"Verzekerde 840",null,null,null,null,null,null,null,null,null,null,{"$f":"IFERROR(VLOOKUP(M851,Parameters!$G$4:$I$63,2,FALSE),\"\")","v":""}]
[null,null,"Verzekerde 841",null,null,null,null,null,null,null,null,null,null,{"$f":"IFERROR(VLOOKUP(M852,Parameters!$G$4:$I$63,2,FALSE),\"\")","v":""}]
[null,null,"Verzekerde 842",null,null,null,null,null,null,null,null,null,null,{"$f":"IFERROR(VLOOKUP(M853,Parameters!$G$4:$I$63,2,FALSE),\"\")","v":""}]
[null,null,"Verzekerde 843",null,null,null,null,null,null,null,null,null,null,{"$f":"IFERROR(VLOOKUP(M854,Parameters!$G$4:$I$63,2,FALSE),\"\")","v":""}]
[null,null,"Verzekerde 844",null,null,null,null,null,null,null,null,null,null,{"$f":"IFERROR(VLOOKUP(M855,Parameters!$G$4:$I$63,2,FALSE),\"\")","v":""}]
[null,null,"Verzekerde 845",null,null,null,null,null,null,null,null,null,null,{"$f":"IFERROR(VLOOKUP(M856,Parameters!$G$4:$I$63,2,FALSE),\"\")","v":""}]
[null,null,"Verzekerde 846",null,null,null,null,null,null,null,null,null,null,{"$f":"IFERROR(VLOOKUP(M857,Parameters!$G$4:$I$63,2,FALSE),\"\")","v":""}]
[null,null,"Verzekerde 847",null,null,null,null,null,null,null,null,null,null,{"$f":"IFERROR(VLOOKUP(M858,Parameters!$G$4:$I$63,2,FALSE),\"\")","v":""}]
[null,null,"Verzekerde 848",null,null,null,null,null,null,null,null,null,null,{"$f":"IFERROR(VLOOKUP(M859,Parameters!$G$4:$I$63,2,FALSE),\"\")","v":""}]
[null,null,"Verzekerde 849",null,null,null,null,null,null,null,null,null,null,{"$f":"IFERROR(VLOOKUP(M860,Parameters!$G$4:$I$63,2,FALSE),\"\")","v":""}]
[null,null,"Verzekerde 850",null,null,null,null,null,null,null,null,null,null,{"$f":"IFERROR(VLOOKUP(M861,Parameters!$G$4:$I$63,2,FALSE),\"\")","v":""}]
[null,null,"Verzekerde 851",null,null,null,null,null,null,null,null,null,null,{"$f":"IFERROR(VLOOKUP(M862,Parameters!$G$4:$I$63,2,FALSE),\"\")","v":""}]
[null,null,"Verzekerde 852",null,null,null,null,null,null,null,null,null,null,{"$f":"IFERROR(VLOOKUP(M863,Parameters!$G$4:$I$63,2,FALSE),\"\")","v":""}]
[null,null,"Verzekerde 853",null,null,null,null,null,null,null,null,null,null,{"$f":"IFERROR(VLOOKUP(M864,Parameters!$G$4:$I$63,2,FALSE),\"\")","v":""}]
[null,null,"Verzekerde 854",null,null,null,null,null,null,null,null,null,null,{"$f":"IFERROR(VLOOKUP(M865,Parameters!$G$4:$I$63,2,FALSE),\"\")","v":""}]
[null,null,"Verzekerde 855",null,null,null,null,null,null,null,null,null,null,{"$f":"IFERROR(VLOOKUP(M866,Parameters!$G$4:$I$63,2,FALSE),\"\")","v":""}]
[null,null,"Verzekerde 856",null,null,null,null,null,null,null,null,null,null,{"$f":"IFERROR(VLOOKUP(M867,Parameters!$G$4:$I$63,2,FALSE),\"\")","v":""}]
[null,null,"Verzekerde 857",null,null,null,null,null,null,null,null,null,null,{"$f":"IFERROR(VLOOKUP(M868,Parameters!$G$4:$I$63,2,FALSE),\"\")","v":""}]
[null,null,"Verzekerde 858",null,null,null,null,null,null,null,null,null,null,{"$f":"IFERROR(VLOOKUP(M869,Parameters!$G$4:$I$63,2,FALSE),\"\")","v":""}]
[null,null,"Verzekerde 859",null,null,null,null,null,null,null,null,null,null,{"$f":"IFERROR(VLOOKUP(M870,Parameters!$G$4:$I$63,2,FALSE),\"\")","v":""}]
[null,null,"Verzekerde 860",null,null,null,null,null,null,null,null,null,null,{"$f":"IFERROR(VLOOKUP(M871,Parameters!$G$4:$I$63,2,FALSE),\"\")","v":""}]
[null,null,"Verzekerde 861",null,null,null,null,null,null,null,null,null,null,{"$f":"IFERROR(VLOOKUP(M872,Parameters!$G$4:$I$63,2,FALSE),\"\")","v":""}]
[null,null,"Verzekerde 862",null,null,null,null,null,null,null,null,null,null,{"$f":"IFERROR(VLOOKUP(M873,Parameters!$G$4:$I$63,2,FALSE),\"\")","v":""}]
[null,null,"Verzekerde 863",null,null,null,null,null,null,null,null,null,null,{"$f":"IFERROR(VLOOKUP(M874,Parameters!$G$4:$I$63,2,FALSE),\"\")","v":""}]
[null,null,"Verzekerde 864",null,null,null,null,null,null,null,null,null,null,{"$f":"IFERROR(VLOOKUP(M875,Parameters!$G$4:$I$63,2,FALSE),\"\")","v":""}]
[null,null,"Verzekerde 865",null,null,null,null,null,null,null,null,null,null,{"$f":"IFERROR(VLOOKUP(M876,Parameters!$G$4:$I$63,2,FALSE),\"\")","v":""}]
[null,null,"Verzekerde 866",null,null,null,null,null,null,null,null,null,null,{"$f":"IFERROR(VLOOKUP(M877,Parameters!$G$4:$I$63,2,FALSE),\"\")","v":""}]
[null,null,"Verzekerde 867",null,null,null,null,null,null,null,null,null,null,{"$f":"IFERROR(VLOOKUP(M878,Parameters!$G$4:$I$63,2,FALSE),\"\")","v":""}]
[null,null,"Verzekerde 868",null,null,null,null,null,null,null,null,null,null,{"$f":"IFERROR(VLOOKUP(M879,Parameters!$G$4:$I$63,2,FALSE),\"\")","v":""}]
[null,null,"Verzekerde 869",null,null,null,null,null,null,null,null,null,null,{"$f":"IFERROR(VLOOKUP(M880,Parameters!$G$4:$I$63,2,FALSE),\"\")","v":""}]
[null,null,"Verzekerde 870",null,null,null,null,null,null,null,null,null,null,{"$f":"IFERROR(VLOOKUP(M881,Parameters!$G$4:$I$63,2,FALSE),\"\")","v":""}]
[null,null,"Verzekerde 871",null,null,null,null,null,null,null,null,null,null,{"$f":"IFERROR(VLOOKUP(M882,Parameters!$G$4:$I$63,2,FALSE),\"\")","v":""}]
[null,null,"Verzekerde 872",null,null,null,null,null,null,null,null,null,null,{"$f":"IFERROR(VLOOKUP(M883,Parameters!$G$4:$I$63,2,FALSE),\"\")","v":""}]
[null,null,"Verzekerde 873",null,null,null,null,null,null,null,null,null,null,{"$f":"IFERROR(VLOOKUP(M884,Parameters!$G$4:$I$63,2,FALSE),\"\")","v":""}]
[null,null,"Verzekerde 874",null,null,null,null,null,null,null,null,null,null,{"$f":"IFERROR(VLOOKUP(M885,Parameters!$G$4:$I$63,2,FALSE),\"\")","v":""}]
[null,null,"Verzekerde 875",null,null,null,null,null,null,null,null,null,null,{"$f":"IFERROR(VLOOKUP(M886,Parameters!$G$4:$I$63,2,FALSE),\"\")","v":""}]
[null,null,"Verzekerde 876",null,null,null,null,null,null,null,null,null,null,{"$f":"IFERROR(VLOOKUP(M887,Parameters!$G$4:$I$63,2,FALSE),\"\")","v":""}]
[null,null,"Verzekerde 877",null,null,null,null,null,null,null,null,null,null,{"$f":"IFERROR(VLOOKUP(M888,Parameters!$G$4:$I$63,2,FALSE),\"\")","v":""}]
[null,null,"Verzekerde 878",null,null,null,null,null,null,null,null,null,null,{"$f":"IFERROR(VLOOKUP(M889,Parameters!$G$4:$I$63,2,FALSE),\"\")","v":""}]
[null,null,"Verzekerde 879",null,null,null,null,null,null,null,null,null,null,{"$f":"IFERROR(VLOOKUP(M890,Parameters!$G$4:$I$63,2,FALSE),\"\")","v":""}]
[null,null,"Verzekerde 880",null,null,null,null,null,null,null,null,null,null,{"$f":"IFERROR(VLOOKUP(M891,Parameters!$G$4:$I$63,2,FALSE),\"\")","v":""}]
[null,null,"Verzekerde 881",null,null,null,null,null,null,null,null,null,null,{"$f":"IFERROR(VLOOKUP(M892,Parameters!$G$4:$I$63,2,FALSE),\"\")","v":""}]
[null,null,"Verzekerde 882",null,null,null,null,null,null,null,null,null,null,{"$f":"IFERROR(VLOOKUP(M893,Parameters!$G$4:$I$63,2,FALSE),\"\")","v":""}]
[null,null,"Verzekerde 883",null,null,null,null,null,null,null,null,null,null,{"$f":"IFERROR(VLOOKUP(M894,Parameters!$G$4:$I$63,2,FALSE),\"\")","v":""}]
[null,null,"Verzekerde 884",null,null,null,null,null,null,null,null,null,null,{"$f":"IFERROR(VLOOKUP(M895,Parameters!$G$4:$I$63,2,FALSE),\"\")","v":""}]
[null,null,"Verzekerde 885",null,null,null,null,null,null,null,null,null,null,{"$f":"IFERROR(VLOOKUP(M896,Parameters!$G$4:$I$63,2,FALSE),\"\")","v":""}]
[null,null,"Verzekerde 886",null,null,null,null,null,null,null,null,null,null,{"$f":"IFERROR(VLOOKUP(M897,Parameters!$G$4:$I$63,2,FALSE),\"\")","v":""}]
[null,null,"Verzekerde 887",null,null,null,null,null,null,null,null,null,null,{"$f":"IFERROR(VLOOKUP(M898,Parameters!$G$4:$I$63,2,FALSE),\"\")","v":""}]
[null,null,"Verzekerde 888",null,null,null,null,null,null,null,null,null,null,{"$f":"IFERROR(VLOOKUP(M899,Parameters!$G$4:$I$63,2,FALSE),\"\")","v":""}]
[null,null,"Verzekerde 889",null,null,null,null,null,null,null,null,null,null,{"$f":"IFERROR(VLOOKUP(M900,Parameters!$G$4:$I$63,2,FALSE),\"\")","v":""}]
[null,null,"Verzekerde 890",null,null,null,null,null,null,null,null,null,null,{"$f":"IFERROR(VLOOKUP(M901,Parameters!$G$4:$I$63,2,FALSE),\"\")","v":""}]
[null,null,"Verzekerde 891",null,null,null,null,null,null,null,null,null,null,{"$f":"IFERROR(VLOOKUP(M902,Parameters!$G$4:$I$63,2,FALSE),\"\")","v":""}]
[null,null,"Verzekerde 892",null,null,null,null,null,null,null,null,null,null,{"$f":"IFERROR(VLOOKUP(M903,Parameters!$G$4:$I$63,2,FALSE),\"\")","v":""}]
[null,null,"Verzekerde 893",null,null,null,null,null,null,null,null,null,null,{"$f":"IFERROR(VLOOKUP(M904,Parameters!$G$4:$I$63,2,FALSE),\"\")","v":""}]
[null,null,"Verzekerde 894",null,null,null,null,null,null,null,null,null,null,{"$f":"IFERROR(VLOOKUP(M905,Parameters!$G$4:$I$63,2,FALSE),\"\")","v":""}]
[null,null,"Verzekerde 895",null,null,null,null,null,null,null,null,null,null,{"$f":"IFERROR(VLOOKUP(M906,Parameters!$G$4:$I$63,2,FALSE),\"\")","v":""}]
[null,null,"Verzekerde 896",null,null,null,null,null,null,null,null,null,null,{"$f":"IFERROR(VLOOKUP(M907,Parameters!$G$4:$I$63,2,FALSE),\"\")","v":""}]
[null,null,"Verzekerde 897",null,null,null,null,null,null,null,null,null,null,{"$f":"IFERROR(VLOOKUP(M908,Parameters!$G$4:$I$63,2,FALSE),\"\")","v":""}]
[null,null,"Verzekerde 898",null,null,null,null,null,null,null,null,null,null,{"$f":"IFERROR(VLOOKUP(M909,Parameters!$G$4:$I$63,2,FALSE),\"\")","v":""}]
[null,null,"Verzekerde 899",null,null,null,null,null,null,null,null,null,null,{"$f":"IFERROR(VLOOKUP(M910,Parameters!$G$4:$I$63,2,FALSE),\"\")","v":""}]
[null,null,"Verzekerde 900",null,null,null,null,null,null,null,null,null,null,{"$f":"IFERROR(VLOOKUP(M911,Parameters!$G$4:$I$63,2,FALSE),\"\")","v":""}]
[null,null,"Verzekerde 901",null,null,null,null,null,null,null,null,null,null,{"$f":"IFERROR(VLOOKUP(M912,Parameters!$G$4:$I$63,2,FALSE),\"\")","v":""}]
[null,null,"Verzekerde 902",null,null,null,null,null,null,null,null,null,null,{"$f":"IFERROR(VLOOKUP(M913,Parameters!$G$4:$I$63,2,FALSE),\"\")","v":""}]
[null,null,"Verzekerde 903",null,null,null,null,null,null,null,null,null,null,{"$f":"IFERROR(VLOOKUP(M914,Parameters!$G$4:$I$63,2,FALSE),\"\")","v":""}]
[null,null,"Verzekerde 904",null,null,null,null,null,null,null,null,null,null,{"$f":"IFERROR(VLOOKUP(M915,Parameters!$G$4:$I$63,2,FALSE),\"\")","v":""}]
[null,null,"Verzekerde 905",null,null,null,null,null,null,null,null,null,null,{"$f":"IFERROR(VLOOKUP(M916,Parameters!$G$4:$I$63,2,FALSE),\"\")","v":""}]
[null,null,"Verzekerde 906",null,null,null,null,null,null,null,null,null,null,{"$f":"IFERROR(VLOOKUP(M917,Parameters!$G$4:$I$63,2,FALSE),\"\")","v":""}]
[null,null,"Verzekerde 907",null,null,null,null,null,null,null,null,null,null,{"$f":"IFERROR(VLOOKUP(M918,Parameters!$G$4:$I$63,2,FALSE),\"\")","v":""}]
[null,null,"Verzekerde 908",null,null,null,null,null,null,null,null,null,null,{"$f":"IFERROR(VLOOKUP(M919,Parameters!$G$4:$I$63,2,FALSE),\"\")","v":""}]
[null,null,"Verzekerde 909",null,null,null,null,null,null,null,null,null,null,{"$f":"IFERROR(VLOOKUP(M920,Parameters!$G$4:$I$63,2,FALSE),\"\")","v":""}]
[null,null,"Verzekerde 910",null,null,null,null,null,null,null,null,null,null,{"$f":"IFERROR(VLOOKUP(M921,Parameters!$G$4:$I$63,2,FALSE),\"\")","v":""}]
[null,null,"Verzekerde 911",null,null,null,null,null,null,null,null,null,null,{"$f":"IFERROR(VLOOKUP(M922,Parameters!$G$4:$I$63,2,FALSE),\"\")","v":""}]
[null,null,"Verzekerde 912",null,null,null,null,null,null,null,null,null,null,{"$f":"IFERROR(VLOOKUP(M923,Parameters!$G$4:$I$63,2,FALSE),\"\")","v":""}]
[null,null,"Verzekerde 913",null,null,null,null,null,null,null,null,null,null,{"$f":"IFERROR(VLOOKUP(M924,Parameters!$G$4:$I$63,2,FALSE),\"\")","v":""}]
[null,null,"Verzekerde 914",null,null,null,null,null,null,null,null,null,null,{"$f":"IFERROR(VLOOKUP(M925,Parameters!$G$4:$I$63,2,FALSE),\"\")","v":""}]
[null,null,"Verzekerde 915",null,null,null,null,null,null,null,null,null,null,{"$f":"IFERROR(VLOOKUP(M926,Parameters!$G$4:$I$63,2,FALSE),\"\")","v":""}]
[null,null,"Verzekerde 916",null,null,null,null,null,null,null,null,null,null,{"$f":"IFERROR(VLOOKUP(M927,Parameters!$G$4:$I$63,2,FALSE),\"\")","v":""}]
[null,null,"Verzekerde 917",null,null,null,null,null,null,null,null,null,null,{"$f":"IFERROR(VLOOKUP(M928,Parameters!$G$4:$I$63,2,FALSE),\"\")","v":""}]
[null,null,"Verzekerde 918",null,null,null,null,null,null,null,null,null,null,{"$f":"IFERROR(VLOOKUP(M929,Parameters!$G$4:$I$63,2,FALSE),\"\")","v":""}]
[null,null,"Verzekerde 919",null,null,null,null,null,null,null,null,null,null,{"$f":"IFERROR(VLOOKUP(M930,Parameters!$G$4:$I$63,2,FALSE),\"\")","v":""}]
[null,null,"Verzekerde 920",null,null,null,null,null,null,null,null,null,null,{"$f":"IFERROR(VLOOKUP(M931,Parameters!$G$4:$I$63,2,FALSE),\"\")","v":""}]
[null,null,"Verzekerde 921",null,null,null,null,null,null,null,null,null,null,{"$f":"IFERROR(VLOOKUP(M932,Parameters!$G$4:$I$63,2,FALSE),\"\")","v":""}]
[null,null,"Verzekerde 922",null,null,null,null,null,null,null,null,null,null,{"$f":"IFERROR(VLOOKUP(M933,Parameters!$G$4:$I$63,2,FALSE),\"\")","v":""}]
[null,null,"Verzekerde 923",null,null,null,null,null,null,null,null,null,null,{"$f":"IFERROR(VLOOKUP(M934,Parameters!$G$4:$I$63,2,FALSE),\"\")","v":""}]
[null,null,"Verzekerde 924",null,null,null,null,null,null,null,null,null,null,{"$f":"IFERROR(VLOOKUP(M935,Parameters!$G$4:$I$63,2,FALSE),\"\")","v":""}]
[null,null,"Verzekerde 925",null,null,null,null,null,null,null,null,null,null,{"$f":"IFERROR(VLOOKUP(M936,Parameters!$G$4:$I$63,2,FALSE),\"\")","v":""}]
[null,null,"Verzekerde 926",null,null,null,null,null,null,null,null,null,null,{"$f":"IFERROR(VLOOKUP(M937,Parameters!$G$4:$I$63,2,FALSE),\"\")","v":""}]
[null,null,"Verzekerde 927",null,null,null,null,null,null,null,null,null,null,{"$f":"IFERROR(VLOOKUP(M938,Parameters!$G$4:$I$63,2,FALSE),\"\")","v":""}]
[null,null,"Verzekerde 928",null,null,null,null,null,null,null,null,null,null,{"$f":"IFERROR(VLOOKUP(M939,Parameters!$G$4:$I$63,2,FALSE),\"\")","v":""}]
[null,null,"Verzekerde 929",null,null,null,null,null,null,null,null,null,null,{"$f":"IFERROR(VLOOKUP(M940,Parameters!$G$4:$I$63,2,FALSE),\"\")","v":""}]
[null,null,"Verzekerde 930",null,null,null,null,null,null,null,null,null,null,{"$f":"IFERROR(VLOOKUP(M941,Parameters!$G$4:$I$63,2,FALSE),\"\")","v":""}]
[null,null,"Verzekerde 931",null,null,null,null,null,null,null,null,null,null,{"$f":"IFERROR(VLOOKUP(M942,Parameters!$G$4:$I$63,2,FALSE),\"\")","v":""}]
[null,null,"Verzekerde 932",null,null,null,null,null,null,null,null,null,null,{"$f":"IFERROR(VLOOKUP(M943,Parameters!$G$4:$I$63,2,FALSE),\"\")","v":""}]
[null,null,"Verzekerde 933",null,null,null,null,null,null,null,null,null,null,{"$f":"IFERROR(VLOOKUP(M944,Parameters!$G$4:$I$63,2,FALSE),\"\")","v":""}]
[null,null,"Verzekerde 934",null,null,null,null,null,null,null,null,null,null,{"$f":"IFERROR(VLOOKUP(M945,Parameters!$G$4:$I$63,2,FALSE),\"\")","v":""}]
[null,null,"Verzekerde 935",null,null,null,null,null,null,null,null,null,null,{"$f":"IFERROR(VLOOKUP(M946,Parameters!$G$4:$I$63,2,FALSE),\"\")","v":""}]
[null,null,"Verzekerde 936",null,null,null,null,null,null,null,null,null,null,{"$f":"IFERROR(VLOOKUP(M947,Parameters!$G$4:$I$63,2,FALSE),\"\")","v":""}]
[null,null,"Verzekerde 937",null,null,null,null,null,null,null,null,null,null,{"$f":"IFERROR(VLOOKUP(M948,Parameters!$G$4:$I$63,2,FALSE),\"\")","v":""}]
[null,null,"Verzekerde 938",null,null,null,null,null,null,null,null,null,null,{"$f":"IFERROR(VLOOKUP(M949,Parameters!$G$4:$I$63,2,FALSE),\"\")","v":""}]
[null,null,"Verzekerde 939",null,null,null,null,null,null,null,null,null,null,{"$f":"IFERROR(VLOOKUP(M950,Parameters!$G$4:$I$63,2,FALSE),\"\")","v":""}]
[null,null,"Verzekerde 940",null,null,null,null,null,null,null,null,null,null,{"$f":"IFERROR(VLOOKUP(M951,Parameters!$G$4:$I$63,2,FALSE),\"\")","v":""}]
[null,null,"Verzekerde 941",null,null,null,null,null,null,null,null,null,null,{"$f":"IFERROR(VLOOKUP(M952,Parameters!$G$4:$I$63,2,FALSE),\"\")","v":""}]
[null,null,"Verzekerde 942",null,null,null,null,null,null,null,null,null,null,{"$f":"IFERROR(VLOOKUP(M953,Parameters!$G$4:$I$63,2,FALSE),\"\")","v":""}]
[null,null,"Verzekerde 943",null,null,null,null,null,null,null,null,null,null,{"$f":"IFERROR(VLOOKUP(M954,Parameters!$G$4:$I$63,2,FALSE),\"\")","v":""}]
[null,null,"Verzekerde 944",null,null,null,null,null,null,null,null,null,null,{"$f":"IFERROR(VLOOKUP(M955,Parameters!$G$4:$I$63,2,FALSE),\"\")","v":""}]
[null,null,"Verzekerde 945",null,null,null,null,null,null,null,null,null,null,{"$f":"IFERROR(VLOOKUP(M956,Parameters!$G$4:$I$63,2,FALSE),\"\")","v":""}]
[null,null,"Verzekerde 946",null,null,null,null,null,null,null,null,null,null,{"$f":"IFERROR(VLOOKUP(M957,Parameters!$G$4:$I$63,2,FALSE),\"\")","v":""}]
[null,null,"Verzekerde 947",null,null,null,null,null,null,null,null,null,null,{"$f":"IFERROR(VLOOKUP(M958,Parameters!$G$4:$I$63,2,FALSE),\"\")","v":""}]
[null,null,"Verzekerde 948",null,null,null,null,null,null,null,null,null,null,{"$f":"IFERROR(VLOOKUP(M959,Parameters!$G$4:$I$63,2,FALSE),\"\")","v":""}]
[null,null,"Verzekerde 949",null,null,null,null,null,null,null,null,null,null,{"$f":"IFERROR(VLOOKUP(M960,Parameters!$G$4:$I$63,2,FALSE),\"\")","v":""}]
[null,null,"Verzekerde 950",null,null,null,null,null,null,null,null,null,null,{"$f":"IFERROR(VLOOKUP(M961,Parameters!$G$4:$I$63,2,FALSE),\"\")","v":""}]
[null,null,"Verzekerde 951",null,null,null,null,null,null,null,null,null,null,{"$f":"IFERROR(VLOOKUP(M962,Parameters!$G$4:$I$63,2,FALSE),\"\")","v":""}]
[null,null,"Verzekerde 952",null,null,null,null,null,null,null,null,null,null,{"$f":"IFERROR(VLOOKUP(M963,Parameters!$G$4:$I$63,2,FALSE),\"\")","v":""}]
[null,null,"Verzekerde 953",null,null,null,null,null,null,null,null,null,null,{"$f":"IFERROR(VLOOKUP(M964,Parameters!$G$4:$I$63,2,FALSE),\"\")","v":""}]
[null,null,"Verzekerde 954",null,null,null,null,null,null,null,null,null,null,{"$f":"IFERROR(VLOOKUP(M965,Parameters!$G$4:$I$63,2,FALSE),\"\")","v":""}]
[null,null,"Verzekerde 955",null,null,null,null,null,null,null,null,null,null,{"$f":"IFERROR(VLOOKUP(M966,Parameters!$G$4:$I$63,2,FALSE),\"\")","v":""}]
[null,null,"Verzekerde 956",null,null,null,null,null,null,null,null,null,null,{"$f":"IFERROR(VLOOKUP(M967,Parameters!$G$4:$I$63,2,FALSE),\"\")","v":""}]
[null,null,"Verzekerde 957",null,null,null,null,null,null,null,null,null,null,{"$f":"IFERROR(VLOOKUP(M968,Parameters!$G$4:$I$63,2,FALSE),\"\")","v":""}]
[null,null,"Verzekerde 958",null,null,null,null,null,null,null,null,null,null,{"$f":"IFERROR(VLOOKUP(M969,Parameters!$G$4:$I$63,2,FALSE),\"\")","v":""}]
[null,null,"Verzekerde 959",null,null,null,null,null,null,null,null,null,null,{"$f":"IFERROR(VLOOKUP(M970,Parameters!$G$4:$I$63,2,FALSE),\"\")","v":""}]
[null,null,"Verzekerde 960",null,null,null,null,null,null,null,null,null,null,{"$f":"IFERROR(VLOOKUP(M971,Parameters!$G$4:$I$63,2,FALSE),\"\")","v":""}]
[null,null,"Verzekerde 961",null,null,null,null,null,null,null,null,null,null,{"$f":"IFERROR(VLOOKUP(M972,Parameters!$G$4:$I$63,2,FALSE),\"\")","v":""}]
[null,null,"Verzekerde 962",null,null,null,null,null,null,null,null,null,null,{"$f":"IFERROR(VLOOKUP(M973,Parameters!$G$4:$I$63,2,FALSE),\"\")","v":""}]
[null,null,"Verzekerde 963",null,null,null,null,null,null,null,null,null,null,{"$f":"IFERROR(VLOOKUP(M974,Parameters!$G$4:$I$63,2,FALSE),\"\")","v":""}]
[null,null,"Verzekerde 964",null,null,null,null,null,null,null,null,null,null,{"$f":"IFERROR(VLOOKUP(M975,Parameters!$G$4:$I$63,2,FALSE),\"\")","v":""}]
[null,null,"Verzekerde 965",null,null,null,null,null,null,null,null,null,null,{"$f":"IFERROR(VLOOKUP(M976,Parameters!$G$4:$I$63,2,FALSE),\"\")","v":""}]
[null,null,"Verzekerde 966",null,null,null,null,null,null,null,null,null,null,{"$f":"IFERROR(VLOOKUP(M977,Parameters!$G$4:$I$63,2,FALSE),\"\")","v":""}]
[null,null,"Verzekerde 967",null,null,null,null,null,null,null,null,null,null,{"$f":"IFERROR(VLOOKUP(M978,Parameters!$G$4:$I$63,2,FALSE),\"\")","v":""}]
[null,null,"Verzekerde 968",null,null,null,null,null,null,null,null,null,null,{"$f":"IFERROR(VLOOKUP(M979,Parameters!$G$4:$I$63,2,FALSE),\"\")","v":""}]
[null,null,"Verzekerde 969",null,null,null,null,null,null,null,null,null,null,{"$f":"IFERROR(VLOOKUP(M980,Parameters!$G$4:$I$63,2,FALSE),\"\")","v":""}]
[null,null,"Verzekerde 970",null,null,null,null,null,null,null,null,null,null,{"$f":"IFERROR(VLOOKUP(M981,Parameters!$G$4:$I$63,2,FALSE),\"\")","v":""}]
[null,null,"Verzekerde 971",null,null,null,null,null,null,null,null,null,null,{"$f":"IFERROR(VLOOKUP(M982,Parameters!$G$4:$I$63,2,FALSE),\"\")","v":""}]
[null,null,"Verzekerde 972",null,null,null,null,null,null,null,null,null,null,{"$f":"IFERROR(VLOOKUP(M983,Parameters!$G$4:$I$63,2,FALSE),\"\")","v":""}]
[null,null,"Verzekerde 973",null,null,null,null,null,null,null,null,null,null,{"$f":"IFERROR(VLOOKUP(M984,Parameters!$G$4:$I$63,2,FALSE),\"\")","v":""}]
[null,null,"Verzekerde 974",null,null,null,null,null,null,null,null,null,null,{"$f":"IFERROR(VLOOKUP(M985,Parameters!$G$4:$I$63,2,FALSE),\"\")","v":""}]
[null,null,"Verzekerde 975",null,null,null,null,null,null,null,null,null,null,{"$f":"IFERROR(VLOOKUP(M986,Parameters!$G$4:$I$63,2,FALSE),\"\")","v":""}]
[null,null,"Verzekerde 976",null,null,null,null,null,null,null,null,null,null,{"$f":"IFERROR(VLOOKUP(M987,Parameters!$G$4:$I$63,2,FALSE),\"\")","v":""}]
[null,null,"Verzekerde 977",null,null,null,null,null,null,null,null,null,null,{"$f":"IFERROR(VLOOKUP(M988,Parameters!$G$4:$I$63,2,FALSE),\"\")","v":""}]
[null,null,"Verzekerde 978",null,null,null,null,null,null,null,null,null,null,{"$f":"IFERROR(VLOOKUP(M989,Parameters!$G$4:$I$63,2,FALSE),\"\")","v":""}]
[null,null,"Verzekerde 979",null,null,null,null,null,null,null,null,null,null,{"$f":"IFERROR(VLOOKUP(M990,Parameters!$G$4:$I$63,2,FALSE),\"\")","v":""}]
[null,null,"Verzekerde 980",null,null,null,null,null,null,null,null,null,null,{"$f":"IFERROR(VLOOKUP(M991,Parameters!$G$4:$I$63,2,FALSE),\"\")","v":""}]
[null,null,"Verzekerde 981",null,null,null,null,null,null,null,null,null,null,{"$f":"IFERROR(VLOOKUP(M992,Parameters!$G$4:$I$63,2,FALSE),\"\")","v":""}]
[null,null,"Verzekerde 982",null,null,null,null,null,null,null,null,null,null,{"$f":"IFERROR(VLOOKUP(M993,Parameters!$G$4:$I$63,2,FALSE),\"\")","v":""}]
[null,null,"Verzekerde 983",null,null,null,null,null,null,null,null,null,null,{"$f":"IFERROR(VLOOKUP(M994,Parameters!$G$4:$I$63,2,FALSE),\"\")","v":""}]
[null,null,"Verzekerde 984",null,null,null,null,null,null,null,null,null,null,{"$f":"IFERROR(VLOOKUP(M995,Parameters!$G$4:$I$63,2,FALSE),\"\")","v":""}]
[null,null,"Verzekerde 985",null,null,null,null,null,null,null,null,null,null,{"$f":"IFERROR(VLOOKUP(M996,Parameters!$G$4:$I$63,2,FALSE),\"\")","v":""}]
[null,null,"Verzekerde 986",null,null,null,null,null,null,null,null,null,null,{"$f":"IFERROR(VLOOKUP(M997,Parameters!$G$4:$I$63,2,FALSE),\"\")","v":""}]
[null,null,"Verzekerde 987",null,null,null,null,null,null,null,null,null,null,{"$f":"IFERROR(VLOOKUP(M998,Parameters!$G$4:$I$63,2,FALSE),\"\")","v":""}]
[null,null,"Verzekerde 988",null,null,null,null,null,null,null,null,null,null,{"$f":"IFERROR(VLOOKUP(M999,Parameters!$G$4:$I$63,2,FALSE),\"\")","v":""}]
[null,null,"Verzekerde 989",null,null,null,null,null,null,null,null,null,null,{"$f":"IFERROR(VLOOKUP(M1000,Parameters!$G$4:$I$63,2,FALSE),\"\")","v":""}]
[null,null,"Verzekerde 990",null,null,null,null,null,null,null,null,null,null,{"$f":"IFERROR(VLOOKUP(M1001,Parameters!$G$4:$I$63,2,FALSE),\"\")","v":""}]
[null,null,"Verzekerde 991",null,null,null,null,null,null,null,null,null,null,{"$f":"IFERROR(VLOOKUP(M1002,Parameters!$G$4:$I$63,2,FALSE),\"\")","v":""}]
[null,null,"Verzekerde 992",null,null,null,null,null,null,null,null,null,null,{"$f":"IFERROR(VLOOKUP(M1003,Parameters!$G$4:$I$63,2,FALSE),\"\")","v":""}]
[null,null,"Verzekerde 993",null,null,null,null,null,null,null,null,null,null,{"$f":"IFERROR(VLOOKUP(M1004,Parameters!$G$4:$I$63,2,FALSE),\"\")","v":""}]
[null,null,"Verzekerde 994",null,null,null,null,null,null,null,null,null,null,{"$f":"IFERROR(VLOOKUP(M1005,Parameters!$G$4:$I$63,2,FALSE),\"\")","v":""}]
[null,null,"Verzekerde 995",null,null,null,null,null,null,null,null,null,null,{"$f":"IFERROR(VLOOKUP(M1006,Parameters!$G$4:$I$63,2,FALSE),\"\")","v":""}]
[null,null,"Verzekerde 996",null,null,null,null,null,null,null,null,null,null,{"$f":"IFERROR(VLOOKUP(M1007,Parameters!$G$4:$I$63,2,FALSE),\"\")","v":""}]
[null,null,"Verzekerde 997",null,null,null,null,null,null,null,null,null,null,{"$f":"IFERROR(VLOOKUP(M1008,Parameters!$G$4:$I$63,2,FALSE),\"\")","v":""}]
[null,null,"Verzekerde 998",null,null,null,null,null,null,null,null,null,null,{"$f":"IFERROR(VLOOKUP(M1009,Parameters!$G$4:$I$63,2,FALSE),\"\")","v":""}]
[null,null,"Verzekerde 999",null,null,null,null,null,null,null,null,null,null,{"$f":"IFERROR(VLOOKUP(M1010,Parameters!$G$4:$I$63,2,FALSE),\"\")","v":""}]
[null,null,"Verzekerde 1000",null,null,null,null,null,null,null,null,null,null,{"$f":"IFERROR(VLOOKUP(M1011,Parameters!$G$4:$I$63,2,FALSE),\"\")","v":""}]
[null,null,"Verzekerde 1001",null,null,null,null,null,null,null,null,null,null,{"$f":"IFERROR(VLOOKUP(M1012,Parameters!$G$4:$I$63,2,FALSE),\"\")","v":""}]
[null,null,"Verzekerde 1002",null,null,null,null,null,null,null,null,null,null,{"$f":"IFERROR(VLOOKUP(M1013,Parameters!$G$4:$I$63,2,FALSE),\"\")","v":""}]
[null,null,"Verzekerde 1003",null,null,null,null,null,null,null,null,null,null,{"$f":"IFERROR(VLOOKUP(M1014,Parameters!$G$4:$I$63,2,FALSE),\"\")","v":""}]
[null,null,"Verzekerde 1004",null,null,null,null,null,null,null,null,null,null,{"$f":"IFERROR(VLOOKUP(M1015,Parameters!$G$4:$I$63,2,FALSE),\"\")","v":""}]
[null,null,"Verzekerde 1005",null,null,null,null,null,null,null,null,null,null,{"$f":"IFERROR(VLOOKUP(M1016,Parameters!$G$4:$I$63,2,FALSE),\"\")","v":""}]
[null,null,"Verzekerde 1006",null,null,null,null,null,null,null,null,null,null,{"$f":"IFERROR(VLOOKUP(M1017,Parameters!$G$4:$I$63,2,FALSE),\"\")","v":""}]
[null,null,"Verzekerde 1007",null,null,null,null,null,null,null,null,null,null,{"$f":"IFERROR(VLOOKUP(M1018,Parameters!$G$4:$I$63,2,FALSE),\"\")","v":""}]
[null,null,"Verzekerde 1008",null,null,null,null,null,null,null,null,null,null,{"$f":"IFERROR(VLOOKUP(M1019,Parameters!$G$4:$I$63,2,FALSE),\"\")","v":""}]
[null,null,"Verzekerde 1009",null,null,null,null,null,null,null,null,null,null,{"$f":"IFERROR(VLOOKUP(M1020,Parameters!$G$4:$I$63,2,FALSE),\"\")","v":""}]
[null,null,"Verzekerde 1010",null,null,null,null,null,null,null,null,null,null,{"$f":"IFERROR(VLOOKUP(M1021,Parameters!$G$4:$I$63,2,FALSE),\"\")","v":""}]
[null,null,"Verzekerde 1011",null,null,null,null,null,null,null,null,null,null,{"$f":"IFERROR(VLOOKUP(M1022,Parameters!$G$4:$I$63,2,FALSE),\"\")","v":""}]
[null,null,"Verzekerde 1012",null,null,null,null,null,null,null,null,null,null,{"$f":"IFERROR(VLOOKUP(M1023,Parameters!$G$4:$I$63,2,FALSE),\"\")","v":""}]
[null,null,"Verzekerde 1013",null,null,null,null,null,null,null,null,null,null,{"$f":"IFERROR(VLOOKUP(M1024,Parameters!$G$4:$I$63,2,FALSE),\"\")","v":""}]
[null,null,"Verzekerde 1014",null,null,null,null,null,null,null,null,null,null,{"$f":"IFERROR(VLOOKUP(M1025,Parameters!$G$4:$I$63,2,FALSE),\"\")","v":""}]
[null,null,"Verzekerde 1015",null,null,null,null,null,null,null,null,null,null,{"$f":"IFERROR(VLOOKUP(M1026,Parameters!$G$4:$I$63,2,FALSE),\"\")","v":""}]
[null,null,"Verzekerde 1016",null,null,null,null,null,null,null,null,null,null,{"$f":"IFERROR(VLOOKUP(M1027,Parameters!$G$4:$I$63,2,FALSE),\"\")","v":""}]
[null,null,"Verzekerde 1017",null,null,null,null,null,null,null,null,null,null,{"$f":"IFERROR(VLOOKUP(M1028,Parameters!$G$4:$I$63,2,FALSE),\"\")","v":""}]
[null,null,"Verzekerde 1018",null,null,null,null,null,null,null,null,null,null,{"$f":"IFERROR(VLOOKUP(M1029,Parameters!$G$4:$I$63,2,FALSE),\"\")","v":""}]
[null,null,"Verzekerde 1019",null,null,null,null,null,null,null,null,null,null,{"$f":"IFERROR(VLOOKUP(M1030,Parameters!$G$4:$I$63,2,FALSE),\"\")","v":""}]
[null,null,"Verzekerde 1020",null,null,null,null,null,null,null,null,null,null,{"$f":"IFERROR(VLOOKUP(M1031,Parameters!$G$4:$I$63,2,FALSE),\"\")","v":""}]
[null,null,"Verzekerde 1021",null,null,null,null,null,null,null,null,null,null,{"$f":"IFERROR(VLOOKUP(M1032,Parameters!$G$4:$I$63,2,FALSE),\"\")","v":""}]
[null,null,"Verzekerde 1022",null,null,null,null,null,null,null,null,null,null,{"$f":"IFERROR(VLOOKUP(M1033,Parameters!$G$4:$I$63,2,FALSE),\"\")","v":""}]
[null,null,"Verzekerde 1023",null,null,null,null,null,null,null,null,null,null,{"$f":"IFERROR(VLOOKUP(M1034,Parameters!$G$4:$I$63,2,FALSE),\"\")","v":""}]
[null,null,"Verzekerde 1024",null,null,null,null,null,null,null,null,null,null,{"$f":"IFERROR(VLOOKUP(M1035,Parameters!$G$4:$I$63,2,FALSE),\"\")","v":""}]
[null,null,"Verzekerde 1025",null,null,null,null,null,null,null,null,null,null,{"$f":"IFERROR(VLOOKUP(M1036,Parameters!$G$4:$I$63,2,FALSE),\"\")","v":""}]
[null,null,"Verzekerde 1026",null,null,null,null,null,null,null,null,null,null,{"$f":"IFERROR(VLOOKUP(M1037,Parameters!$G$4:$I$63,2,FALSE),\"\")","v":""}]
[null,null,"Verzekerde 1027",null,null,null,null,null,null,null,null,null,null,{"$f":"IFERROR(VLOOKUP(M1038,Parameters!$G$4:$I$63,2,FALSE),\"\")","v":""}]
[null,null,"Verzekerde 1028",null,null,null,null,null,null,null,null,null,null,{"$f":"IFERROR(VLOOKUP(M1039,Parameters!$G$4:$I$63,2,FALSE),\"\")","v":""}]
[null,null,"Verzekerde 1029",null,null,null,null,null,null,null,null,null,null,{"$f":"IFERROR(VLOOKUP(M1040,Parameters!$G$4:$I$63,2,FALSE),\"\")","v":""}]
[null,null,"Verzekerde 1030",null,null,null,null,null,null,null,null,null,null,{"$f":"IFERROR(VLOOKUP(M1041,Parameters!$G$4:$I$63,2,FALSE),\"\")","v":""}]
[null,null,"Verzekerde 1031",null,null,null,null,null,null,null,null,null,null,{"$f":"IFERROR(VLOOKUP(M1042,Parameters!$G$4:$I$63,2,FALSE),\"\")","v":""}]
[null,null,"Verzekerde 1032",null,null,null,null,null,null,null,null,null,null,{"$f":"IFERROR(VLOOKUP(M1043,Parameters!$G$4:$I$63,2,FALSE),\"\")","v":""}]
[null,null,"Verzekerde 1033",null,null,null,null,null,null,null,null,null,null,{"$f":"IFERROR(VLOOKUP(M1044,Parameters!$G$4:$I$63,2,FALSE),\"\")","v":""}]
[null,null,"Verzekerde 1034",null,null,null,null,null,null,null,null,null,null,{"$f":"IFERROR(VLOOKUP(M1045,Parameters!$G$4:$I$63,2,FALSE),\"\")","v":""}]
[null,null,"Verzekerde 1035",null,null,null,null,null,null,null,null,null,null,{"$f":"IFERROR(VLOOKUP(M1046,Parameters!$G$4:$I$63,2,FALSE),\"\")","v":""}]
[null,null,"Verzekerde 1036",null,null,null,null,null,null,null,null,null,null,{"$f":"IFERROR(VLOOKUP(M1047,Parameters!$G$4:$I$63,2,FALSE),\"\")","v":""}]
[null,null,"Verzekerde 1037",null,null,null,null,null,null,null,null,null,null,{"$f":"IFERROR(VLOOKUP(M1048,Parameters!$G$4:$I$63,2,FALSE),\"\")","v":""}]
[null,null,"Verzekerde 1038",null,null,null,null,null,null,null,null,null,null,{"$f":"IFERROR(VLOOKUP(M1049,Parameters!$G$4:$I$63,2,FALSE),\"\")","v":""}]
[null,null,"Verzekerde 1039",null,null,null,null,null,null,null,null,null,null,{"$f":"IFERROR(VLOOKUP(M1050,Parameters!$G$4:$I$63,2,FALSE),\"\")","v":""}]
[null,null,"Verzekerde 1040",null,null,null,null,null,null,null,null,null,null,{"$f":"IFERROR(VLOOKUP(M1051,Parameters!$G$4:$I$63,2,FALSE),\"\")","v":""}]
[null,null,"Verzekerde 1041",null,null,null,null,null,null,null,null,null,null,{"$f":"IFERROR(VLOOKUP(M1052,Parameters!$G$4:$I$63,2,FALSE),\"\")","v":""}]
[null,null,"Verzekerde 1042",null,null,null,null,null,null,null,null,null,null,{"$f":"IFERROR(VLOOKUP(M1053,Parameters!$G$4:$I$63,2,FALSE),\"\")","v":""}]
[null,null,"Verzekerde 1043",null,null,null,null,null,null,null,null,null,null,{"$f":"IFERROR(VLOOKUP(M1054,Parameters!$G$4:$I$63,2,FALSE),\"\")","v":""}]
[null,null,"Verzekerde 1044",null,null,null,null,null,null,null,null,null,null,{"$f":"IFERROR(VLOOKUP(M1055,Parameters!$G$4:$I$63,2,FALSE),\"\")","v":""}]
[null,null,"Verzekerde 1045",null,null,null,null,null,null,null,null,null,null,{"$f":"IFERROR(VLOOKUP(M1056,Parameters!$G$4:$I$63,2,FALSE),\"\")","v":""}]
[null,null,"Verzekerde 1046",null,null,null,null,null,null,null,null,null,null,{"$f":"IFERROR(VLOOKUP(M1057,Parameters!$G$4:$I$63,2,FALSE),\"\")","v":""}]
[null,null,"Verzekerde 1047",null,null,null,null,null,null,null,null,null,null,{"$f":"IFERROR(VLOOKUP(M1058,Parameters!$G$4:$I$63,2,FALSE),\"\")","v":""}]
[null,null,"Verzekerde 1048",null,null,null,null,null,null,null,null,null,null,{"$f":"IFERROR(VLOOKUP(M1059,Parameters!$G$4:$I$63,2,FALSE),\"\")","v":""}]
[null,null,"Verzekerde 1049",null,null,null,null,null,null,null,null,null,null,{"$f":"IFERROR(VLOOKUP(M1060,Parameters!$G$4:$I$63,2,FALSE),\"\")","v":""}]
[null,null,"Verzekerde 1050",null,null,null,null,null,null,null,null,null,null,{"$f":"IFERROR(VLOOKUP(M1061,Parameters!$G$4:$I$63,2,FALSE),\"\")","v":""}]
[null,null,"Verzekerde 1051",null,null,null,null,null,null,null,null,null,null,{"$f":"IFERROR(VLOOKUP(M1062,Parameters!$G$4:$I$63,2,FALSE),\"\")","v":""}]
[null,null,"Verzekerde 1052",null,null,null,null,null,null,null,null,null,null,{"$f":"IFERROR(VLOOKUP(M1063,Parameters!$G$4:$I$63,2,FALSE),\"\")","v":""}]
[null,null,"Verzekerde 1053",null,null,null,null,null,null,null,null,null,null,{"$f":"IFERROR(VLOOKUP(M1064,Parameters!$G$4:$I$63,2,FALSE),\"\")","v":""}]
[null,null,"Verzekerde 1054",null,null,null,null,null,null,null,null,null,null,{"$f":"IFERROR(VLOOKUP(M1065,Parameters!$G$4:$I$63,2,FALSE),\"\")","v":""}]
[null,null,"Verzekerde 1055",null,null,null,null,null,null,null,null,null,null,{"$f":"IFERROR(VLOOKUP(M1066,Parameters!$G$4:$I$63,2,FALSE),\"\")","v":""}]
[null,null,"Verzekerde 1056",null,null,null,null,null,null,null,null,null,null,{"$f":"IFERROR(VLOOKUP(M1067,Parameters!$G$4:$I$63,2,FALSE),\"\")","v":""}]
[null,null,"Verzekerde 1057",null,null,null,null,null,null,null,null,null,null,{"$f":"IFERROR(VLOOKUP(M1068,Parameters!$G$4:$I$63,2,FALSE),\"\")","v":""}]
[null,null,"Verzekerde 1058",null,null,null,null,null,null,null,null,null,null,{"$f":"IFERROR(VLOOKUP(M1069,Parameters!$G$4:$I$63,2,FALSE),\"\")","v":""}]
[null,null,"Verzekerde 1059",null,null,null,null,null,null,null,null,null,null,{"$f":"IFERROR(VLOOKUP(M1070,Parameters!$G$4:$I$63,2,FALSE),\"\")","v":""}]
[null,null,"Verzekerde 1060",null,null,null,null,null,null,null,null,null,null,{"$f":"IFERROR(VLOOKUP(M1071,Parameters!$G$4:$I$63,2,FALSE),\"\")","v":""}]
[null,null,"Verzekerde 1061",null,null,null,null,null,null,null,null,null,null,{"$f":"IFERROR(VLOOKUP(M1072,Parameters!$G$4:$I$63,2,FALSE),\"\")","v":""}]
[null,null,"Verzekerde 1062",null,null,null,null,null,null,null,null,null,null,{"$f":"IFERROR(VLOOKUP(M1073,Parameters!$G$4:$I$63,2,FALSE),\"\")","v":""}]
[null,null,"Verzekerde 1063",null,null,null,null,null,null,null,null,null,null,{"$f":"IFERROR(VLOOKUP(M1074,Parameters!$G$4:$I$63,2,FALSE),\"\")","v":""}]
[null,null,"Verzekerde 1064",null,null,null,null,null,null,null,null,null,null,{"$f":"IFERROR(VLOOKUP(M1075,Parameters!$G$4:$I$63,2,FALSE),\"\")","v":""}]
[null,null,"Verzekerde 1065",null,null,null,null,null,null,null,null,null,null,{"$f":"IFERROR(VLOOKUP(M1076,Parameters!$G$4:$I$63,2,FALSE),\"\")","v":""}]
[null,null,"Verzekerde 1066",null,null,null,null,null,null,null,null,null,null,{"$f":"IFERROR(VLOOKUP(M1077,Parameters!$G$4:$I$63,2,FALSE),\"\")","v":""}]
[null,null,"Verzekerde 1067",null,null,null,null,null,null,null,null,null,null,{"$f":"IFERROR(VLOOKUP(M1078,Parameters!$G$4:$I$63,2,FALSE),\"\")","v":""}]
[null,null,"Verzekerde 1068",null,null,null,null,null,null,null,null,null,null,{"$f":"IFERROR(VLOOKUP(M1079,Parameters!$G$4:$I$63,2,FALSE),\"\")","v":""}]
[null,null,"Verzekerde 1069",null,null,null,null,null,null,null,null,null,null,{"$f":"IFERROR(VLOOKUP(M1080,Parameters!$G$4:$I$63,2,FALSE),\"\")","v":""}]
[null,null,"Verzekerde 1070",null,null,null,null,null,null,null,null,null,null,{"$f":"IFERROR(VLOOKUP(M1081,Parameters!$G$4:$I$63,2,FALSE),\"\")","v":""}]
[null,null,"Verzekerde 1071",null,null,null,null,null,null,null,null,null,null,{"$f":"IFERROR(VLOOKUP(M1082,Parameters!$G$4:$I$63,2,FALSE),\"\")","v":""}]
[null,null,"Verzekerde 1072",null,null,null,null,null,null,null,null,null,null,{"$f":"IFERROR(VLOOKUP(M1083,Parameters!$G$4:$I$63,2,FALSE),\"\")","v":""}]
[null,null,"Verzekerde 1073",null,null,null,null,null,null,null,null,null,null,{"$f":"IFERROR(VLOOKUP(M1084,Parameters!$G$4:$I$63,2,FALSE),\"\")","v":""}]
[null,null,"Verzekerde 1074",null,null,null,null,null,null,null,null,null,null,{"$f":"IFERROR(VLOOKUP(M1085,Parameters!$G$4:$I$63,2,FALSE),\"\")","v":""}]
[null,null,"Verzekerde 1075",null,null,null,null,null,null,null,null,null,null,{"$f":"IFERROR(VLOOKUP(M1086,Parameters!$G$4:$I$63,2,FALSE),\"\")","v":""}]
[null,null,"Verzekerde 1076",null,null,null,null,null,null,null,null,null,null,{"$f":"IFERROR(VLOOKUP(M1087,Parameters!$G$4:$I$63,2,FALSE),\"\")","v":""}]
[null,null,"Verzekerde 1077",null,null,null,null,null,null,null,null,null,null,{"$f":"IFERROR(VLOOKUP(M1088,Parameters!$G$4:$I$63,2,FALSE),\"\")","v":""}]
[null,null,"Verzekerde 1078",null,null,null,null,null,null,null,null,null,null,{"$f":"IFERROR(VLOOKUP(M1089,Parameters!$G$4:$I$63,2,FALSE),\"\")","v":""}]
[null,null,"Verzekerde 1079",null,null,null,null,null,null,null,null,null,null,{"$f":"IFERROR(VLOOKUP(M1090,Parameters!$G$4:$I$63,2,FALSE),\"\")","v":""}]
[null,null,"Verzekerde 1080",null,null,null,null,null,null,null,null,null,null,{"$f":"IFERROR(VLOOKUP(M1091,Parameters!$G$4:$I$63,2,FALSE),\"\")","v":""}]
[null,null,"Verzekerde 1081",null,null,null,null,null,null,null,null,null,null,{"$f":"IFERROR(VLOOKUP(M1092,Parameters!$G$4:$I$63,2,FALSE),\"\")","v":""}]
[null,null,"Verzekerde 1082",null,null,null,null,null,null,null,null,null,null,{"$f":"IFERROR(VLOOKUP(M1093,Parameters!$G$4:$I$63,2,FALSE),\"\")","v":""}]
[null,null,"Verzekerde 1083",null,null,null,null,null,null,null,null,null,null,{"$f":"IFERROR(VLOOKUP(M1094,Parameters!$G$4:$I$63,2,FALSE),\"\")","v":""}]
[null,null,"Verzekerde 1084",null,null,null,null,null,null,null,null,null,null,{"$f":"IFERROR(VLOOKUP(M1095,Parameters!$G$4:$I$63,2,FALSE),\"\")","v":""}]
[null,null,"Verzekerde 1085",null,null,null,null,null,null,null,null,null,null,{"$f":"IFERROR(VLOOKUP(M1096,Parameters!$G$4:$I$63,2,FALSE),\"\")","v":""}]
[null,null,"Verzekerde 1086",null,null,null,null,null,null,null,null,null,null,{"$f":"IFERROR(VLOOKUP(M1097,Parameters!$G$4:$I$63,2,FALSE),\"\")","v":""}]
[null,null,"Verzekerde 1087",null,null,null,null,null,null,null,null,null,null,{"$f":"IFERROR(VLOOKUP(M1098,Parameters!$G$4:$I$63,2,FALSE),\"\")","v":""}]
[null,null,"Verzekerde 1088",null,null,null,null,null,null,null,null,null,null,{"$f":"IFERROR(VLOOKUP(M1099,Parameters!$G$4:$I$63,2,FALSE),\"\")","v":""}]
[null,null,"Verzekerde 1089",null,null,null,null,null,null,null,null,null,null,{"$f":"IFERROR(VLOOKUP(M1100,Parameters!$G$4:$I$63,2,FALSE),\"\")","v":""}]
[null,null,"Verzekerde 1090",null,null,null,null,null,null,null,null,null,null,{"$f":"IFERROR(VLOOKUP(M1101,Parameters!$G$4:$I$63,2,FALSE),\"\")","v":""}]
[null,null,"Verzekerde 1091",null,null,null,null,null,null,null,null,null,null,{"$f":"IFERROR(VLOOKUP(M1102,Parameters!$G$4:$I$63,2,FALSE),\"\")","v":""}]
[null,null,"Verzekerde 1092",null,null,null,null,null,null,null,null,null,null,{"$f":"IFERROR(VLOOKUP(M1103,Parameters!$G$4:$I$63,2,FALSE),\"\")","v":""}]
[null,null,"Verzekerde 1093",null,null,null,null,null,null,null,null,null,null,{"$f":"IFERROR(VLOOKUP(M1104,Parameters!$G$4:$I$63,2,FALSE),\"\")","v":""}]
[null,null,"Verzekerde 1094",null,null,null,null,null,null,null,null,null,null,{"$f":"IFERROR(VLOOKUP(M1105,Parameters!$G$4:$I$63,2,FALSE),\"\")","v":""}]
[null,null,"Verzekerde 1095",null,null,null,null,null,null,null,null,null,null,{"$f":"IFERROR(VLOOKUP(M1106,Parameters!$G$4:$I$63,2,FALSE),\"\")","v":""}]
[null,null,"Verzekerde 1096",null,null,null,null,null,null,null,null,null,null,{"$f":"IFERROR(VLOOKUP(M1107,Parameters!$G$4:$I$63,2,FALSE),\"\")","v":""}]
[null,null,"Verzekerde 1097",null,null,null,null,null,null,null,null,null,null,{"$f":"IFERROR(VLOOKUP(M1108,Parameters!$G$4:$I$63,2,FALSE),\"\")","v":""}]
[null,null,"Verzekerde 1098",null,null,null,null,null,null,null,null,null,null,{"$f":"IFERROR(VLOOKUP(M1109,Parameters!$G$4:$I$63,2,FALSE),\"\")","v":""}]
[null,null,"Verzekerde 1099",null,null,null,null,null,null,null,null,null,null,{"$f":"IFERROR(VLOOKUP(M1110,Parameters!$G$4:$I$63,2,FALSE),\"\")","v":""}]
[null,null,"Verzekerde 1100",null,null,null,null,null,null,null,null,null,null,{"$f":"IFERROR(VLOOKUP(M1111,Parameters!$G$4:$I$63,2,FALSE),\"\")","v":""}]
[null,null,"Verzekerde 1101",null,null,null,null,null,null,null,null,null,null,{"$f":"IFERROR(VLOOKUP(M1112,Parameters!$G$4:$I$63,2,FALSE),\"\")","v":""}]
[null,null,"Verzekerde 1102",null,null,null,null,null,null,null,null,null,null,{"$f":"IFERROR(VLOOKUP(M1113,Parameters!$G$4:$I$63,2,FALSE),\"\")","v":""}]
[null,null,"Verzekerde 1103",null,null,null,null,null,null,null,null,null,null,{"$f":"IFERROR(VLOOKUP(M1114,Parameters!$G$4:$I$63,2,FALSE),\"\")","v":""}]
[null,null,"Verzekerde 1104",null,null,null,null,null,null,null,null,null,null,{"$f":"IFERROR(VLOOKUP(M1115,Parameters!$G$4:$I$63,2,FALSE),\"\")","v":""}]
[null,null,"Verzekerde 1105",null,null,null,null,null,null,null,null,null,null,{"$f":"IFERROR(VLOOKUP(M1116,Parameters!$G$4:$I$63,2,FALSE),\"\")","v":""}]
[null,null,"Verzekerde 1106",null,null,null,null,null,null,null,null,null,null,{"$f":"IFERROR(VLOOKUP(M1117,Parameters!$G$4:$I$63,2,FALSE),\"\")","v":""}]
[null,null,"Verzekerde 1107",null,null,null,null,null,null,null,null,null,null,{"$f":"IFERROR(VLOOKUP(M1118,Parameters!$G$4:$I$63,2,FALSE),\"\")","v":""}]
[null,null,"Verzekerde 1108",null,null,null,null,null,null,null,null,null,null,{"$f":"IFERROR(VLOOKUP(M1119,Parameters!$G$4:$I$63,2,FALSE),\"\")","v":""}]
[null,null,"Verzekerde 1109",null,null,null,null,null,null,null,null,null,null,{"$f":"IFERROR(VLOOKUP(M1120,Parameters!$G$4:$I$63,2,FALSE),\"\")","v":""}]
[null,null,"Verzekerde 1110",null,null,null,null,null,null,null,null,null,null,{"$f":"IFERROR(VLOOKUP(M1121,Parameters!$G$4:$I$63,2,FALSE),\"\")","v":""}]
[null,null,"Verzekerde 1111",null,null,null,null,null,null,null,null,null,null,{"$f":"IFERROR(VLOOKUP(M1122,Parameters!$G$4:$I$63,2,FALSE),\"\")","v":""}]
[null,null,"Verzekerde 1112",null,null,null,null,null,null,null,null,null,null,{"$f":"IFERROR(VLOOKUP(M1123,Parameters!$G$4:$I$63,2,FALSE),\"\")","v":""}]
[null,null,"Verzekerde 1113",null,null,null,null,null,null,null,null,null,null,{"$f":"IFERROR(VLOOKUP(M1124,Parameters!$G$4:$I$63,2,FALSE),\"\")","v":""}]
[null,null,"Verzekerde 1114",null,null,null,null,null,null,null,null,null,null,{"$f":"IFERROR(VLOOKUP(M1125,Parameters!$G$4:$I$63,2,FALSE),\"\")","v":""}]
[null,null,"Verzekerde 1115",null,null,null,null,null,null,null,null,null,null,{"$f":"IFERROR(VLOOKUP(M1126,Parameters!$G$4:$I$63,2,FALSE),\"\")","v":""}]
[null,null,"Verzekerde 1116",null,null,null,null,null,null,null,null,null,null,{"$f":"IFERROR(VLOOKUP(M1127,Parameters!$G$4:$I$63,2,FALSE),\"\")","v":""}]
[null,null,"Verzekerde 1117",null,null,null,null,null,null,null,null,null,null,{"$f":"IFERROR(VLOOKUP(M1128,Parameters!$G$4:$I$63,2,FALSE),\"\")","v":""}]
[null,null,"Verzekerde 1118",null,null,null,null,null,null,null,null,null,null,{"$f":"IFERROR(VLOOKUP(M1129,Parameters!$G$4:$I$63,2,FALSE),\"\")","v":""}]
[null,null,"Verzekerde 1119",null,null,null,null,null,null,null,null,null,null,{"$f":"IFERROR(VLOOKUP(M1130,Parameters!$G$4:$I$63,2,FALSE),\"\")","v":""}]
[null,null,"Verzekerde 1120",null,null,null,null,null,null,null,null,null,null,{"$f":"IFERROR(VLOOKUP(M1131,Parameters!$G$4:$I$63,2,FALSE),\"\")","v":""}]
[null,null,"Verzekerde 1121",null,null,null,null,null,null,null,null,null,null,{"$f":"IFERROR(VLOOKUP(M1132,Parameters!$G$4:$I$63,2,FALSE),\"\")","v":""}]
[null,null,"Verzekerde 1122",null,null,null,null,null,null,null,null,null,null,{"$f":"IFERROR(VLOOKUP(M1133,Parameters!$G$4:$I$63,2,FALSE),\"\")","v":""}]
[null,null,"Verzekerde 1123",null,null,null,null,null,null,null,null,null,null,{"$f":"IFERROR(VLOOKUP(M1134,Parameters!$G$4:$I$63,2,FALSE),\"\")","v":""}]
[null,null,"Verzekerde 1124",null,null,null,null,null,null,null,null,null,null,{"$f":"IFERROR(VLOOKUP(M1135,Parameters!$G$4:$I$63,2,FALSE),\"\")","v":""}]
[null,null,"Verzekerde 1125",null,null,null,null,null,null,null,null,null,null,{"$f":"IFERROR(VLOOKUP(M1136,Parameters!$G$4:$I$63,2,FALSE),\"\")","v":""}]
[null,null,"Verzekerde 1126",null,null,null,null,null,null,null,null,null,null,{"$f":"IFERROR(VLOOKUP(M1137,Parameters!$G$4:$I$63,2,FALSE),\"\")","v":""}]
[null,null,"Verzekerde 1127",null,null,null,null,null,null,null,null,null,null,{"$f":"IFERROR(VLOOKUP(M1138,Parameters!$G$4:$I$63,2,FALSE),\"\")","v":""}]
[null,null,"Verzekerde 1128",null,null,null,null,null,null,null,null,null,null,{"$f":"IFERROR(VLOOKUP(M1139,Parameters!$G$4:$I$63,2,FALSE),\"\")","v":""}]
[null,null,"Verzekerde 1129",null,null,null,null,null,null,null,null,null,null,{"$f":"IFERROR(VLOOKUP(M1140,Parameters!$G$4:$I$63,2,FALSE),\"\")","v":""}]
[null,null,"Verzekerde 1130",null,null,null,null,null,null,null,null,null,null,{"$f":"IFERROR(VLOOKUP(M1141,Parameters!$G$4:$I$63,2,FALSE),\"\")","v":""}]
[null,null,"Verzekerde 1131",null,null,null,null,null,null,null,null,null,null,{"$f":"IFERROR(VLOOKUP(M1142,Parameters!$G$4:$I$63,2,FALSE),\"\")","v":""}]
[null,null,"Verzekerde 1132",null,null,null,null,null,null,null,null,null,null,{"$f":"IFERROR(VLOOKUP(M1143,Parameters!$G$4:$I$63,2,FALSE),\"\")","v":""}]
[null,null,"Verzekerde 1133",null,null,null,null,null,null,null,null,null,null,{"$f":"IFERROR(VLOOKUP(M1144,Parameters!$G$4:$I$63,2,FALSE),\"\")","v":""}]
[null,null,"Verzekerde 1134",null,null,null,null,null,null,null,null,null,null,{"$f":"IFERROR(VLOOKUP(M1145,Parameters!$G$4:$I$63,2,FALSE),\"\")","v":""}]
[null,null,"Verzekerde 1135",null,null,null,null,null,null,null,null,null,null,{"$f":"IFERROR(VLOOKUP(M1146,Parameters!$G$4:$I$63,2,FALSE),\"\")","v":""}]
[null,null,"Verzekerde 1136",null,null,null,null,null,null,null,null,null,null,{"$f":"IFERROR(VLOOKUP(M1147,Parameters!$G$4:$I$63,2,FALSE),\"\")","v":""}]
[null,null,"Verzekerde 1137",null,null,null,null,null,null,null,null,null,null,{"$f":"IFERROR(VLOOKUP(M1148,Parameters!$G$4:$I$63,2,FALSE),\"\")","v":""}]
[null,null,"Verzekerde 1138",null,null,null,null,null,null,null,null,null,null,{"$f":"IFERROR(VLOOKUP(M1149,Parameters!$G$4:$I$63,2,FALSE),\"\")","v":""}]
[null,null,"Verzekerde 1139",null,null,null,null,null,null,null,null,null,null,{"$f":"IFERROR(VLOOKUP(M1150,Parameters!$G$4:$I$63,2,FALSE),\"\")","v":""}]
[null,null,"Verzekerde 1140",null,null,null,null,null,null,null,null,null,null,{"$f":"IFERROR(VLOOKUP(M1151,Parameters!$G$4:$I$63,2,FALSE),\"\")","v":""}]
[null,null,"Verzekerde 1141",null,null,null,null,null,null,null,null,null,null,{"$f":"IFERROR(VLOOKUP(M1152,Parameters!$G$4:$I$63,2,FALSE),\"\")","v":""}]
[null,null,"Verzekerde 1142",null,null,null,null,null,null,null,null,null,null,{"$f":"IFERROR(VLOOKUP(M1153,Parameters!$G$4:$I$63,2,FALSE),\"\")","v":""}]
[null,null,"Verzekerde 1143",null,null,null,null,null,null,null,null,null,null,{"$f":"IFERROR(VLOOKUP(M1154,Parameters!$G$4:$I$63,2,FALSE),\"\")","v":""}]
[null,null,"Verzekerde 1144",null,null,null,null,null,null,null,null,null,null,{"$f":"IFERROR(VLOOKUP(M1155,Parameters!$G$4:$I$63,2,FALSE),\"\")","v":""}]
[null,null,"Verzekerde 1145",null,null,null,null,null,null,null,null,null,null,{"$f":"IFERROR(VLOOKUP(M1156,Parameters!$G$4:$I$63,2,FALSE),\"\")","v":""}]
[null,null,"Verzekerde 1146",null,null,null,null,null,null,null,null,null,null,{"$f":"IFERROR(VLOOKUP(M1157,Parameters!$G$4:$I$63,2,FALSE),\"\")","v":""}]
[null,null,"Verzekerde 1147",null,null,null,null,null,null,null,null,null,null,{"$f":"IFERROR(VLOOKUP(M1158,Parameters!$G$4:$I$63,2,FALSE),\"\")","v":""}]
[null,null,"Verzekerde 1148",null,null,null,null,null,null,null,null,null,null,{"$f":"IFERROR(VLOOKUP(M1159,Parameters!$G$4:$I$63,2,FALSE),\"\")","v":""}]
[null,null,"Verzekerde 1149",null,null,null,null,null,null,null,null,null,null,{"$f":"IFERROR(VLOOKUP(M1160,Parameters!$G$4:$I$63,2,FALSE),\"\")","v":""}]
[null,null,"Verzekerde 1150",null,null,null,null,null,null,null,null,null,null,{"$f":"IFERROR(VLOOKUP(M1161,Parameters!$G$4:$I$63,2,FALSE),\"\")","v":""}]
[null,null,"Verzekerde 1151",null,null,null,null,null,null,null,null,null,null,{"$f":"IFERROR(VLOOKUP(M1162,Parameters!$G$4:$I$63,2,FALSE),\"\")","v":""}]
[null,null,"Verzekerde 1152",null,null,null,null,null,null,null,null,null,null,{"$f":"IFERROR(VLOOKUP(M1163,Parameters!$G$4:$I$63,2,FALSE),\"\")","v":""}]
[null,null,"Verzekerde 1153",null,null,null,null,null,null,null,null,null,null,{"$f":"IFERROR(VLOOKUP(M1164,Parameters!$G$4:$I$63,2,FALSE),\"\")","v":""}]
[null,null,"Verzekerde 1154",null,null,null,null,null,null,null,null,null,null,{"$f":"IFERROR(VLOOKUP(M1165,Parameters!$G$4:$I$63,2,FALSE),\"\")","v":""}]
[null,null,"Verzekerde 1155",null,null,null,null,null,null,null,null,null,null,{"$f":"IFERROR(VLOOKUP(M1166,Parameters!$G$4:$I$63,2,FALSE),\"\")","v":""}]
[null,null,"Verzekerde 1156",null,null,null,null,null,null,null,null,null,null,{"$f":"IFERROR(VLOOKUP(M1167,Parameters!$G$4:$I$63,2,FALSE),\"\")","v":""}]
[null,null,"Verzekerde 1157",null,null,null,null,null,null,null,null,null,null,{"$f":"IFERROR(VLOOKUP(M1168,Parameters!$G$4:$I$63,2,FALSE),\"\")","v":""}]
[null,null,"Verzekerde 1158",null,null,null,null,null,null,null,null,null,null,{"$f":"IFERROR(VLOOKUP(M1169,Parameters!$G$4:$I$63,2,FALSE),\"\")","v":""}]
[null,null,"Verzekerde 1159",null,null,null,null,null,null,null,null,null,null,{"$f":"IFERROR(VLOOKUP(M1170,Parameters!$G$4:$I$63,2,FALSE),\"\")","v":""}]
[null,null,"Verzekerde 1160",null,null,null,null,null,null,null,null,null,null,{"$f":"IFERROR(VLOOKUP(M1171,Parameters!$G$4:$I$63,2,FALSE),\"\")","v":""}]
[null,null,"Verzekerde 1161",null,null,null,null,null,null,null,null,null,null,{"$f":"IFERROR(VLOOKUP(M1172,Parameters!$G$4:$I$63,2,FALSE),\"\")","v":""}]
[null,null,"Verzekerde 1162",null,null,null,null,null,null,null,null,null,null,{"$f":"IFERROR(VLOOKUP(M1173,Parameters!$G$4:$I$63,2,FALSE),\"\")","v":""}]
[null,null,"Verzekerde 1163",null,null,null,null,null,null,null,null,null,null,{"$f":"IFERROR(VLOOKUP(M1174,Parameters!$G$4:$I$63,2,FALSE),\"\")","v":""}]
[null,null,"Verzekerde 1164",null,null,null,null,null,null,null,null,null,null,{"$f":"IFERROR(VLOOKUP(M1175,Parameters!$G$4:$I$63,2,FALSE),\"\")","v":""}]
[null,null,"Verzekerde 1165",null,null,null,null,null,null,null,null,null,null,{"$f":"IFERROR(VLOOKUP(M1176,Parameters!$G$4:$I$63,2,FALSE),\"\")","v":""}]
[null,null,"Verzekerde 1166",null,null,null,null,null,null,null,null,null,null,{"$f":"IFERROR(VLOOKUP(M1177,Parameters!$G$4:$I$63,2,FALSE),\"\")","v":""}]
[null,null,"Verzekerde 1167",null,null,null,null,null,null,null,null,null,null,{"$f":"IFERROR(VLOOKUP(M1178,Parameters!$G$4:$I$63,2,FALSE),\"\")","v":""}]
[null,null,"Verzekerde 1168",null,null,null,null,null,null,null,null,null,null,{"$f":"IFERROR(VLOOKUP(M1179,Parameters!$G$4:$I$63,2,FALSE),\"\")","v":""}]
[null,null,"Verzekerde 1169",null,null,null,null,null,null,null,null,null,null,{"$f":"IFERROR(VLOOKUP(M1180,Parameters!$G$4:$I$63,2,FALSE),\"\")","v":""}]
[null,null,"Verzekerde 1170",null,null,null,null,null,null,null,null,null,null,{"$f":"IFERROR(VLOOKUP(M1181,Parameters!$G$4:$I$63,2,FALSE),\"\")","v":""}]
[null,null,"Verzekerde 1171",null,null,null,null,null,null,null,null,null,null,{"$f":"IFERROR(VLOOKUP(M1182,Parameters!$G$4:$I$63,2,FALSE),\"\")","v":""}]
[null,null,"Verzekerde 1172",null,null,null,null,null,null,null,null,null,null,{"$f":"IFERROR(VLOOKUP(M1183,Parameters!$G$4:$I$63,2,FALSE),\"\")","v":""}]
[null,null,"Verzekerde 1173",null,null,null,null,null,null,null,null,null,null,{"$f":"IFERROR(VLOOKUP(M1184,Parameters!$G$4:$I$63,2,FALSE),\"\")","v":""}]
[null,null,"Verzekerde 1174",null,null,null,null,null,null,null,null,null,null,{"$f":"IFERROR(VLOOKUP(M1185,Parameters!$G$4:$I$63,2,FALSE),\"\")","v":""}]
[null,null,"Verzekerde 1175",null,null,null,null,null,null,null,null,null,null,{"$f":"IFERROR(VLOOKUP(M1186,Parameters!$G$4:$I$63,2,FALSE),\"\")","v":""}]
[null,null,"Verzekerde 1176",null,null,null,null,null,null,null,null,null,null,{"$f":"IFERROR(VLOOKUP(M1187,Parameters!$G$4:$I$63,2,FALSE),\"\")","v":""}]
[null,null,"Verzekerde 1177",null,null,null,null,null,null,null,null,null,null,{"$f":"IFERROR(VLOOKUP(M1188,Parameters!$G$4:$I$63,2,FALSE),\"\")","v":""}]
[null,null,"Verzekerde 1178",null,null,null,null,null,null,null,null,null,null,{"$f":"IFERROR(VLOOKUP(M1189,Parameters!$G$4:$I$63,2,FALSE),\"\")","v":""}]
[null,null,"Verzekerde 1179",null,null,null,null,null,null,null,null,null,null,{"$f":"IFERROR(VLOOKUP(M1190,Parameters!$G$4:$I$63,2,FALSE),\"\")","v":""}]
[null,null,"Verzekerde 1180",null,null,null,null,null,null,null,null,null,null,{"$f":"IFERROR(VLOOKUP(M1191,Parameters!$G$4:$I$63,2,FALSE),\"\")","v":""}]
[null,null,"Verzekerde 1181",null,null,null,null,null,null,null,null,null,null,{"$f":"IFERROR(VLOOKUP(M1192,Parameters!$G$4:$I$63,2,FALSE),\"\")","v":""}]
[null,null,"Verzekerde 1182",null,null,null,null,null,null,null,null,null,null,{"$f":"IFERROR(VLOOKUP(M1193,Parameters!$G$4:$I$63,2,FALSE),\"\")","v":""}]
[null,null,"Verzekerde 1183",null,null,null,null,null,null,null,null,null,null,{"$f":"IFERROR(VLOOKUP(M1194,Parameters!$G$4:$I$63,2,FALSE),\"\")","v":""}]
[null,null,"Verzekerde 1184",null,null,null,null,null,null,null,null,null,null,{"$f":"IFERROR(VLOOKUP(M1195,Parameters!$G$4:$I$63,2,FALSE),\"\")","v":""}]
[null,null,"Verzekerde 1185",null,null,null,null,null,null,null,null,null,null,{"$f":"IFERROR(VLOOKUP(M1196,Parameters!$G$4:$I$63,2,FALSE),\"\")","v":""}]
[null,null,"Verzekerde 1186",null,null,null,null,null,null,null,null,null,null,{"$f":"IFERROR(VLOOKUP(M1197,Parameters!$G$4:$I$63,2,FALSE),\"\")","v":""}]
[null,null,"Verzekerde 1187",null,null,null,null,null,null,null,null,null,null,{"$f":"IFERROR(VLOOKUP(M1198,Parameters!$G$4:$I$63,2,FALSE),\"\")","v":""}]
[null,null,"Verzekerde 1188",null,null,null,null,null,null,null,null,null,null,{"$f":"IFERROR(VLOOKUP(M1199,Parameters!$G$4:$I$63,2,FALSE),\"\")","v":""}]
[null,null,"Verzekerde 1189",null,null,null,null,null,null,null,null,null,null,{"$f":"IFERROR(VLOOKUP(M1200,Parameters!$G$4:$I$63,2,FALSE),\"\")","v":""}]
[null,null,"Verzekerde 1190",null,null,null,null,null,null,null,null,null,null,{"$f":"IFERROR(VLOOKUP(M1201,Parameters!$G$4:$I$63,2,FALSE),\"\")","v":""}]
[null,null,"Verzekerde 1191",null,null,null,null,null,null,null,null,null,null,{"$f":"IFERROR(VLOOKUP(M1202,Parameters!$G$4:$I$63,2,FALSE),\"\")","v":""}]
[null,null,"Verzekerde 1192",null,null,null,null,null,null,null,null,null,null,{"$f":"IFERROR(VLOOKUP(M1203,Parameters!$G$4:$I$63,2,FALSE),\"\")","v":""}]
[null,null,"Verzekerde 1193",null,null,null,null,null,null,null,null,null,null,{"$f":"IFERROR(VLOOKUP(M1204,Parameters!$G$4:$I$63,2,FALSE),\"\")","v":""}]
[null,null,"Verzekerde 1194",null,null,null,null,null,null,null,null,null,null,{"$f":"IFERROR(VLOOKUP(M1205,Parameters!$G$4:$I$63,2,FALSE),\"\")","v":""}]
[null,null,"Verzekerde 1195",null,null,null,null,null,null,null,null,null,null,{"$f":"IFERROR(VLOOKUP(M1206,Parameters!$G$4:$I$63,2,FALSE),\"\")","v":""}]
[null,null,"Verzekerde 1196",null,null,null,null,null,null,null,null,null,null,{"$f":"IFERROR(VLOOKUP(M1207,Parameters!$G$4:$I$63,2,FALSE),\"\")","v":""}]
[null,null,"Verzekerde 1197",null,null,null,null,null,null,null,null,null,null,{"$f":"IFERROR(VLOOKUP(M1208,Parameters!$G$4:$I$63,2,FALSE),\"\")","v":""}]
[null,null,"Verzekerde 1198",null,null,null,null,null,null,null,null,null,null,{"$f":"IFERROR(VLOOKUP(M1209,Parameters!$G$4:$I$63,2,FALSE),\"\")","v":""}]
[null,null,"Verzekerde 1199",null,null,null,null,null,null,null,null,null,null,{"$f":"IFERROR(VLOOKUP(M1210,Parameters!$G$4:$I$63,2,FALSE),\"\")","v":""}]
[null,null,"Verzekerde 1200",null,null,null,null,null,null,null,null,null,null,{"$f":"IFERROR(VLOOKUP(M1211,Parameters!$G$4:$I$63,2,FALSE),\"\")","v":""}]
[null,null,"Verzekerde 1201",null,null,null,null,null,null,null,null,null,null,{"$f":"IFERROR(VLOOKUP(M1212,Parameters!$G$4:$I$63,2,FALSE),\"\")","v":""}]
[null,null,"Verzekerde 1202",null,null,null,null,null,null,null,null,null,null,{"$f":"IFERROR(VLOOKUP(M1213,Parameters!$G$4:$I$63,2,FALSE),\"\")","v":""}]
[null,null,"Verzekerde 1203",null,null,null,null,null,null,null,null,null,null,{"$f":"IFERROR(VLOOKUP(M1214,Parameters!$G$4:$I$63,2,FALSE),\"\")","v":""}]
[null,null,"Verzekerde 1204",null,null,null,null,null,null,null,null,null,null,{"$f":"IFERROR(VLOOKUP(M1215,Parameters!$G$4:$I$63,2,FALSE),\"\")","v":""}]
[null,null,"Verzekerde 1205",null,null,null,null,null,null,null,null,null,null,{"$f":"IFERROR(VLOOKUP(M1216,Parameters!$G$4:$I$63,2,FALSE),\"\")","v":""}]
[null,null,"Verzekerde 1206",null,null,null,null,null,null,null,null,null,null,{"$f":"IFERROR(VLOOKUP(M1217,Parameters!$G$4:$I$63,2,FALSE),\"\")","v":""}]
[null,null,"Verzekerde 1207",null,null,null,null,null,null,null,null,null,null,{"$f":"IFERROR(VLOOKUP(M1218,Parameters!$G$4:$I$63,2,FALSE),\"\")","v":""}]
[null,null,"Verzekerde 1208",null,null,null,null,null,null,null,null,null,null,{"$f":"IFERROR(VLOOKUP(M1219,Parameters!$G$4:$I$63,2,FALSE),\"\")","v":""}]
[null,null,"Verzekerde 1209",null,null,null,null,null,null,null,null,null,null,{"$f":"IFERROR(VLOOKUP(M1220,Parameters!$G$4:$I$63,2,FALSE),\"\")","v":""}]
[null,null,"Verzekerde 1210",null,null,null,null,null,null,null,null,null,null,{"$f":"IFERROR(VLOOKUP(M1221,Parameters!$G$4:$I$63,2,FALSE),\"\")","v":""}]
[null,null,"Verzekerde 1211",null,null,null,null,null,null,null,null,null,null,{"$f":"IFERROR(VLOOKUP(M1222,Parameters!$G$4:$I$63,2,FALSE),\"\")","v":""}]
[null,null,"Verzekerde 1212",null,null,null,null,null,null,null,null,null,null,{"$f":"IFERROR(VLOOKUP(M1223,Parameters!$G$4:$I$63,2,FALSE),\"\")","v":""}]
[null,null,"Verzekerde 1213",null,null,null,null,null,null,null,null,null,null,{"$f":"IFERROR(VLOOKUP(M1224,Parameters!$G$4:$I$63,2,FALSE),\"\")","v":""}]
[null,null,"Verzekerde 1214",null,null,null,null,null,null,null,null,null,null,{"$f":"IFERROR(VLOOKUP(M1225,Parameters!$G$4:$I$63,2,FALSE),\"\")","v":""}]
[null,null,"Verzekerde 1215",null,null,null,null,null,null,null,null,null,null,{"$f":"IFERROR(VLOOKUP(M1226,Parameters!$G$4:$I$63,2,FALSE),\"\")","v":""}]
[null,null,"Verzekerde 1216",null,null,null,null,null,null,null,null,null,null,{"$f":"IFERROR(VLOOKUP(M1227,Parameters!$G$4:$I$63,2,FALSE),\"\")","v":""}]
[null,null,"Verzekerde 1217",null,null,null,null,null,null,null,null,null,null,{"$f":"IFERROR(VLOOKUP(M1228,Parameters!$G$4:$I$63,2,FALSE),\"\")","v":""}]
[null,null,"Verzekerde 1218",null,null,null,null,null,null,null,null,null,null,{"$f":"IFERROR(VLOOKUP(M1229,Parameters!$G$4:$I$63,2,FALSE),\"\")","v":""}]
[null,null,"Verzekerde 1219",null,null,null,null,null,null,null,null,null,null,{"$f":"IFERROR(VLOOKUP(M1230,Parameters!$G$4:$I$63,2,FALSE),\"\")","v":""}]
[null,null,"Verzekerde 1220",null,null,null,null,null,null,null,null,null,null,{"$f":"IFERROR(VLOOKUP(M1231,Parameters!$G$4:$I$63,2,FALSE),\"\")","v":""}]
[null,null,"Verzekerde 1221",null,null,null,null,null,null,null,null,null,null,{"$f":"IFERROR(VLOOKUP(M1232,Parameters!$G$4:$I$63,2,FALSE),\"\")","v":""}]
[null,null,"Verzekerde 1222",null,null,null,null,null,null,null,null,null,null,{"$f":"IFERROR(VLOOKUP(M1233,Parameters!$G$4:$I$63,2,FALSE),\"\")","v":""}]
[null,null,"Verzekerde 1223",null,null,null,null,null,null,null,null,null,null,{"$f":"IFERROR(VLOOKUP(M1234,Parameters!$G$4:$I$63,2,FALSE),\"\")","v":""}]
[null,null,"Verzekerde 1224",null,null,null,null,null,null,null,null,null,null,{"$f":"IFERROR(VLOOKUP(M1235,Parameters!$G$4:$I$63,2,FALSE),\"\")","v":""}]
[null,null,"Verzekerde 1225",null,null,null,null,null,null,null,null,null,null,{"$f":"IFERROR(VLOOKUP(M1236,Parameters!$G$4:$I$63,2,FALSE),\"\")","v":""}]
[null,null,"Verzekerde 1226",null,null,null,null,null,null,null,null,null,null,{"$f":"IFERROR(VLOOKUP(M1237,Parameters!$G$4:$I$63,2,FALSE),\"\")","v":""}]
[null,null,"Verzekerde 1227",null,null,null,null,null,null,null,null,null,null,{"$f":"IFERROR(VLOOKUP(M1238,Parameters!$G$4:$I$63,2,FALSE),\"\")","v":""}]
[null,null,"Verzekerde 1228",null,null,null,null,null,null,null,null,null,null,{"$f":"IFERROR(VLOOKUP(M1239,Parameters!$G$4:$I$63,2,FALSE),\"\")","v":""}]
[null,null,"Verzekerde 1229",null,null,null,null,null,null,null,null,null,null,{"$f":"IFERROR(VLOOKUP(M1240,Parameters!$G$4:$I$63,2,FALSE),\"\")","v":""}]
[null,null,"Verzekerde 1230",null,null,null,null,null,null,null,null,null,null,{"$f":"IFERROR(VLOOKUP(M1241,Parameters!$G$4:$I$63,2,FALSE),\"\")","v":""}]
[null,null,"Verzekerde 1231",null,null,null,null,null,null,null,null,null,null,{"$f":"IFERROR(VLOOKUP(M1242,Parameters!$G$4:$I$63,2,FALSE),\"\")","v":""}]
[null,null,"Verzekerde 1232",null,null,null,null,null,null,null,null,null,null,{"$f":"IFERROR(VLOOKUP(M1243,Parameters!$G$4:$I$63,2,FALSE),\"\")","v":""}]
[null,null,"Verzekerde 1233",null,null,null,null,null,null,null,null,null,null,{"$f":"IFERROR(VLOOKUP(M1244,Parameters!$G$4:$I$63,2,FALSE),\"\")","v":""}]
[null,null,"Verzekerde 1234",null,null,null,null,null,null,null,null,null,null,{"$f":"IFERROR(VLOOKUP(M1245,Parameters!$G$4:$I$63,2,FALSE),\"\")","v":""}]
[null,null,"Verzekerde 1235",null,null,null,null,null,null,null,null,null,null,{"$f":"IFERROR(VLOOKUP(M1246,Parameters!$G$4:$I$63,2,FALSE),\"\")","v":""}]
[null,null,"Verzekerde 1236",null,null,null,null,null,null,null,null,null,null,{"$f":"IFERROR(VLOOKUP(M1247,Parameters!$G$4:$I$63,2,FALSE),\"\")","v":""}]
[null,null,"Verzekerde 1237",null,null,null,null,null,null,null,null,null,null,{"$f":"IFERROR(VLOOKUP(M1248,Parameters!$G$4:$I$63,2,FALSE),\"\")","v":""}]
[null,null,"Verzekerde 1238",null,null,null,null,null,null,null,null,null,null,{"$f":"IFERROR(VLOOKUP(M1249,Parameters!$G$4:$I$63,2,FALSE),\"\")","v":""}]
[null,null,"Verzekerde 1239",null,null,null,null,null,null,null,null,null,null,{"$f":"IFERROR(VLOOKUP(M1250,Parameters!$G$4:$I$63,2,FALSE),\"\")","v":""}]
[null,null,"Verzekerde 1240",null,null,null,null,null,null,null,null,null,null,{"$f":"IFERROR(VLOOKUP(M1251,Parameters!$G$4:$I$63,2,FALSE),\"\")","v":""}]
[null,null,"Verzekerde 1241",null,null,null,null,null,null,null,null,null,null,{"$f":"IFERROR(VLOOKUP(M1252,Parameters!$G$4:$I$63,2,FALSE),\"\")","v":""}]
[null,null,"Verzekerde 1242",null,null,null,null,null,null,null,null,null,null,{"$f":"IFERROR(VLOOKUP(M1253,Parameters!$G$4:$I$63,2,FALSE),\"\")","v":""}]
[null,null,"Verzekerde 1243",null,null,null,null,null,null,null,null,null,null,{"$f":"IFERROR(VLOOKUP(M1254,Parameters!$G$4:$I$63,2,FALSE),\"\")","v":""}]
[null,null,"Verzekerde 1244",null,null,null,null,null,null,null,null,null,null,{"$f":"IFERROR(VLOOKUP(M1255,Parameters!$G$4:$I$63,2,FALSE),\"\")","v":""}]
[null,null,"Verzekerde 1245",null,null,null,null,null,null,null,null,null,null,{"$f":"IFERROR(VLOOKUP(M1256,Parameters!$G$4:$I$63,2,FALSE),\"\")","v":""}]
[null,null,"Verzekerde 1246",null,null,null,null,null,null,null,null,null,null,{"$f":"IFERROR(VLOOKUP(M1257,Parameters!$G$4:$I$63,2,FALSE),\"\")","v":""}]
[null,null,"Verzekerde 1247",null,null,null,null,null,null,null,null,null,null,{"$f":"IFERROR(VLOOKUP(M1258,Parameters!$G$4:$I$63,2,FALSE),\"\")","v":""}]
[null,null,"Verzekerde 1248",null,null,null,null,null,null,null,null,null,null,{"$f":"IFERROR(VLOOKUP(M1259,Parameters!$G$4:$I$63,2,FALSE),\"\")","v":""}]
[null,null,"Verzekerde 1249",null,null,null,null,null,null,null,null,null,null,{"$f":"IFERROR(VLOOKUP(M1260,Parameters!$G$4:$I$63,2,FALSE),\"\")","v":""}]
[null,null,"Verzekerde 1250",null,null,null,null,null,null,null,null,null,null,{"$f":"IFERROR(VLOOKUP(M1261,Parameters!$G$4:$I$63,2,FALSE),\"\")","v":""}]
[null,null,"Verzekerde 1251",null,null,null,null,null,null,null,null,null,null,{"$f":"IFERROR(VLOOKUP(M1262,Parameters!$G$4:$I$63,2,FALSE),\"\")","v":""}]
[null,null,"Verzekerde 1252",null,null,null,null,null,null,null,null,null,null,{"$f":"IFERROR(VLOOKUP(M1263,Parameters!$G$4:$I$63,2,FALSE),\"\")","v":""}]
[null,null,"Verzekerde 1253",null,null,null,null,null,null,null,null,null,null,{"$f":"IFERROR(VLOOKUP(M1264,Parameters!$G$4:$I$63,2,FALSE),\"\")","v":""}]
[null,null,"Verzekerde 1254",null,null,null,null,null,null,null,null,null,null,{"$f":"IFERROR(VLOOKUP(M1265,Parameters!$G$4:$I$63,2,FALSE),\"\")","v":""}]
[null,null,"Verzekerde 1255",null,null,null,null,null,null,null,null,null,null,{"$f":"IFERROR(VLOOKUP(M1266,Parameters!$G$4:$I$63,2,FALSE),\"\")","v":""}]
[null,null,"Verzekerde 1256",null,null,null,null,null,null,null,null,null,null,{"$f":"IFERROR(VLOOKUP(M1267,Parameters!$G$4:$I$63,2,FALSE),\"\")","v":""}]
[null,null,"Verzekerde 1257",null,null,null,null,null,null,null,null,null,null,{"$f":"IFERROR(VLOOKUP(M1268,Parameters!$G$4:$I$63,2,FALSE),\"\")","v":""}]
[null,null,"Verzekerde 1258",null,null,null,null,null,null,null,null,null,null,{"$f":"IFERROR(VLOOKUP(M1269,Parameters!$G$4:$I$63,2,FALSE),\"\")","v":""}]
[null,null,"Verzekerde 1259",null,null,null,null,null,null,null,null,null,null,{"$f":"IFERROR(VLOOKUP(M1270,Parameters!$G$4:$I$63,2,FALSE),\"\")","v":""}]
[null,null,"Verzekerde 1260",null,null,null,null,null,null,null,null,null,null,{"$f":"IFERROR(VLOOKUP(M1271,Parameters!$G$4:$I$63,2,FALSE),\"\")","v":""}]
[null,null,"Verzekerde 1261",null,null,null,null,null,null,null,null,null,null,{"$f":"IFERROR(VLOOKUP(M1272,Parameters!$G$4:$I$63,2,FALSE),\"\")","v":""}]
[null,null,"Verzekerde 1262",null,null,null,null,null,null,null,null,null,null,{"$f":"IFERROR(VLOOKUP(M1273,Parameters!$G$4:$I$63,2,FALSE),\"\")","v":""}]
[null,null,"Verzekerde 1263",null,null,null,null,null,null,null,null,null,null,{"$f":"IFERROR(VLOOKUP(M1274,Parameters!$G$4:$I$63,2,FALSE),\"\")","v":""}]
[null,null,"Verzekerde 1264",null,null,null,null,null,null,null,null,null,null,{"$f":"IFERROR(VLOOKUP(M1275,Parameters!$G$4:$I$63,2,FALSE),\"\")","v":""}]
[null,null,"Verzekerde 1265",null,null,null,null,null,null,null,null,null,null,{"$f":"IFERROR(VLOOKUP(M1276,Parameters!$G$4:$I$63,2,FALSE),\"\")","v":""}]
[null,null,"Verzekerde 1266",null,null,null,null,null,null,null,null,null,null,{"$f":"IFERROR(VLOOKUP(M1277,Parameters!$G$4:$I$63,2,FALSE),\"\")","v":""}]
[null,null,"Verzekerde 1267",null,null,null,null,null,null,null,null,null,null,{"$f":"IFERROR(VLOOKUP(M1278,Parameters!$G$4:$I$63,2,FALSE),\"\")","v":""}]
[null,null,"Verzekerde 1268",null,null,null,null,null,null,null,null,null,null,{"$f":"IFERROR(VLOOKUP(M1279,Parameters!$G$4:$I$63,2,FALSE),\"\")","v":""}]
[null,null,"Verzekerde 1269",null,null,null,null,null,null,null,null,null,null,{"$f":"IFERROR(VLOOKUP(M1280,Parameters!$G$4:$I$63,2,FALSE),\"\")","v":""}]
[null,null,"Verzekerde 1270",null,null,null,null,null,null,null,null,null,null,{"$f":"IFERROR(VLOOKUP(M1281,Parameters!$G$4:$I$63,2,FALSE),\"\")","v":""}]
[null,null,"Verzekerde 1271",null,null,null,null,null,null,null,null,null,null,{"$f":"IFERROR(VLOOKUP(M1282,Parameters!$G$4:$I$63,2,FALSE),\"\")","v":""}]
[null,null,"Verzekerde 1272",null,null,null,null,null,null,null,null,null,null,{"$f":"IFERROR(VLOOKUP(M1283,Parameters!$G$4:$I$63,2,FALSE),\"\")","v":""}]
[null,null,"Verzekerde 1273",null,null,null,null,null,null,null,null,null,null,{"$f":"IFERROR(VLOOKUP(M1284,Parameters!$G$4:$I$63,2,FALSE),\"\")","v":""}]
[null,null,"Verzekerde 1274",null,null,null,null,null,null,null,null,null,null,{"$f":"IFERROR(VLOOKUP(M1285,Parameters!$G$4:$I$63,2,FALSE),\"\")","v":""}]
[null,null,"Verzekerde 1275",null,null,null,null,null,null,null,null,null,null,{"$f":"IFERROR(VLOOKUP(M1286,Parameters!$G$4:$I$63,2,FALSE),\"\")","v":""}]
[null,null,"Verzekerde 1276",null,null,null,null,null,null,null,null,null,null,{"$f":"IFERROR(VLOOKUP(M1287,Parameters!$G$4:$I$63,2,FALSE),\"\")","v":""}]
[null,null,"Verzekerde 1277",null,null,null,null,null,null,null,null,null,null,{"$f":"IFERROR(VLOOKUP(M1288,Parameters!$G$4:$I$63,2,FALSE),\"\")","v":""}]
[null,null,"Verzekerde 1278",null,null,null,null,null,null,null,null,null,null,{"$f":"IFERROR(VLOOKUP(M1289,Parameters!$G$4:$I$63,2,FALSE),\"\")","v":""}]
[null,null,"Verzekerde 1279",null,null,null,null,null,null,null,null,null,null,{"$f":"IFERROR(VLOOKUP(M1290,Parameters!$G$4:$I$63,2,FALSE),\"\")","v":""}]
[null,null,"Verzekerde 1280",null,null,null,null,null,null,null,null,null,null,{"$f":"IFERROR(VLOOKUP(M1291,Parameters!$G$4:$I$63,2,FALSE),\"\")","v":""}]
[null,null,"Verzekerde 1281",null,null,null,null,null,null,null,null,null,null,{"$f":"IFERROR(VLOOKUP(M1292,Parameters!$G$4:$I$63,2,FALSE),\"\")","v":""}]
[null,null,"Verzekerde 1282",null,null,null,null,null,null,null,null,null,null,{"$f":"IFERROR(VLOOKUP(M1293,Parameters!$G$4:$I$63,2,FALSE),\"\")","v":""}]
[null,null,"Verzekerde 1283",null,null,null,null,null,null,null,null,null,null,{"$f":"IFERROR(VLOOKUP(M1294,Parameters!$G$4:$I$63,2,FALSE),\"\")","v":""}]
[null,null,"Verzekerde 1284",null,null,null,null,null,null,null,null,null,null,{"$f":"IFERROR(VLOOKUP(M1295,Parameters!$G$4:$I$63,2,FALSE),\"\")","v":""}]
[null,null,"Verzekerde 1285",null,null,null,null,null,null,null,null,null,null,{"$f":"IFERROR(VLOOKUP(M1296,Parameters!$G$4:$I$63,2,FALSE),\"\")","v":""}]
[null,null,"Verzekerde 1286",null,null,null,null,null,null,null,null,null,null,{"$f":"IFERROR(VLOOKUP(M1297,Parameters!$G$4:$I$63,2,FALSE),\"\")","v":""}]
[null,null,"Verzekerde 1287",null,null,null,null,null,null,null,null,null,null,{"$f":"IFERROR(VLOOKUP(M1298,Parameters!$G$4:$I$63,2,FALSE),\"\")","v":""}]
[null,null,"Verzekerde 1288",null,null,null,null,null,null,null,null,null,null,{"$f":"IFERROR(VLOOKUP(M1299,Parameters!$G$4:$I$63,2,FALSE),\"\")","v":""}]
[null,null,"Verzekerde 1289",null,null,null,null,null,null,null,null,null,null,{"$f":"IFERROR(VLOOKUP(M1300,Parameters!$G$4:$I$63,2,FALSE),\"\")","v":""}]
[null,null,"Verzekerde 1290",null,null,null,null,null,null,null,null,null,null,{"$f":"IFERROR(VLOOKUP(M1301,Parameters!$G$4:$I$63,2,FALSE),\"\")","v":""}]
[null,null,"Verzekerde 1291",null,null,null,null,null,null,null,null,null,null,{"$f":"IFERROR(VLOOKUP(M1302,Parameters!$G$4:$I$63,2,FALSE),\"\")","v":""}]
[null,null,"Verzekerde 1292",null,null,null,null,null,null,null,null,null,null,{"$f":"IFERROR(VLOOKUP(M1303,Parameters!$G$4:$I$63,2,FALSE),\"\")","v":""}]
[null,null,"Verzekerde 1293",null,null,null,null,null,null,null,null,null,null,{"$f":"IFERROR(VLOOKUP(M1304,Parameters!$G$4:$I$63,2,FALSE),\"\")","v":""}]
[null,null,"Verzekerde 1294",null,null,null,null,null,null,null,null,null,null,{"$f":"IFERROR(VLOOKUP(M1305,Parameters!$G$4:$I$63,2,FALSE),\"\")","v":""}]
[null,null,"Verzekerde 1295",null,null,null,null,null,null,null,null,null,null,{"$f":"IFERROR(VLOOKUP(M1306,Parameters!$G$4:$I$63,2,FALSE),\"\")","v":""}]
[null,null,"Verzekerde 1296",null,null,null,null,null,null,null,null,null,null,{"$f":"IFERROR(VLOOKUP(M1307,Parameters!$G$4:$I$63,2,FALSE),\"\")","v":""}]
[null,null,"Verzekerde 1297",null,null,null,null,null,null,null,null,null,null,{"$f":"IFERROR(VLOOKUP(M1308,Parameters!$G$4:$I$63,2,FALSE),\"\")","v":""}]
[null,null,"Verzekerde 1298",null,null,null,null,null,null,null,null,null,null,{"$f":"IFERROR(VLOOKUP(M1309,Parameters!$G$4:$I$63,2,FALSE),\"\")","v":""}]
[null,null,"Verzekerde 1299",null,null,null,null,null,null,null,null,null,null,{"$f":"IFERROR(VLOOKUP(M1310,Parameters!$G$4:$I$63,2,FALSE),\"\")","v":""}]
[null,null,"Verzekerde 1300",null,null,null,null,null,null,null,null,null,null,{"$f":"IFERROR(VLOOKUP(M1311,Parameters!$G$4:$I$63,2,FALSE),\"\")","v":""}]
[null,null,"Verzekerde 1301",null,null,null,null,null,null,null,null,null,null,{"$f":"IFERROR(VLOOKUP(M1312,Parameters!$G$4:$I$63,2,FALSE),\"\")","v":""}]
[null,null,"Verzekerde 1302",null,null,null,null,null,null,null,null,null,null,{"$f":"IFERROR(VLOOKUP(M1313,Parameters!$G$4:$I$63,2,FALSE),\"\")","v":""}]
[null,null,"Verzekerde 1303",null,null,null,null,null,null,null,null,null,null,{"$f":"IFERROR(VLOOKUP(M1314,Parameters!$G$4:$I$63,2,FALSE),\"\")","v":""}]
[null,null,"Verzekerde 1304",null,null,null,null,null,null,null,null,null,null,{"$f":"IFERROR(VLOOKUP(M1315,Parameters!$G$4:$I$63,2,FALSE),\"\")","v":""}]
[null,null,"Verzekerde 1305",null,null,null,null,null,null,null,null,null,null,{"$f":"IFERROR(VLOOKUP(M1316,Parameters!$G$4:$I$63,2,FALSE),\"\")","v":""}]
[null,null,"Verzekerde 1306",null,null,null,null,null,null,null,null,null,null,{"$f":"IFERROR(VLOOKUP(M1317,Parameters!$G$4:$I$63,2,FALSE),\"\")","v":""}]
[null,null,"Verzekerde 1307",null,null,null,null,null,null,null,null,null,null,{"$f":"IFERROR(VLOOKUP(M1318,Parameters!$G$4:$I$63,2,FALSE),\"\")","v":""}]
[null,null,"Verzekerde 1308",null,null,null,null,null,null,null,null,null,null,{"$f":"IFERROR(VLOOKUP(M1319,Parameters!$G$4:$I$63,2,FALSE),\"\")","v":""}]
[null,null,"Verzekerde 1309",null,null,null,null,null,null,null,null,null,null,{"$f":"IFERROR(VLOOKUP(M1320,Parameters!$G$4:$I$63,2,FALSE),\"\")","v":""}]
[null,null,"Verzekerde 1310",null,null,null,null,null,null,null,null,null,null,{"$f":"IFERROR(VLOOKUP(M1321,Parameters!$G$4:$I$63,2,FALSE),\"\")","v":""}]
[null,null,"Verzekerde 1311",null,null,null,null,null,null,null,null,null,null,{"$f":"IFERROR(VLOOKUP(M1322,Parameters!$G$4:$I$63,2,FALSE),\"\")","v":""}]
[null,null,"Verzekerde 1312",null,null,null,null,null,null,null,null,null,null,{"$f":"IFERROR(VLOOKUP(M1323,Parameters!$G$4:$I$63,2,FALSE),\"\")","v":""}]
[null,null,"Verzekerde 1313",null,null,null,null,null,null,null,null,null,null,{"$f":"IFERROR(VLOOKUP(M1324,Parameters!$G$4:$I$63,2,FALSE),\"\")","v":""}]
[null,null,"Verzekerde 1314",null,null,null,null,null,null,null,null,null,null,{"$f":"IFERROR(VLOOKUP(M1325,Parameters!$G$4:$I$63,2,FALSE),\"\")","v":""}]
[null,null,"Verzekerde 1315",null,null,null,null,null,null,null,null,null,null,{"$f":"IFERROR(VLOOKUP(M1326,Parameters!$G$4:$I$63,2,FALSE),\"\")","v":""}]
[null,null,"Verzekerde 1316",null,null,null,null,null,null,null,null,null,null,{"$f":"IFERROR(VLOOKUP(M1327,Parameters!$G$4:$I$63,2,FALSE),\"\")","v":""}]
[null,null,"Verzekerde 1317",null,null,null,null,null,null,null,null,null,null,{"$f":"IFERROR(VLOOKUP(M1328,Parameters!$G$4:$I$63,2,FALSE),\"\")","v":""}]
[null,null,"Verzekerde 1318",null,null,null,null,null,null,null,null,null,null,{"$f":"IFERROR(VLOOKUP(M1329,Parameters!$G$4:$I$63,2,FALSE),\"\")","v":""}]
[null,null,"Verzekerde 1319",null,null,null,null,null,null,null,null,null,null,{"$f":"IFERROR(VLOOKUP(M1330,Parameters!$G$4:$I$63,2,FALSE),\"\")","v":""}]
[null,null,"Verzekerde 1320",null,null,null,null,null,null,null,null,null,null,{"$f":"IFERROR(VLOOKUP(M1331,Parameters!$G$4:$I$63,2,FALSE),\"\")","v":""}]
[null,null,"Verzekerde 1321",null,null,null,null,null,null,null,null,null,null,{"$f":"IFERROR(VLOOKUP(M1332,Parameters!$G$4:$I$63,2,FALSE),\"\")","v":""}]
[null,null,"Verzekerde 1322",null,null,null,null,null,null,null,null,null,null,{"$f":"IFERROR(VLOOKUP(M1333,Parameters!$G$4:$I$63,2,FALSE),\"\")","v":""}]
[null,null,"Verzekerde 1323",null,null,null,null,null,null,null,null,null,null,{"$f":"IFERROR(VLOOKUP(M1334,Parameters!$G$4:$I$63,2,FALSE),\"\")","v":""}]
[null,null,"Verzekerde 1324",null,null,null,null,null,null,null,null,null,null,{"$f":"IFERROR(VLOOKUP(M1335,Parameters!$G$4:$I$63,2,FALSE),\"\")","v":""}]
[null,null,"Verzekerde 1325",null,null,null,null,null,null,null,null,null,null,{"$f":"IFERROR(VLOOKUP(M1336,Parameters!$G$4:$I$63,2,FALSE),\"\")","v":""}]
[null,null,"Verzekerde 1326",null,null,null,null,null,null,null,null,null,null,{"$f":"IFERROR(VLOOKUP(M1337,Parameters!$G$4:$I$63,2,FALSE),\"\")","v":""}]
[null,null,"Verzekerde 1327",null,null,null,null,null,null,null,null,null,null,{"$f":"IFERROR(VLOOKUP(M1338,Parameters!$G$4:$I$63,2,FALSE),\"\")","v":""}]
[null,null,"Verzekerde 1328",null,null,null,null,null,null,null,null,null,null,{"$f":"IFERROR(VLOOKUP(M1339,Parameters!$G$4:$I$63,2,FALSE),\"\")","v":""}]
[null,null,"Verzekerde 1329",null,null,null,null,null,null,null,null,null,null,{"$f":"IFERROR(VLOOKUP(M1340,Parameters!$G$4:$I$63,2,FALSE),\"\")","v":""}]
[null,null,"Verzekerde 1330",null,null,null,null,null,null,null,null,null,null,{"$f":"IFERROR(VLOOKUP(M1341,Parameters!$G$4:$I$63,2,FALSE),\"\")","v":""}]
[null,null,"Verzekerde 1331",null,null,null,null,null,null,null,null,null,null,{"$f":"IFERROR(VLOOKUP(M1342,Parameters!$G$4:$I$63,2,FALSE),\"\")","v":""}]
[null,null,"Verzekerde 1332",null,null,null,null,null,null,null,null,null,null,{"$f":"IFERROR(VLOOKUP(M1343,Parameters!$G$4:$I$63,2,FALSE),\"\")","v":""}]
[null,null,"Verzekerde 1333",null,null,null,null,null,null,null,null,null,null,{"$f":"IFERROR(VLOOKUP(M1344,Parameters!$G$4:$I$63,2,FALSE),\"\")","v":""}]
[null,null,"Verzekerde 1334",null,null,null,null,null,null,null,null,null,null,{"$f":"IFERROR(VLOOKUP(M1345,Parameters!$G$4:$I$63,2,FALSE),\"\")","v":""}]
[null,null,"Verzekerde 1335",null,null,null,null,null,null,null,null,null,null,{"$f":"IFERROR(VLOOKUP(M1346,Parameters!$G$4:$I$63,2,FALSE),\"\")","v":""}]
[null,null,"Verzekerde 1336",null,null,null,null,null,null,null,null,null,null,{"$f":"IFERROR(VLOOKUP(M1347,Parameters!$G$4:$I$63,2,FALSE),\"\")","v":""}]
[null,null,"Verzekerde 1337",null,null,null,null,null,null,null,null,null,null,{"$f":"IFERROR(VLOOKUP(M1348,Parameters!$G$4:$I$63,2,FALSE),\"\")","v":""}]
[null,null,"Verzekerde 1338",null,null,null,null,null,null,null,null,null,null,{"$f":"IFERROR(VLOOKUP(M1349,Parameters!$G$4:$I$63,2,FALSE),\"\")","v":""}]
[null,null,"Verzekerde 1339",null,null,null,null,null,null,null,null,null,null,{"$f":"IFERROR(VLOOKUP(M1350,Parameters!$G$4:$I$63,2,FALSE),\"\")","v":""}]
[null,null,"Verzekerde 1340",null,null,null,null,null,null,null,null,null,null,{"$f":"IFERROR(VLOOKUP(M1351,Parameters!$G$4:$I$63,2,FALSE),\"\")","v":""}]
[null,null,"Verzekerde 1341",null,null,null,null,null,null,null,null,null,null,{"$f":"IFERROR(VLOOKUP(M1352,Parameters!$G$4:$I$63,2,FALSE),\"\")","v":""}]
[null,null,"Verzekerde 1342",null,null,null,null,null,null,null,null,null,null,{"$f":"IFERROR(VLOOKUP(M1353,Parameters!$G$4:$I$63,2,FALSE),\"\")","v":""}]
[null,null,"Verzekerde 1343",null,null,null,null,null,null,null,null,null,null,{"$f":"IFERROR(VLOOKUP(M1354,Parameters!$G$4:$I$63,2,FALSE),\"\")","v":""}]
[null,null,"Verzekerde 1344",null,null,null,null,null,null,null,null,null,null,{"$f":"IFERROR(VLOOKUP(M1355,Parameters!$G$4:$I$63,2,FALSE),\"\")","v":""}]
[null,null,"Verzekerde 1345",null,null,null,null,null,null,null,null,null,null,{"$f":"IFERROR(VLOOKUP(M1356,Parameters!$G$4:$I$63,2,FALSE),\"\")","v":""}]
[null,null,"Verzekerde 1346",null,null,null,null,null,null,null,null,null,null,{"$f":"IFERROR(VLOOKUP(M1357,Parameters!$G$4:$I$63,2,FALSE),\"\")","v":""}]
[null,null,"Verzekerde 1347",null,null,null,null,null,null,null,null,null,null,{"$f":"IFERROR(VLOOKUP(M1358,Parameters!$G$4:$I$63,2,FALSE),\"\")","v":""}]
[null,null,"Verzekerde 1348",null,null,null,null,null,null,null,null,null,null,{"$f":"IFERROR(VLOOKUP(M1359,Parameters!$G$4:$I$63,2,FALSE),\"\")","v":""}]
[null,null,"Verzekerde 1349",null,null,null,null,null,null,null,null,null,null,{"$f":"IFERROR(VLOOKUP(M1360,Parameters!$G$4:$I$63,2,FALSE),\"\")","v":""}]
[null,null,"Verzekerde 1350",null,null,null,null,null,null,null,null,null,null,{"$f":"IFERROR(VLOOKUP(M1361,Parameters!$G$4:$I$63,2,FALSE),\"\")","v":""}]
[null,null,"Verzekerde 1351",null,null,null,null,null,null,null,null,null,null,{"$f":"IFERROR(VLOOKUP(M1362,Parameters!$G$4:$I$63,2,FALSE),\"\")","v":""}]
[null,null,"Verzekerde 1352",null,null,null,null,null,null,null,null,null,null,{"$f":"IFERROR(VLOOKUP(M1363,Parameters!$G$4:$I$63,2,FALSE),\"\")","v":""}]
[null,null,"Verzekerde 1353",null,null,null,null,null,null,null,null,null,null,{"$f":"IFERROR(VLOOKUP(M1364,Parameters!$G$4:$I$63,2,FALSE),\"\")","v":""}]
[null,null,"Verzekerde 1354",null,null,null,null,null,null,null,null,null,null,{"$f":"IFERROR(VLOOKUP(M1365,Parameters!$G$4:$I$63,2,FALSE),\"\")","v":""}]
[null,null,"Verzekerde 1355",null,null,null,null,null,null,null,null,null,null,{"$f":"IFERROR(VLOOKUP(M1366,Parameters!$G$4:$I$63,2,FALSE),\"\")","v":""}]
[null,null,"Verzekerde 1356",null,null,null,null,null,null,null,null,null,null,{"$f":"IFERROR(VLOOKUP(M1367,Parameters!$G$4:$I$63,2,FALSE),\"\")","v":""}]
[null,null,"Verzekerde 1357",null,null,null,null,null,null,null,null,null,null,{"$f":"IFERROR(VLOOKUP(M1368,Parameters!$G$4:$I$63,2,FALSE),\"\")","v":""}]
[null,null,"Verzekerde 1358",null,null,null,null,null,null,null,null,null,null,{"$f":"IFERROR(VLOOKUP(M1369,Parameters!$G$4:$I$63,2,FALSE),\"\")","v":""}]
[null,null,"Verzekerde 1359",null,null,null,null,null,null,null,null,null,null,{"$f":"IFERROR(VLOOKUP(M1370,Parameters!$G$4:$I$63,2,FALSE),\"\")","v":""}]
[null,null,"Verzekerde 1360",null,null,null,null,null,null,null,null,null,null,{"$f":"IFERROR(VLOOKUP(M1371,Parameters!$G$4:$I$63,2,FALSE),\"\")","v":""}]
[null,null,"Verzekerde 1361",null,null,null,null,null,null,null,null,null,null,{"$f":"IFERROR(VLOOKUP(M1372,Parameters!$G$4:$I$63,2,FALSE),\"\")","v":""}]
[null,null,"Verzekerde 1362",null,null,null,null,null,null,null,null,null,null,{"$f":"IFERROR(VLOOKUP(M1373,Parameters!$G$4:$I$63,2,FALSE),\"\")","v":""}]
[null,null,"Verzekerde 1363",null,null,null,null,null,null,null,null,null,null,{"$f":"IFERROR(VLOOKUP(M1374,Parameters!$G$4:$I$63,2,FALSE),\"\")","v":""}]
[null,null,"Verzekerde 1364",null,null,null,null,null,null,null,null,null,null,{"$f":"IFERROR(VLOOKUP(M1375,Parameters!$G$4:$I$63,2,FALSE),\"\")","v":""}]
[null,null,"Verzekerde 1365",null,null,null,null,null,null,null,null,null,null,{"$f":"IFERROR(VLOOKUP(M1376,Parameters!$G$4:$I$63,2,FALSE),\"\")","v":""}]
[null,null,"Verzekerde 1366",null,null,null,null,null,null,null,null,null,null,{"$f":"IFERROR(VLOOKUP(M1377,Parameters!$G$4:$I$63,2,FALSE),\"\")","v":""}]
[null,null,"Verzekerde 1367",null,null,null,null,null,null,null,null,null,null,{"$f":"IFERROR(VLOOKUP(M1378,Parameters!$G$4:$I$63,2,FALSE),\"\")","v":""}]
[null,null,"Verzekerde 1368",null,null,null,null,null,null,null,null,null,null,{"$f":"IFERROR(VLOOKUP(M1379,Parameters!$G$4:$I$63,2,FALSE),\"\")","v":""}]
[null,null,"Verzekerde 1369",null,null,null,null,null,null,null,null,null,null,{"$f":"IFERROR(VLOOKUP(M1380,Parameters!$G$4:$I$63,2,FALSE),\"\")","v":""}]
[null,null,"Verzekerde 1370",null,null,null,null,null,null,null,null,null,null,{"$f":"IFERROR(VLOOKUP(M1381,Parameters!$G$4:$I$63,2,FALSE),\"\")","v":""}]
[null,null,"Verzekerde 1371",null,null,null,null,null,null,null,null,null,null,{"$f":"IFERROR(VLOOKUP(M1382,Parameters!$G$4:$I$63,2,FALSE),\"\")","v":""}]
[null,null,"Verzekerde 1372",null,null,null,null,null,null,null,null,null,null,{"$f":"IFERROR(VLOOKUP(M1383,Parameters!$G$4:$I$63,2,FALSE),\"\")","v":""}]
[null,null,"Verzekerde 1373",null,null,null,null,null,null,null,null,null,null,{"$f":"IFERROR(VLOOKUP(M1384,Parameters!$G$4:$I$63,2,FALSE),\"\")","v":""}]
[null,null,"Verzekerde 1374",null,null,null,null,null,null,null,null,null,null,{"$f":"IFERROR(VLOOKUP(M1385,Parameters!$G$4:$I$63,2,FALSE),\"\")","v":""}]
[null,null,"Verzekerde 1375",null,null,null,null,null,null,null,null,null,null,{"$f":"IFERROR(VLOOKUP(M1386,Parameters!$G$4:$I$63,2,FALSE),\"\")","v":""}]
[null,null,"Verzekerde 1376",null,null,null,null,null,null,null,null,null,null,{"$f":"IFERROR(VLOOKUP(M1387,Parameters!$G$4:$I$63,2,FALSE),\"\")","v":""}]
[null,null,"Verzekerde 1377",null,null,null,null,null,null,null,null,null,null,{"$f":"IFERROR(VLOOKUP(M1388,Parameters!$G$4:$I$63,2,FALSE),\"\")","v":""}]
[null,null,"Verzekerde 1378",null,null,null,null,null,null,null,null,null,null,{"$f":"IFERROR(VLOOKUP(M1389,Parameters!$G$4:$I$63,2,FALSE),\"\")","v":""}]
[null,null,"Verzekerde 1379",null,null,null,null,null,null,null,null,null,null,{"$f":"IFERROR(VLOOKUP(M1390,Parameters!$G$4:$I$63,2,FALSE),\"\")","v":""}]
[null,null,"Verzekerde 1380",null,null,null,null,null,null,null,null,null,null,{"$f":"IFERROR(VLOOKUP(M1391,Parameters!$G$4:$I$63,2,FALSE),\"\")","v":""}]
[null,null,"Verzekerde 1381",null,null,null,null,null,null,null,null,null,null,{"$f":"IFERROR(VLOOKUP(M1392,Parameters!$G$4:$I$63,2,FALSE),\"\")","v":""}]
[null,null,"Verzekerde 1382",null,null,null,null,null,null,null,null,null,null,{"$f":"IFERROR(VLOOKUP(M1393,Parameters!$G$4:$I$63,2,FALSE),\"\")","v":""}]
[null,null,"Verzekerde 1383",null,null,null,null,null,null,null,null,null,null,{"$f":"IFERROR(VLOOKUP(M1394,Parameters!$G$4:$I$63,2,FALSE),\"\")","v":""}]
[null,null,"Verzekerde 1384",null,null,null,null,null,null,null,null,null,null,{"$f":"IFERROR(VLOOKUP(M1395,Parameters!$G$4:$I$63,2,FALSE),\"\")","v":""}]
[null,null,"Verzekerde 1385",null,null,null,null,null,null,null,null,null,null,{"$f":"IFERROR(VLOOKUP(M1396,Parameters!$G$4:$I$63,2,FALSE),\"\")","v":""}]
[null,null,"Verzekerde 1386",null,null,null,null,null,null,null,null,null,null,{"$f":"IFERROR(VLOOKUP(M1397,Parameters!$G$4:$I$63,2,FALSE),\"\")","v":""}]
[null,null,"Verzekerde 1387",null,null,null,null,null,null,null,null,null,null,{"$f":"IFERROR(VLOOKUP(M1398,Parameters!$G$4:$I$63,2,FALSE),\"\")","v":""}]
[null,null,"Verzekerde 1388",null,null,null,null,null,null,null,null,null,null,{"$f":"IFERROR(VLOOKUP(M1399,Parameters!$G$4:$I$63,2,FALSE),\"\")","v":""}]
[null,null,"Verzekerde 1389",null,null,null,null,null,null,null,null,null,null,{"$f":"IFERROR(VLOOKUP(M1400,Parameters!$G$4:$I$63,2,FALSE),\"\")","v":""}]
[null,null,"Verzekerde 1390",null,null,null,null,null,null,null,null,null,null,{"$f":"IFERROR(VLOOKUP(M1401,Parameters!$G$4:$I$63,2,FALSE),\"\")","v":""}]

{"sheet":"Parameters","index":4,"n_rows":63,"n_cols":9,"rows_kept":63,"cut":false,"hidden":true,"merged":[]}
[]
["NUMMER_ZK","NAAM_ZK","FORMAT_ZK1","PLAATS",null,null,"Alle mogelijke modelovereenkomsten 2023 waaruit gekozen kan worden"]
["0000","KIES UW UZOVI-NUMMER",{"$f":"CONCATENATE(A3,\" \",B3)","v":"0000 KIES UW UZOVI-NUMMER"},"PLAATS",null,null,"nummer DWH","Naam modelovereenkomst","verzekeraar"]
["0101","N.V. UNIVÉ ZORG","0101 N.V. UNIVÉ ZORG","ARNHEM",null,null,5,"Anderzorg Basis","AnderZorg N.V."]
["0104","CENTRALE ZIEKTEKOSTENVERZEKERING NZV N.V.","0104 CENTRALE ZIEKTEKOSTENVERZEKERING NZV N.V.","TILBURG",null,null,14,"CZ Zorg op maatpolis (Natura)","CZ Zorgverzekeringen N.V."]
["0201","OHRA ZIEKTEKOSTENVERZEKERINGEN N.V.","0201 OHRA ZIEKTEKOSTENVERZEKERINGEN N.V.","TILBURG",null,null,15,"CZ Zorgkeuzepolis (Restitutie)","CZ Zorgverzekeringen N.V."]
["0403","ASR BASIS ZIEKTEKOSTENVERZEKERINGEN N.V.","0403 ASR BASIS ZIEKTEKOSTENVERZEKERINGEN N.V.","UTRECHT",null,null,19,"NN Zorgverzekering Combinatie","Centrale Ziektekostenverzekering NZV NV"]
["0699","IZA ZORGVERZEKERAAR N.V.","0699 IZA ZORGVERZEKERAAR N.V.","ARNHEM",null,null,20,"DSW polisvoorwaarden","OWM DSW Zorgverzekeraar U.A."]
["0736","N.V. ZORGVERZEKERAAR UMC","0736 N.V. ZORGVERZEKERAAR UMC","ARNHEM",null,null,27,"Interpolis ZorgActief ","Interpolis Zorgverzekeringen N.V."]
["3311","ZILVEREN KRUIS ZORGVERZEKERINGEN N.V.","3311 ZILVEREN KRUIS ZORGVERZEKERINGEN N.V.","HENGELO OV",null,null,31,"Menzis Basis","Menzis Zorgverzekeraar N.V."]
["3313","INTERPOLIS ZORGVERZEKERINGEN N.V.","3313 INTERPOLIS ZORGVERZEKERINGEN N.V.","LEIDEN",null,null,32,"Menzis Basis Vrij","Menzis Zorgverzekeraar N.V."]
["3332","MENZIS ZORGVERZEKERAAR N.V.",{"$f":"CONCATENATE(A12,\" \",B12)","v":"3332 MENZIS ZORGVERZEKERAAR N.V."},"WAGENINGEN",null,null,33,"OHRA Zorgverzekering Combinatie","OHRA Zorgverzekeringen N.V."]
["3333","ANDERZORG N.V.",{"$f":"CONCATENATE(A13,\" \",B13)","v":"3333 ANDERZORG N.V."},"GRONINGEN",null,null,39,"ONVZ Vrije Keuze Basisverzekering","ONVZ Ziektekostenverzekeraar N.V."]
["3343","ONVZ ZIEKTEKOSTENVERZEKERAAR N.V.",{"$f":"CONCATENATE(A14,\" \",B14)","v":"3343 ONVZ ZIEKTEKOSTENVERZEKERAAR N.V."},"HOUTEN",null,null,42,"Salland Basisverzekering","Eno Zorgverzekeraar N.V."]
["3347","SALLAND ZORGVERZEKERAAR N.V.","3347 SALLAND ZORGVERZEKERAAR N.V.","DEVENTER",null,null,44,"Stad Holland polisvoorwaarden","OWM Stad Holland Zorgverzekeraar U.A."]
["3351","FBTO ZORGVERZEKERINGEN N.V.",{"$f":"CONCATENATE(A16,\" \",B16)","v":"3351 FBTO ZORGVERZEKERINGEN N.V."},"LEEUWARDEN",null,null,47,"UMC Eigen Keuze","N.V. Zorgverzekeraar UMC"]
["3358","DE FRIESLAND","3358 DE FRIESLAND","LEEUWARDEN",null,null,50,"Univé Zorg Geregeld polis ","N.V. Univé Zorg"]
["3359","EUCARE INSURANCE PCC LTD","3359 EUCARE INSURANCE PCC LTD","TA' XBIEX",null,null,51,"Univé Zorg Vrij polis ","N.V. Univé Zorg"]
["7029","OWM ZORGVERZEKERAAR 'DSW' U.A.","7029 OWM ZORGVERZEKERAAR 'DSW' U.A.","SCHIEDAM",null,null,53,"VGZ Ruime Keuze","VGZ Zorgverzekeraar N.V."]
["7037","STAD HOLLAND ZORGVERZEKERAAR OWM U.A.","7037 STAD HOLLAND ZORGVERZEKERAAR OWM U.A.","SCHIEDAM",null,null,54,"VGZ Eigen Keuze","VGZ Zorgverzekeraar N.V."]
["7085","OWM ZORGVERZEKERAAR ZORG EN ZEKERHEID U.A.","7085 OWM ZORGVERZEKERAAR ZORG EN ZEKERHEID U.A.","LEIDEN",null,null,55,"Zilveren Kruis Basis Zeker","Zilveren Kruis Zorgverzekeringen N.V."]
["7095","VGZ ZORGVERZEKERAAR N.V.","7095 VGZ ZORGVERZEKERAAR N.V.","ARNHEM",null,null,57,"Zorg en Zekerheid Zorg Vrij Polis","OWM Zorgverzekeraar Zorg en Zekerheid U.A."]
["7119","OWM CENTRALE ZORGVERZEKERAARS GROEP, ZORGVERZEKERAAR U.A.","7119 OWM CENTRALE ZORGVERZEKERAARS GROEP, ZORGVERZEKERAAR U.A.","TILBURG",null,null,58,"Zorg en Zekerheid Zorg Zeker Polis","OWM Zorgverzekeraar Zorg en Zekerheid U.A."]
[null,null,null,null,null,null,65,"Univé Gewoon ZEKUR Zorg","N.V. Univé Zorg"]
[null,null,null,null,null,null,66,"Zilveren Kruis Basis Exclusief","Zilveren Kruis Zorgverzekeringen N.V."]
[null,null,null,null,null,null,73,"CZdirect (Natura)","CZ Zorgverzekeringen N.V."]
[null,null,null,null,null,null,74,"IZA Eigen Keuze","IZA Zorgverzekeraar N.V."]
[null,null,null,null,null,null,80,"De Friesland Alles Verzorgd Polis","De Friesland Zorgverzekeraar N.V."]
[null,null,null,null,null,null,82,"VGZ Bewuzt Basis","VGZ Zorgverzekeraar N.V."]
[null,null,null,null,null,null,83,"ik kies zelf van A.S.R. Vrije Keuze combinatie","ASR Basis Ziektekostenverzekeringen N.V."]
[null,null,null,null,null,null,84,"Zorg en Zekerheid Zorg Gemak Polis","OWM Zorgverzekeraar Zorg en Zekerheid U.A."]
[null,null,null,null,null,null,85,"Zilveren Kruis Basis Budget","Zilveren Kruis Zorgverzekeringen N.V."]
[null,null,null,null,null,null,91,"Pro Life Principe Polis (natura)","Zilveren Kruis Zorgverzekeringen N.V."]
[null,null,null,null,null,null,96,"a.s.r. Eigen Keuze","ASR Basis Ziektekostenverzekeringen N.V."]
[null,null,null,null,null,null,97,"CZ Zorgbewustpolis (Natura)","CZ Zorgverzekeringen N.V."]
[null,null,null,null,null,null,98,"IZA Ruime Keuze","IZA Zorgverzekeraar N.V."]
[null,null,null,null,null,null,102,"Hema Basisverzekering","Menzis Zorgverzekeraar N.V."]
[null,null,null,null,null,null,103,"Menzis Basis Voordelig","Menzis Zorgverzekeraar N.V."]
[null,null,null,null,null,null,104,"FBTO Zorgverzekering Basis Plus","FBTO Zorgverzekeringen N.V."]
[null,null,null,null,null,null,105,"FBTO Zorgverzekering Basis Vrij","FBTO Zorgverzekeringen N.V."]
[null,null,null,null,null,null,107,"Univé Zorg Select Polis","N.V. Univé Zorg"]
[null,null,null,null,null,null,108,"ZieZo Basis","Zilveren Kruis Zorgverzekeringen N.V."]
[null,null,null,null,null,null,109,"De Friesland Zelf Bewust Polis","De Friesland Zorgverzekeraar N.V."]
[null,null,null,null,null,null,110,"HollandZorg Basisverzekering","Eno Zorgverzekeraar N.V."]
[null,null,null,null,null,null,113,"Interpolis ZorgCompact","Interpolis Zorgverzekeringen N.V."]
[null,null,null,null,null,null,114,"Pro Life Principe Polis Budget","Zilveren Kruis Zorgverzekeringen N.V."]
[null,null,null,null,null,null,115,"Basisverzekering Natura","EUCARE Insurance PCC Limited"]
[null,null,null,null,null,null,116,"Basisverzekering Restitutie","EUCARE Insurance PCC Limited"]
[null,null,null,null,null,null,118,"Basisverzekering Bewust Verzekerd","EUCARE Insurance PCC Limited"]
[null,null,null,null,null,null,121,"a.s.r. Ruime Keuze","ASR Basis Ziektekostenverzekeringen N.V."]
[null,null,null,null,null,null,122,"ik kies zelf van A.S.R. Goede Keuze natura","ASR Basis Ziektekostenverzekeringen N.V."]
[null,null,null,null,null,null,123,"CZ Just Basic (Natura Just)","CZ Zorgverzekeringen N.V."]
[null,null,null,null,null,null,124,"VGZ Basis Keuze","VGZ Zorgverzekeraar N.V."]
[null,null,null,null,null,null,125,"UMC Ruime Keuze","N.V. Zorgverzekeraar UMC"]
[null,null,null,null,null,null,126,"Basisverzekering Natura Select","EUCARE Insurance PCC Limited"]
[null,null,null,null,null,null,127,"Jaaah basis","ONVZ Ziektekostenverzekeraar N.V."]
[null,null,null,null,null,null,128,"IZA Basis Keuze","IZA Zorgverzekeraar N.V."]
[null,null,null,null,null,null,130,"FBTO Zorgverzekering Basis","FBTO Zorgverzekeringen N.V."]
[null,null,null,null,null,null,131,"ZEM Polis","OWM Zorgverzekeraar Zorg en Zekerheid U.A."]
[null,null,null,null,null,null,132,"VinkVink Basisverzekering","Menzis Zorgverzekeraar N.V."]
[null,null,null,null,null,null,133,"NN Zorgverzekering Natura (Zorg Voordelig) ","Centrale Ziektekostenverzekering NZV NV"]
[null,null,null,null,null,null,134,"Basisverzekering Bewust Verzekerd Restitutie ","EUCARE Insurance PCC Limited"]
[null,null,null,null,null,null,136,"Univé Zorg Basis Natura ","N.V. Univé Zorg"]